{"text_format":"1","workbook":"xlsx","n_sheets":10,"sheets":["Datos Asegurado","Instrucciones","Comparativo","Template PDF","Template PDF Comparativo","Brochure","Versión","Objetos Estructura","Master","MasterBase"],"not_rendered":{"charts":0,"images":16,"macros":1,"external_links":0,"defined_names":6,"comments":0,"pivot_tables":0},"unopened":[],"bounds":{"document_bytes":16777216,"sheet_cells":100000,"rows_first":2000,"rows_last":500,"rows_between":2000,"halvings":0,"cell_chars":16384,"cell_head_chars":4096},"cells_cut":0,"cells_raw":0,"read":"whole","date_system":"1900"}

{"sheet":"Datos Asegurado","index":0,"n_rows":49,"n_cols":16,"rows_kept":49,"cut":false,"hidden":false,"merged":[[1,7,2,13],[3,10,3,12],[23,2,23,3],[1,0,2,5],[36,0,36,1],[36,10,36,12],[11,4,12,5],[10,2,10,3]]}
[]
["   Cotización",null,null,null,null,null,null,"   Integrantes adicionales a cotizar"]
[]
["   1. Ingrese los datos del asegurado",null,null,null,null,null,null,null,null,null,"Fecha de Nacimiento"]
[null,null,null,null,null,null,null,"Número ","Relación","Género","Día","Mes","Año","Edad"]
[null,"Fecha Cotización:",{"$f":"TODAY()","v":"2022-07-20"}]
[null,"Nombre del titular:"]
[null,"Edad del titular:"]
[null,"Género:"]
[]
[null,"Zona:","Zona 1: CDMX, Area Metropolitana y Monterrey"]
[]
[null,"Número de integrantes adicionales a cotizar:"]
[]
[]
["   2. Datos del agente"]
[]
[null,"Nombre del agente:","Edith Gonzalez Herrera"]
[null,"Agencia:","Oficina Regional Puebla"]
[]
[]
["   3. Datos de la póliza"]
[]
[null,"Tipo de  cliente:","Nuevo negocio"]
[]
[null,"Zona:",{"$f":"'Datos Asegurado'!E11","v":0}]
[null,"Suma asegurada (mxn):"]
[null,null,null,"Maternidad"]
[null,"Deducible (mxn):",null,"Titular:","No"]
[null,null,null,"Conyuge:","No"]
[null,"Coaseguro:",null,null,"No"]
[null,null,null,"Asistencia en el extranjero:","Si"]
[null,null,null,null,"No"]
[]
["    4. Costo Poliza",null,null,null,null,null,null,"   5. Compara"]
[]
["Concepto ",null,null,"Semestral","Trimestral","Mensual",null,null,"Guardar para comparar",null,"Limpiar"]
[null,"Prima del asegurado titular:",{"$f":"MasterBase!C10","v":0},{"$f":"($C$38*1.045/2)","v":0},{"$f":"($C$38*1.075/4)","v":0},{"$f":"($C$38*1.11/12)","v":0}]
[null,"Prima cónyuge:",{"$f":"MasterBase!C24","v":0},{"$f":"($C$39*1.045/2)","v":0},{"$f":"($C$39*1.075/4)","v":0},{"$f":"($C$39*1.11/12)","v":0}]
[null,"Prima hijo(s):",{"$f":"MasterBase!G24","v":0},{"$f":"($C$40*1.045/2)","v":0},{"$f":"($C$40*1.075/4)","v":0},{"$f":"($C$40*1.11/12)","v":0}]
[null,"Dependientes económicos",{"$f":"MasterBase!K24","v":0},{"$f":"($C$41*1.045/2)","v":0},{"$f":"($C$41*1.075/4)","v":0},{"$f":"($C$41*1.11/12)","v":0},null,null,null,null,null,null,null,null,null," "]
[null,"Total Prima:",{"$f":"SUM(C38:C41)","v":0},{"$f":"SUM(D38:D41)","v":0},0,0]
[null,"Asistencia en el extranjero:",{"$f":"IF($E$32=\"Si\",1632,0)","v":1632},{"$f":"IF($E$32=\"Si\",1632,0)","v":1632},1632,1632]
[null,"Derecho de póliza:",{"$f":"Master!$U$3","v":1500},{"$f":"Master!$U$3","v":1500},{"$f":"Master!$U$3","v":1500},{"$f":"Master!$U$3","v":1500}]
[null,"Total descuento\n(derecho de póliza y recargo por pago fraccionado)",{"$f":"-1500","v":-1500},{"$f":"-1500-(D42*2-C42)","v":-1500},{"$f":"-1500-(E42*4-C42)","v":-1500},{"$f":"-1500-(F42*12-C42)","v":-1500}]
[null,"IVA (16%)",{"$f":"SUM(C42:C45) * 16%","v":261.12},{"$f":"(D42*2+D43+D45+D44)*16%","v":261.12},{"$f":"(E42*4+E43+E45+E44)*16%","v":261.12},{"$f":"(F42*12+F43+F45+F44)*16%","v":261.12}]
[null,"Costo total:",{"$f":"C42+C43+C45+C44+C46","v":1893.12},{"$f":"(D42*2+D43+D45+D44)*1.16","v":1893.12},{"$f":"E42*4+E43+E45+E44+E46","v":1893.12},{"$f":"F42*12+F43+F45+F44+F46","v":1893.12}]
[null,"Primer Pago:",null,{"$f":"($C$42/2+D43/2)*1.16","v":946.56},{"$f":"($C$42/4+E43/4)*1.16","v":473.28},{"$f":"($C$42/12+F43/12)*1.16","v":157.76}]
[null,"Pagos Subsecuentes:",null,{"$f":"($C$42/2+D43/2)*1.16","v":946.56},{"$f":"($C$42/4+D43/4)*1.16","v":473.28},{"$f":"($C$42/12+D43/12)*1.16","v":157.76}]

{"sheet":"Instrucciones","index":1,"n_rows":0,"n_cols":0,"rows_kept":0,"cut":false,"hidden":false,"merged":[]}

{"sheet":"Comparativo","index":2,"n_rows":62,"n_cols":15,"rows_kept":62,"cut":false,"hidden":false,"merged":[]}
[]
[null,"   Datos de usuario"]
[]
[null,null,"Fecha Cotización:","2022-07-07"]
[null,null,"Nombre del titular:","ERIC MANZO SAIZ"]
[null,null,"Edad del titular:",48]
[null,null,"Género:","Masculino"]
[]
[null,null,"Zona:","Zona 2: Republica mexicana, excepto CDMX, Area Metropolitana y Monterrey"]
[]
[null,null,"Número de integrantes adicionales a cotizar:",8]
[]
[]
[]
[]
[null,"   Datos de póliza",null,null,null,null,null,null,"  Opción  1"]
[null,null,null,null,null,null,null,null,null,"Datos de cotización"]
[null,null,"Tipo de  cliente:","Nuevo negocio",null,null,null,null,null,"Concepto ",null,null,"Semestral","Trimestral","Mensual"]
[null,null,null,null,null,null,null,null,null,null,"Prima del asegurado titular:",28112,14688.519999999999,7555.0999999999995,2600.36]
[null,null,"Zona:",0,null,null,null,null,null,null,"Prima cónyuge:",20906,10923.384999999998,5618.4875000000002,1933.8050000000003]
[null,null,"Suma asegurada (mxn):",5000000,null,null,null,null,null,null,"Prima hijo(s):",41812,21846.769999999997,11236.975,3867.6100000000006]
[null,null,null,null,"Maternidad",null,null,null,null,null,"Dependientes económicos",20906,10923.384999999998,5618.4875000000002,1933.8050000000003]
[null,null,"Deducible (mxn):",0,"Titular:","No",null,null,null,null,"Total Prima:",111736,58382.06,30029.05,10335.580000000002]
[null,null,null,null,"Conyuge:","No",null,null,null,null,"Asistencia en el extranjero:",1632,1632,1632,1632]
[null,null,"Coaseguro:",0,null,"No",null,null,null,null,"Derecho de póliza:",1500,1500,1500,1500]
[null,null,null,null,"Asistencia en el extranjero:","Si",null,null,null,null,"Total descuento\n(derecho de póliza y recargo por pago fraccionado)",-1500,-6528.1199999999953,-9880.1999999999971,-13790.960000000021]
[null,null,null,null,null,null,null,null,null,null,"IVA (16%)",18138.88,18138.88,18138.88,18138.88]
[null,null,null,null,null,null,null,null,null,null,"Costo total:",131506.88,131506.88,131506.88,131506.88]
[null,null,null,null,null,null,null,null,null,null,"Primer Pago:",null,66700,34296.559999999998,12694.266666666666]
[null,null,null,null,null,null,null,null,null,null,"Pagos Subsecuentes:",null,64806.879999999997,32403.439999999999,10801.146666666667]
[]
[null,"   Datos de póliza"]
[]
[null,null,"Tipo de  cliente:","Nuevo negocio",null,null,null,null,null,"Concepto ",null,null,"Semestral","Trimestral","Mensual"]
[null,null,null,null,null,null,null,null,null,null,"Prima del asegurado titular:",28112,14688.519999999999,7555.0999999999995,2600.36]
[null,null,"Zona:",0,null,null,null,null,null,null,"Prima cónyuge:",20906,10923.384999999998,5618.4875000000002,1933.8050000000003]
[null,null,"Suma asegurada (mxn):",5000000,null,null,null,null,null,null,"Prima hijo(s):",41812,21846.769999999997,11236.975,3867.6100000000006]
[null,null,null,null,"Maternidad",null,null,null,null,null,"Dependientes económicos",20906,10923.384999999998,5618.4875000000002,1933.8050000000003]
[null,null,"Deducible (mxn):",0,"Titular:","No",null,null,null,null,"Total Prima:",111736,58382.06,30029.05,10335.580000000002]
[null,null,null,null,"Conyuge:","No",null,null,null,null,"Asistencia en el extranjero:",1632,1632,1632,1632]
[null,null,"Coaseguro:",0,null,"No",null,null,null,null,"Derecho de póliza:",1500,1500,1500,1500]
[null,null,null,null,"Asistencia en el extranjero:","Si",null,null,null,null,"Total descuento\n(derecho de póliza y recargo por pago fraccionado)",-1500,-6528.1199999999953,-9880.1999999999971,-13790.960000000021]
[null,null,null,null,null,null,null,null,null,null,"IVA (16%)",18138.88,18138.88,18138.88,18138.88]
[null,null,null,null,null,null,null,null,null,null,"Costo total:",131506.88,131506.88,131506.88,131506.88]
[null,null,null,null,null,null,null,null,null,null,"Primer Pago:",null,66700,34296.559999999998,12694.266666666666]
[null,null,null,null,null,null,null,null,null,null,"Pagos Subsecuentes:",null,64806.879999999997,32403.439999999999,10801.146666666667]
[]
[null,"   Datos de póliza"]
[]
[null,null,"Tipo de  cliente:","Nuevo negocio",null,null,null,null,null,"Concepto ",null,null,"Semestral","Trimestral","Mensual"]
[null,null,null,null,null,null,null,null,null,null,"Prima del asegurado titular:",28112,14688.519999999999,7555.0999999999995,2600.36]
[null,null,"Zona:",0,null,null,null,null,null,null,"Prima cónyuge:",20906,10923.384999999998,5618.4875000000002,1933.8050000000003]
[null,null,"Suma asegurada (mxn):",5000000,null,null,null,null,null,null,"Prima hijo(s):",41812,21846.769999999997,11236.975,3867.6100000000006]
[null,null,null,null,"Maternidad",null,null,null,null,null,"Dependientes económicos",20906,10923.384999999998,5618.4875000000002,1933.8050000000003]
[null,null,"Deducible (mxn):",0,"Titular:","No",null,null,null,null,"Total Prima:",111736,58382.06,30029.05,10335.580000000002]
[null,null,null,null,"Conyuge:","No",null,null,null,null,"Asistencia en el extranjero:",1632,1632,1632,1632]
[null,null,"Coaseguro:",0,null,"No",null,null,null,null,"Derecho de póliza:",1500,1500,1500,1500]
[null,null,null,null,"Asistencia en el extranjero:","Si",null,null,null,null,"Total descuento\n(derecho de póliza y recargo por pago fraccionado)",-1500,-6528.1199999999953,-9880.1999999999971,-13790.960000000021]
[null,null,null,null,null,null,null,null,null,null,"IVA (16%)",18138.88,18138.88,18138.88,18138.88]
[null,null,null,null,null,null,null,null,null,null,"Costo total:",131506.88,131506.88,131506.88,131506.88]
[null,null,null,null,null,null,null,null,null,null,"Primer Pago:",null,66700,34296.559999999998,12694.266666666666]
[null,null,null,null,null,null,null,null,null,null,"Pagos Subsecuentes:",null,64806.879999999997,32403.439999999999,10801.146666666667]

{"sheet":"Template PDF","index":3,"n_rows":51,"n_cols":6,"rows_kept":51,"cut":false,"hidden":false,"merged":[[48,1,49,5],[50,1,61,5]]}
[]
[]
[]
[]
[]
[]
[]
[]
[]
[]
[]
[]
[]
[]
[null,"Cotización"]
[]
[null,"Datos Titular"]
[null,"Nombre del titular:",{"$f":"'Datos Asegurado'!C7","v":0},"Nombre Agente:",{"$f":"'Datos Asegurado'!C18","v":"Edith Gonzalez Herrera"}]
[null,"Edad:",{"$f":"'Datos Asegurado'!C8","v":0},"Agencia:",{"$f":"'Datos Asegurado'!C19","v":"Oficina Regional Puebla"}]
[null,"Género:",{"$f":"'Datos Asegurado'!C9","v":0},{"$f":"'Datos Asegurado'!B6","v":"Fecha Cotización:"},{"$f":"'Datos Asegurado'!C6","v":"2022-07-20"}]
[null,"Lugar de residencia:",{"$f":"'Datos Asegurado'!C11","v":"Zona 1: CDMX, Area Metropolitana y Monterrey"}]
[null,"Número de integrantes a cotizar:",{"$f":"'Datos Asegurado'!C13","v":0}]
[]
[null,"Características de la Póliza"]
[null,"Suma asegurada (mxn):",{"$f":"'Datos Asegurado'!C27","v":0}]
[null,"Deducible (mxn):",{"$f":"'Datos Asegurado'!C29","v":0}]
[null,"Coaseguro",{"$f":"'Datos Asegurado'!C31","v":0}]
[null,"Tipo de cliente:",{"$f":"'Datos Asegurado'!C24:D24","v":"Nuevo negocio"}]
[null,{"$f":"'Datos Asegurado'!D28","v":"Maternidad"},{"$f":"'Datos Asegurado'!D29","v":"Titular:"},{"$f":"'Datos Asegurado'!E29","v":"No"}]
[null,null,{"$f":"'Datos Asegurado'!D30","v":"Conyuge:"},{"$f":"'Datos Asegurado'!E30","v":"No"}]
[]
[null,"Costo Poliza"]
[null,"Concepto","Anual","Semestral","Trimestral","Mensual"]
[null,{"$f":"'Datos Asegurado'!B38","v":"Prima del asegurado titular:"},{"$f":"'Datos Asegurado'!C38","v":0},{"$f":"'Datos Asegurado'!D38","v":0},{"$f":"'Datos Asegurado'!E38","v":0},{"$f":"'Datos Asegurado'!F38","v":0}]
[null,{"$f":"'Datos Asegurado'!B39","v":"Prima cónyuge:"},{"$f":"'Datos Asegurado'!C39","v":0},{"$f":"'Datos Asegurado'!D39","v":0},{"$f":"'Datos Asegurado'!E39","v":0},{"$f":"'Datos Asegurado'!F39","v":0}]
[null,{"$f":"'Datos Asegurado'!B40","v":"Prima hijo(s):"},{"$f":"'Datos Asegurado'!C40","v":0},{"$f":"'Datos Asegurado'!D40","v":0},{"$f":"'Datos Asegurado'!E40","v":0},{"$f":"'Datos Asegurado'!F40","v":0}]
[null,{"$f":"'Datos Asegurado'!B41","v":"Dependientes económicos"},{"$f":"'Datos Asegurado'!C41","v":0},{"$f":"'Datos Asegurado'!D41","v":0},{"$f":"'Datos Asegurado'!E41","v":0},{"$f":"'Datos Asegurado'!F41","v":0}]
[null,{"$f":"'Datos Asegurado'!B42","v":"Total Prima:"},{"$f":"'Datos Asegurado'!C42","v":0},{"$f":"'Datos Asegurado'!D42","v":0},{"$f":"'Datos Asegurado'!E42","v":0},{"$f":"'Datos Asegurado'!F42","v":0}]
[null,{"$f":"'Datos Asegurado'!B43","v":"Asistencia en el extranjero:"},{"$f":"'Datos Asegurado'!C43","v":1632},{"$f":"'Datos Asegurado'!D43","v":1632},{"$f":"'Datos Asegurado'!E43","v":1632},{"$f":"'Datos Asegurado'!F43","v":1632}]
[null,{"$f":"'Datos Asegurado'!B44","v":"Derecho de póliza:"},{"$f":"'Datos Asegurado'!C44","v":1500},{"$f":"'Datos Asegurado'!D44","v":1500},{"$f":"'Datos Asegurado'!E44","v":1500},{"$f":"'Datos Asegurado'!F44","v":1500}]
[null,{"$f":"'Datos Asegurado'!B45","v":"Total descuento\n(derecho de póliza y recargo por pago fraccionado)"},{"$f":"'Datos Asegurado'!C45","v":-1500},{"$f":"'Datos Asegurado'!D45","v":-1500},{"$f":"'Datos Asegurado'!E45","v":-1500},{"$f":"'Datos Asegurado'!F45","v":-1500}]
[null,{"$f":"'Datos Asegurado'!B46","v":"IVA (16%)"},{"$f":"'Datos Asegurado'!C46","v":261.12},{"$f":"'Datos Asegurado'!D46","v":261.12},{"$f":"'Datos Asegurado'!E46","v":261.12},{"$f":"'Datos Asegurado'!F46","v":261.12}]
[null,{"$f":"'Datos Asegurado'!B47","v":"Costo total:"},{"$f":"'Datos Asegurado'!C47","v":1893.12},{"$f":"'Datos Asegurado'!D47","v":1893.12},{"$f":"'Datos Asegurado'!E47","v":1893.12},{"$f":"'Datos Asegurado'!F47","v":1893.12}]
[null,{"$f":"'Datos Asegurado'!B48","v":"Primer Pago:"},{"$f":"'Datos Asegurado'!C48","v":0},{"$f":"'Datos Asegurado'!D48","v":946.56},{"$f":"'Datos Asegurado'!E48","v":473.28},{"$f":"'Datos Asegurado'!F48","v":157.76}]
[null,{"$f":"'Datos Asegurado'!B49","v":"Pagos Subsecuentes:"},{"$f":"'Datos Asegurado'!C49","v":0},{"$f":"'Datos Asegurado'!D49","v":946.56},{"$f":"'Datos Asegurado'!E49","v":473.28},{"$f":"'Datos Asegurado'!F49","v":157.76}]
[]
[]
[]
[]
[]
[null,"*Vigencia de la promoción para pólizas de nuevo negocio contratadas del 1 de julio del 2022 al 31 de diciembre 2022. El asegurado deberá mantenerse en el mismo plan para conservar los beneficios.\n\nAplican restricciones. Los productos aquí descritos son operados y propiedad de Bupa México, Compañía de Seguros, S.A. de C.V., y se regirán por las disposiciones contractuales y legales aplicables. Las condiciones, coberturas y exclusiones del producto podrán cambiar sin previo aviso. La descripción que se hace de los beneficios es con fines meramente informativos. Los términos, condiciones y exclusiones aplicables se establecerán en las condiciones generales del producto contratado. Los beneficios están sujetos a la contratación del producto.\nLa presente cotización es de carácter informativo y no constituye el monto de la prima definitiva ni las condiciones de la misma. La emisión de la póliza está sujeta a valoración del riesgo y/o cambio en la tarifa por parte del área de Suscripción de Bupa y puede tener modificaciones por lo que no expresa compromiso legal para la cobertura del seguro. \n\nPara una cotización más detallada por favor contáctenos a través de su agente o al 55 5202 1701. La vigencia de la cotización es de 30 días naturales para la recepción de la solicitud de seguro, después de este período, las tarifas deberán ser reconfirmadas a través de su agente o ejecutivo y podrán sufrir ajustes sin previo aviso.\n\nBNV tarifa 2022: Tarifas válidas hasta el 31 de diciembre del 2022"]

{"sheet":"Template PDF Comparativo","index":4,"n_rows":76,"n_cols":6,"rows_kept":76,"cut":false,"hidden":false,"merged":[[14,1,14,5],[75,1,76,5],[77,1,77,5]]}
[]
[]
[]
[]
[]
[]
[]
[]
[]
[]
[]
[]
[]
[]
[null,"Comparativo Cotizaciones"]
[]
[null,"Nombre del titular",{"$f":"Comparativo!D5","v":"ERIC MANZO SAIZ"},{"$f":"'Datos Asegurado'!B18","v":"Nombre del agente:"},{"$f":"'Datos Asegurado'!C18","v":"Edith Gonzalez Herrera"}]
[null,"Edad",{"$f":"'Datos Asegurado'!C8","v":0},{"$f":"'Datos Asegurado'!B19","v":"Agencia:"},{"$f":"'Datos Asegurado'!C19","v":"Oficina Regional Puebla"}]
[null,"Género",{"$f":"'Datos Asegurado'!C9","v":0},{"$f":"'Datos Asegurado'!B6","v":"Fecha Cotización:"},{"$f":"'Datos Asegurado'!C6","v":"2022-07-20"}]
[null,"Lugar de residencia",{"$f":"'Datos Asegurado'!C11","v":"Zona 1: CDMX, Area Metropolitana y Monterrey"}]
[null,"Número de integrantes a cotizar",{"$f":"'Datos Asegurado'!C13","v":0}]
[]
[null,"Opción 1"]
[null,"Suma asegurada (mxn)",{"$f":"Comparativo!D21","v":5000000},"Coaseguro",{"$f":"Comparativo!D25","v":0}]
[null,"Deducible (mxn)",{"$f":"Comparativo!D23","v":0},"Tipo de cliente",{"$f":"Comparativo!D18","v":"Nuevo negocio"}]
[null,{"$f":"Comparativo!E22","v":"Maternidad"},{"$f":"CONCATENATE(Comparativo!E23,\" \",Comparativo!F23)","v":"Titular: No"},null,{"$f":"CONCATENATE(Comparativo!E24,\" \",Comparativo!F24)","v":"Conyuge: No"}]
[null,"Concepto","Anual","Semestral","Trimestral","Mensual"]
[null,{"$f":"Comparativo!K19","v":"Prima del asegurado titular:"},{"$f":"Comparativo!L19","v":28112},{"$f":"Comparativo!M19","v":14688.519999999999},{"$f":"Comparativo!N19","v":7555.0999999999995},{"$f":"Comparativo!O19","v":2600.36}]
[null,{"$f":"Comparativo!K20","v":"Prima cónyuge:"},{"$f":"Comparativo!L20","v":20906},{"$f":"Comparativo!M20","v":10923.384999999998},{"$f":"Comparativo!N20","v":5618.4875000000002},{"$f":"Comparativo!O20","v":1933.8050000000003}]
[null,{"$f":"Comparativo!K21","v":"Prima hijo(s):"},{"$f":"Comparativo!L21","v":41812},{"$f":"Comparativo!M21","v":21846.769999999997},{"$f":"Comparativo!N21","v":11236.975},{"$f":"Comparativo!O21","v":3867.6100000000006}]
[null,{"$f":"Comparativo!K22","v":"Dependientes económicos"},{"$f":"Comparativo!L22","v":20906},{"$f":"Comparativo!M22","v":10923.384999999998},{"$f":"Comparativo!N22","v":5618.4875000000002},{"$f":"Comparativo!O22","v":1933.8050000000003}]
[null,{"$f":"Comparativo!K23","v":"Total Prima:"},{"$f":"Comparativo!L23","v":111736},{"$f":"Comparativo!M23","v":58382.06},{"$f":"Comparativo!N23","v":30029.05},{"$f":"Comparativo!O23","v":10335.580000000002}]
[null,{"$f":"Comparativo!K24","v":"Asistencia en el extranjero:"},{"$f":"Comparativo!L24","v":1632},{"$f":"Comparativo!M24","v":1632},{"$f":"Comparativo!N24","v":1632},{"$f":"Comparativo!O24","v":1632}]
[null,{"$f":"Comparativo!K25","v":"Derecho de póliza:"},{"$f":"Comparativo!L25","v":1500},{"$f":"Comparativo!M25","v":1500},{"$f":"Comparativo!N25","v":1500},{"$f":"Comparativo!O25","v":1500}]
[null,{"$f":"Comparativo!K26","v":"Total descuento\n(derecho de póliza y recargo por pago fraccionado)"},{"$f":"Comparativo!L26","v":-1500},{"$f":"Comparativo!M26","v":-6528.1199999999953},{"$f":"Comparativo!N26","v":-9880.1999999999971},{"$f":"Comparativo!O26","v":-13790.960000000021}]
[null,{"$f":"Comparativo!K27","v":"IVA (16%)"},{"$f":"Comparativo!L27","v":18138.88},{"$f":"Comparativo!M27","v":18138.88},{"$f":"Comparativo!N27","v":18138.88},{"$f":"Comparativo!O27","v":18138.88}]
[null,{"$f":"Comparativo!K28","v":"Costo total:"},{"$f":"Comparativo!L28","v":131506.88},{"$f":"Comparativo!M28","v":131506.88},{"$f":"Comparativo!N28","v":131506.88},{"$f":"Comparativo!O28","v":131506.88}]
[null,{"$f":"Comparativo!K29","v":"Primer Pago:"},{"$f":"Comparativo!L29","v":0},{"$f":"Comparativo!M29","v":66700},{"$f":"Comparativo!N29","v":34296.559999999998},{"$f":"Comparativo!O29","v":12694.266666666666}]
[null,{"$f":"Comparativo!K30","v":"Pagos Subsecuentes:"},{"$f":"Comparativo!L30","v":0},{"$f":"Comparativo!M30","v":64806.879999999997},{"$f":"Comparativo!N30","v":32403.439999999999},{"$f":"Comparativo!O30","v":10801.146666666667}]
[]
[null,"Opción 2"]
[null,"Suma asegurada (mxn)",{"$f":"Comparativo!D37","v":5000000},"Coaseguro",{"$f":"Comparativo!D41","v":0}]
[null,"Deducible (mxn)",{"$f":"Comparativo!D39","v":0},"Tipo de cliente",{"$f":"Comparativo!D34","v":"Nuevo negocio"}]
[null,{"$f":"Comparativo!E38","v":"Maternidad"},{"$f":"CONCATENATE(Comparativo!E39,\" \",Comparativo!F39)","v":"Titular: No"},null,{"$f":"CONCATENATE(Comparativo!E40,\" \",Comparativo!F40)","v":"Conyuge: No"}]
[null,"Concepto","Anual","Semestral","Trimestral","Mensual"]
[null,{"$f":"Comparativo!K35","v":"Prima del asegurado titular:"},{"$f":"Comparativo!L35","v":28112},{"$f":"Comparativo!M35","v":14688.519999999999},{"$f":"Comparativo!N35","v":7555.0999999999995},{"$f":"Comparativo!O35","v":2600.36}]
[null,{"$f":"Comparativo!K36","v":"Prima cónyuge:"},{"$f":"Comparativo!L36","v":20906},{"$f":"Comparativo!M36","v":10923.384999999998},{"$f":"Comparativo!N36","v":5618.4875000000002},{"$f":"Comparativo!O36","v":1933.8050000000003}]
[null,{"$f":"Comparativo!K37","v":"Prima hijo(s):"},{"$f":"Comparativo!L37","v":41812},{"$f":"Comparativo!M37","v":21846.769999999997},{"$f":"Comparativo!N37","v":11236.975},{"$f":"Comparativo!O37","v":3867.6100000000006}]
[null,{"$f":"Comparativo!K38","v":"Dependientes económicos"},{"$f":"Comparativo!L38","v":20906},{"$f":"Comparativo!M38","v":10923.384999999998},{"$f":"Comparativo!N38","v":5618.4875000000002},{"$f":"Comparativo!O38","v":1933.8050000000003}]
[null,{"$f":"Comparativo!K39","v":"Total Prima:"},{"$f":"Comparativo!L39","v":111736},{"$f":"Comparativo!M39","v":58382.06},{"$f":"Comparativo!N39","v":30029.05},{"$f":"Comparativo!O39","v":10335.580000000002}]
[null,{"$f":"Comparativo!K40","v":"Asistencia en el extranjero:"},{"$f":"Comparativo!L40","v":1632},{"$f":"Comparativo!M40","v":1632},{"$f":"Comparativo!N40","v":1632},{"$f":"Comparativo!O40","v":1632}]
[null,{"$f":"Comparativo!K41","v":"Derecho de póliza:"},{"$f":"Comparativo!L41","v":1500},{"$f":"Comparativo!M41","v":1500},{"$f":"Comparativo!N41","v":1500},{"$f":"Comparativo!O41","v":1500}]
[null,{"$f":"Comparativo!K42","v":"Total descuento\n(derecho de póliza y recargo por pago fraccionado)"},{"$f":"Comparativo!L42","v":-1500},{"$f":"Comparativo!M42","v":-6528.1199999999953},{"$f":"Comparativo!N42","v":-9880.1999999999971},{"$f":"Comparativo!O42","v":-13790.960000000021}]
[null,{"$f":"Comparativo!K43","v":"IVA (16%)"},{"$f":"Comparativo!L43","v":18138.88},{"$f":"Comparativo!M43","v":18138.88},{"$f":"Comparativo!N43","v":18138.88},{"$f":"Comparativo!O43","v":18138.88}]
[null,{"$f":"Comparativo!K44","v":"Costo total:"},{"$f":"Comparativo!L44","v":131506.88},{"$f":"Comparativo!M44","v":131506.88},{"$f":"Comparativo!N44","v":131506.88},{"$f":"Comparativo!O44","v":131506.88}]
[null,{"$f":"Comparativo!K45","v":"Primer Pago:"},{"$f":"Comparativo!L45","v":0},{"$f":"Comparativo!M45","v":66700},{"$f":"Comparativo!N45","v":34296.559999999998},{"$f":"Comparativo!O45","v":12694.266666666666}]
[null,{"$f":"Comparativo!K46","v":"Pagos Subsecuentes:"},{"$f":"Comparativo!L46","v":0},{"$f":"Comparativo!M46","v":64806.879999999997},{"$f":"Comparativo!N46","v":32403.439999999999},{"$f":"Comparativo!O46","v":10801.146666666667}]
[]
[null,"Opción 3"]
[null,"Suma asegurada (mxn)",{"$f":"Comparativo!D53","v":5000000},"Coaseguro",{"$f":"Comparativo!D57","v":0}]
[null,"Deducible (mxn)",{"$f":"Comparativo!D55","v":0},"Tipo de cliente",{"$f":"Comparativo!D50","v":"Nuevo negocio"}]
[null,{"$f":"Comparativo!E54","v":"Maternidad"},{"$f":"CONCATENATE(Comparativo!E55,\" \",Comparativo!F55)","v":"Titular: No"},null,{"$f":"CONCATENATE(Comparativo!E56,\" \",Comparativo!F56)","v":"Conyuge: No"}]
[null,"Concepto","Anual","Semestral","Trimestral","Mensual"]
[null,{"$f":"Comparativo!K51","v":"Prima del asegurado titular:"},{"$f":"Comparativo!L51","v":28112},{"$f":"Comparativo!M51","v":14688.519999999999},{"$f":"Comparativo!N51","v":7555.0999999999995},{"$f":"Comparativo!O51","v":2600.36}]
[null,{"$f":"Comparativo!K52","v":"Prima cónyuge:"},{"$f":"Comparativo!L52","v":20906},{"$f":"Comparativo!M52","v":10923.384999999998},{"$f":"Comparativo!N52","v":5618.4875000000002},{"$f":"Comparativo!O52","v":1933.8050000000003}]
[null,{"$f":"Comparativo!K53","v":"Prima hijo(s):"},{"$f":"Comparativo!L53","v":41812},{"$f":"Comparativo!M53","v":21846.769999999997},{"$f":"Comparativo!N53","v":11236.975},{"$f":"Comparativo!O53","v":3867.6100000000006}]
[null,{"$f":"Comparativo!K54","v":"Dependientes económicos"},{"$f":"Comparativo!L54","v":20906},{"$f":"Comparativo!M54","v":10923.384999999998},{"$f":"Comparativo!N54","v":5618.4875000000002},{"$f":"Comparativo!O54","v":1933.8050000000003}]
[null,{"$f":"Comparativo!K55","v":"Total Prima:"},{"$f":"Comparativo!L55","v":111736},{"$f":"Comparativo!M55","v":58382.06},{"$f":"Comparativo!N55","v":30029.05},{"$f":"Comparativo!O55","v":10335.580000000002}]
[null,{"$f":"Comparativo!K56","v":"Asistencia en el extranjero:"},{"$f":"Comparativo!L56","v":1632},{"$f":"Comparativo!M56","v":1632},{"$f":"Comparativo!N56","v":1632},{"$f":"Comparativo!O56","v":1632}]
[null,{"$f":"Comparativo!K57","v":"Derecho de póliza:"},{"$f":"Comparativo!L57","v":1500},{"$f":"Comparativo!M57","v":1500},{"$f":"Comparativo!N57","v":1500},{"$f":"Comparativo!O57","v":1500}]
[null,{"$f":"Comparativo!K58","v":"Total descuento\n(derecho de póliza y recargo por pago fraccionado)"},{"$f":"Comparativo!L58","v":-1500},{"$f":"Comparativo!M58","v":-6528.1199999999953},{"$f":"Comparativo!N58","v":-9880.1999999999971},{"$f":"Comparativo!O58","v":-13790.960000000021}]
[null,{"$f":"Comparativo!K59","v":"IVA (16%)"},{"$f":"Comparativo!L59","v":18138.88},{"$f":"Comparativo!M59","v":18138.88},{"$f":"Comparativo!N59","v":18138.88},{"$f":"Comparativo!O59","v":18138.88}]
[null,{"$f":"Comparativo!K60","v":"Costo total:"},{"$f":"Comparativo!L60","v":131506.88},{"$f":"Comparativo!M60","v":131506.88},{"$f":"Comparativo!N60","v":131506.88},{"$f":"Comparativo!O60","v":131506.88}]
[null,{"$f":"Comparativo!K61","v":"Primer Pago:"},{"$f":"Comparativo!L61","v":0},{"$f":"Comparativo!M61","v":66700},{"$f":"Comparativo!N61","v":34296.559999999998},{"$f":"Comparativo!O61","v":12694.266666666666}]
[null,{"$f":"Comparativo!K62","v":"Pagos Subsecuentes:"},{"$f":"Comparativo!L62","v":0},{"$f":"Comparativo!M62","v":64806.879999999997},{"$f":"Comparativo!N62","v":32403.439999999999},{"$f":"Comparativo!O62","v":10801.146666666667}]
[null,"La presente cotización es de carácter informativo, no constituye una solicitud de seguro y/o el monto de la prima definitiva y/o las condiciones de la misma y/o una oferta de aseguramiento en términos del artículo 5to de la Ley Sobre el Contrato de Seguro. La emisión de la póliza así como posibles cambios en la tarifa están sujetos a valoración del riesgo de acuerdo con las políticas de Suscripción de Bupa México y es susceptible de modificaciones, por lo que Bupa podrá aceptar o negar el aseguramiento del riesgo propuesto."]

{"sheet":"Brochure","index":5,"n_rows":0,"n_cols":0,"rows_kept":0,"cut":false,"hidden":false,"merged":[]}

{"sheet":"Versión","index":6,"n_rows":3,"n_cols":3,"rows_kept":3,"cut":false,"hidden":false,"merged":[[1,0,1,1]]}
[]
["V.23"]
["Actualización: ","2022-07-20","(A.Ext)"]

{"sheet":"Objetos Estructura","index":7,"n_rows":4,"n_cols":6,"rows_kept":4,"cut":false,"hidden":true,"merged":[]}
["Estructuras Maestras"]
[]
["Estructura asegurado"]
[null,"Seleccione una opción","Masculino","10","06",1980]

{"sheet":"Master","index":8,"n_rows":87,"n_cols":41,"rows_kept":87,"cut":false,"hidden":true,"merged":[[0,17,0,18],[1,21,1,22],[0,28,0,29],[0,30,0,31],[0,32,0,33]]}
["Datos Maestros",null,null,null,null,null,null,null,null,null,null,null,null,null,null,null,null,"Prima Base",null,null,null,null,null,null,null,null,null,null,"Prima Riesgo Nuevo NN Eliminacion periodos de espera",null,"Prima Tarifa Nuevo Producto NN Eliminacion periodos de espera",null,"Prima Tarifa Nuevo Producto Ren Eliminacion periodos de espera",null,"Tarifa Base, elimación","Aceptación Periodos de Espera","Bupa Internacional",null,"Aplica descuento nuevo negocio","Asistencia en el extranjero","Aplica descuento por pago fraccionado"]
["Genero","Lugares de residencia","Zona","FD Zona","Parentezco","Dias","Meses","Años","Tipo Cliente","Factor descuento","Sumas aseguradas","FD Suma asegurada","Deducibles","Maternidad Aplica","FD Deducible","Coasegurado","FD Coasegurado","Edad",40000,"Factor es mujer","Administración","Factor descuento",null,"Recargos","NN","Renovacion","Transfer","Seguro dental","Edad","Valor","Edad","Valor","Edad","Valor","Valor","Valor","Valor",null,"Si","Si","Si"]
["Masculino","Zona 1: CDMX, Area Metropolitana y Monterrey","Zona 1",0.8,"Seleccione una opción","01","01",1946,"Nuevo negocio",1,1000000,0.87261999999999995,0,"Si",1,0,1,0,16257.969000000003,2600,1500,"Tipo cliente",{"$f":"VLOOKUP('Datos Asegurado'!C24,Master!I3:J5,2,FALSE)","v":1},"Administracion",0.15,0.15,0.15,400,{"$f":"R3","v":0},{"$f":"S3*$W$14+$AB$3","v":{"$error":"#N/A"}},{"$f":"AC3","v":0},{"$f":"AD3/(1-SUM($Y$3:$Y$5))","v":{"$error":"#N/A"}},{"$f":"AE3","v":0},{"$f":"AD3/(1-SUM($Z$3:$Z$5))","v":{"$error":"#N/A"}},{"$f":"AF3","v":{"$error":"#N/A"}},{"$f":"AI3*90%","v":{"$error":"#N/A"}},{"$f":"AI3","v":{"$error":"#N/A"}},null,"No","No","No"]
["Femenino","Zona 2: Republica mexicana, excepto CDMX, Area Metropolitana y Monterrey","Zona 2",1,"Conyuge","02","02",1947,null,null,2000000,null,null,null,null,null,null,1,14413.027840764884,null,null,"Zona",{"$f":"VLOOKUP('Datos Asegurado'!C11,Master!B3:D35,3,FALSE)","v":0.8},"Adquisicion",0.2,0.17,0.09,null,1,{"$f":"S4*$W$14+$AB$3","v":{"$error":"#N/A"}},{"$f":"AC4","v":1},{"$f":"AD4/(1-SUM($Y$3:$Y$5))","v":{"$error":"#N/A"}},{"$f":"AE4","v":1},{"$f":"AD4/(1-SUM($Z$3:$Z$5))","v":{"$error":"#N/A"}},{"$f":"AF4","v":{"$error":"#N/A"}},{"$f":"AI4*90%","v":{"$error":"#N/A"}},{"$f":"AI4","v":{"$error":"#N/A"}}]
[null,null,null,1,"Hij@","03","03",1948,null,null,3000000,null,null,null,null,null,null,2,12422.519968606075,null,null,"Suma asegurada",{"$f":"VLOOKUP('Datos Asegurado'!C27,Master!K3:L6,2,FALSE)","v":{"$error":"#N/A"}},"Utilidad",0.04,0.04,0.04,null,2,{"$error":"#N/A"},2,{"$error":"#N/A"},2,{"$error":"#N/A"},{"$error":"#N/A"},{"$error":"#N/A"},{"$error":"#N/A"}]
[null,null,null,0.8,"Dependiente economico","04","04",1949,null,null,4000000,null,null,null,null,null,null,3,11563.463583180401,null,null,"Deducible",{"$f":"VLOOKUP('Datos Asegurado'!C29,Master!M3:O11,3,FALSE)","v":1},"Total",{"$f":"SUM(Y3:Y5)","v":0.38999999999999996},{"$f":"SUM(Z3:Z5)","v":0.36},{"$f":"SUM(AA3:AA5)","v":0.27999999999999997},null,3,{"$error":"#N/A"},3,{"$error":"#N/A"},3,{"$error":"#N/A"},{"$error":"#N/A"},{"$error":"#N/A"},{"$error":"#N/A"}]
[null,null,null,0.8,null,"05","05",1950,null,null,5000000,null,null,null,null,null,null,4,10630.927064436317,null,null,"Coasegurado",{"$f":"VLOOKUP('Datos Asegurado'!C31,Master!P3:Q7,2,FALSE)","v":1},"1-Total",{"$f":"1-Y6","v":0.6100000000000001},{"$f":"1-Z6","v":0.64},{"$f":"1-AA6","v":0.72},null,4,{"$error":"#N/A"},4,{"$error":"#N/A"},4,{"$error":"#N/A"},{"$error":"#N/A"},{"$error":"#N/A"},{"$error":"#N/A"}]
[null,null,null,0.8,null,"06","06",1951,null,null,null,null,null,null,null,null,null,5,10995.294412953532,null,null,"Cobertura Extranjero: (no)",0.85492999999999997,null,null,null,null,null,5,{"$error":"#N/A"},5,{"$error":"#N/A"},5,{"$error":"#N/A"},{"$error":"#N/A"},{"$error":"#N/A"},{"$error":"#N/A"}]
[null,null,null,0.8,null,"07","07",1952,null,null,null,null,null,null,null,null,null,6,11372.150189230695,null,null,"Reducción Honorarios: (Reducido)",0.9,null,null,null,null,null,6,{"$error":"#N/A"},6,{"$error":"#N/A"},6,{"$error":"#N/A"},{"$error":"#N/A"},{"$error":"#N/A"},{"$error":"#N/A"}]
[null,null,null,0.8,null,"08","08",1953,null,null,null,null,null,null,null,null,null,7,11761.922425111356,null,null,"Copago Medicamentos: (0)",1,null,null,null,null,null,7,{"$error":"#N/A"},7,{"$error":"#N/A"},7,{"$error":"#N/A"},{"$error":"#N/A"},{"$error":"#N/A"},{"$error":"#N/A"}]
[null,null,null,1,null,"09","09",1954,null,null,null,null,null,null,null,null,null,8,12165.053822921418,null,null,"Reduccion a Consultas: (25)",0.98,null,null,null,null,null,8,{"$error":"#N/A"},8,{"$error":"#N/A"},8,{"$error":"#N/A"},{"$error":"#N/A"},{"$error":"#N/A"},{"$error":"#N/A"}]
[null,null,null,0.8,null,"10","10",1955,null,null,null,null,null,null,null,null,null,9,12582.002258289331,null,null,"Re. Renuncia utilidad: (Si)",0.95,null,null,null,null,null,9,{"$error":"#N/A"},9,{"$error":"#N/A"},9,{"$error":"#N/A"},{"$error":"#N/A"},{"$error":"#N/A"},{"$error":"#N/A"}]
[null,null,null,0.8,null,"11","11",1956,null,null,null,null,null,null,null,null,null,10,13013.241300200078,null,null,"Re. Adicional Actuarial: (Si)",0.95,null,null,null,null,null,10,{"$error":"#N/A"},10,{"$error":"#N/A"},10,{"$error":"#N/A"},{"$error":"#N/A"},{"$error":"#N/A"},{"$error":"#N/A"}]
[null,null,null,0.8,null,"12","12",1957,null,null,null,null,null,null,null,null,null,11,13459.260748873632,null,null,"Factor descuento sin tipo cliente",{"$f":"W5*W6*W7*W8*W9*W10*W11*W12*W13*W4","v":{"$error":"#N/A"}},null,null,null,null,null,11,{"$error":"#N/A"},11,{"$error":"#N/A"},11,{"$error":"#N/A"},{"$error":"#N/A"},{"$error":"#N/A"},{"$error":"#N/A"}]
[null,null,null,0.8,null,"13",null,1958,null,null,null,null,null,null,null,null,null,12,13920.567192078823,null,null,"Factor descuento con tipo cliente",{"$f":"W3*W4*W5*W6*W7*W8*W9*W10*W11*W12*W13","v":{"$error":"#N/A"}},null,null,null,null,null,12,{"$error":"#N/A"},12,{"$error":"#N/A"},12,{"$error":"#N/A"},{"$error":"#N/A"},{"$error":"#N/A"},{"$error":"#N/A"}]
[null,null,null,0.8,null,"14",null,1959,null,null,null,null,null,null,null,null,null,13,14397.684580514455,null,null,null,null,null,null,null,null,null,13,{"$error":"#N/A"},13,{"$error":"#N/A"},13,{"$error":"#N/A"},{"$error":"#N/A"},{"$error":"#N/A"},{"$error":"#N/A"}]
[null,null,null,1,null,"15",null,1960,null,null,null,null,null,null,null,null,null,14,14891.15482291118,null,null,null,null,null,null,null,null,null,14,{"$error":"#N/A"},14,{"$error":"#N/A"},14,{"$error":"#N/A"},{"$error":"#N/A"},{"$error":"#N/A"},{"$error":"#N/A"}]
[null,null,null,0.8,null,"16",null,1961,null,null,null,null,null,null,null,null,null,15,15401.538401530081,null,null,null,null,null,null,null,null,null,15,{"$error":"#N/A"},15,{"$error":"#N/A"},15,{"$error":"#N/A"},{"$error":"#N/A"},{"$error":"#N/A"},{"$error":"#N/A"}]
[null,null,null,0.8,null,"17",null,1962,null,null,null,null,null,null,null,null,null,16,15929.415008757012,null,null,null,null,null,null,null,null,null,16,{"$error":"#N/A"},16,{"$error":"#N/A"},16,{"$error":"#N/A"},{"$error":"#N/A"},{"$error":"#N/A"},{"$error":"#N/A"}]
[null,null,null,0.8,null,"18",null,1963,null,null,null,null,null,null,null,null,null,17,16475.384205515762,null,null,null,null,null,null,null,null,null,17,{"$error":"#N/A"},17,{"$error":"#N/A"},17,{"$error":"#N/A"},{"$error":"#N/A"},{"$error":"#N/A"},{"$error":"#N/A"}]
[null,null,null,1,null,"19",null,1964,null,null,null,null,null,null,null,null,null,18,16973.026013074697,null,null,null,null,null,null,null,null,null,18,{"$error":"#N/A"},18,{"$error":"#N/A"},18,{"$error":"#N/A"},{"$error":"#N/A"},{"$error":"#N/A"},{"$error":"#N/A"}]
[null,null,null,0.8,null,"20",null,1965,null,null,null,null,null,null,null,null,null,19,17712.20798378098,null,null,null,null,null,null,null,null,null,19,{"$error":"#N/A"},19,{"$error":"#N/A"},19,{"$error":"#N/A"},{"$error":"#N/A"},{"$error":"#N/A"},{"$error":"#N/A"}]
[null,null,null,0.8,null,"21",null,1966,null,null,null,null,null,null,null,null,null,20,18521.788237411674,null,null,null,null,null,null,null,null,null,20,{"$error":"#N/A"},20,{"$error":"#N/A"},20,{"$error":"#N/A"},{"$error":"#N/A"},{"$error":"#N/A"},{"$error":"#N/A"}]
[null,null,null,0.8,null,"22",null,1967,null,null,null,null,null,null,null,null,null,21,19331.368491042362,null,null,null,null,null,null,null,null,null,21,{"$error":"#N/A"},21,{"$error":"#N/A"},21,{"$error":"#N/A"},{"$error":"#N/A"},{"$error":"#N/A"},{"$error":"#N/A"}]
[null,null,null,1,null,"23",null,1968,null,null,null,null,null,null,null,null,null,22,20091.669946625963,null,null,null,null,null,null,null,null,null,22,{"$error":"#N/A"},22,{"$error":"#N/A"},22,{"$error":"#N/A"},{"$error":"#N/A"},{"$error":"#N/A"},{"$error":"#N/A"}]
[null,null,null,0.8,null,"24",null,1969,null,null,null,null,null,null,null,null,null,23,20957.56882659618,null,null,null,null,null,null,null,null,null,23,{"$error":"#N/A"},23,{"$error":"#N/A"},23,{"$error":"#N/A"},{"$error":"#N/A"},{"$error":"#N/A"},{"$error":"#N/A"}]
[null,null,null,0.8,null,"25",null,1970,null,null,null,null,null,null,null,null,null,24,21767.149080226867,null,null,null,null,null,null,null,null,null,24,{"$error":"#N/A"},24,{"$error":"#N/A"},24,{"$error":"#N/A"},{"$error":"#N/A"},{"$error":"#N/A"},{"$error":"#N/A"}]
[null,null,null,0.8,null,"26",null,1971,null,null,null,null,null,null,null,null,null,25,22330.335343622126,null,null,null,null,null,null,null,null,null,25,{"$error":"#N/A"},25,{"$error":"#N/A"},25,{"$error":"#N/A"},{"$error":"#N/A"},{"$error":"#N/A"},{"$error":"#N/A"}]
[null,null,null,1,null,"27",null,1972,null,null,null,null,null,null,null,null,null,26,23196.234223592342,null,null,null,null,null,null,null,null,null,26,{"$error":"#N/A"},26,{"$error":"#N/A"},26,{"$error":"#N/A"},{"$error":"#N/A"},{"$error":"#N/A"},{"$error":"#N/A"}]
[null,null,null,0.8,null,"28",null,1973,null,null,null,null,null,null,null,null,null,27,24033.973790392793,null,null,null,null,null,null,null,null,null,27,{"$error":"#N/A"},27,{"$error":"#N/A"},27,{"$error":"#N/A"},{"$error":"#N/A"},{"$error":"#N/A"},{"$error":"#N/A"}]
[null,null,null,0.8,null,"29",null,1974,null,null,null,null,null,null,null,null,null,28,24899.872670363009,null,null,null,null,null,null,null,null,null,28,{"$error":"#N/A"},28,{"$error":"#N/A"},28,{"$error":"#N/A"},{"$error":"#N/A"},{"$error":"#N/A"},{"$error":"#N/A"}]
[null,null,null,0.8,null,"30",null,1975,null,null,null,null,null,null,null,null,null,29,25962.886742521569,null,null,null,null,null,null,null,null,null,29,{"$error":"#N/A"},29,{"$error":"#N/A"},29,{"$error":"#N/A"},{"$error":"#N/A"},{"$error":"#N/A"},{"$error":"#N/A"}]
[null,null,null,0.8,null,"31",null,1976,null,null,null,null,null,null,null,null,null,30,28307.93176704795,null,null,null,null,null,null,null,null,null,30,{"$error":"#N/A"},30,{"$error":"#N/A"},30,{"$error":"#N/A"},{"$error":"#N/A"},{"$error":"#N/A"},{"$error":"#N/A"}]
[null,null,null,0.8,null,null,null,1977,null,null,null,null,null,null,null,null,null,31,29506.423423678807,null,null,null,null,null,null,null,null,null,31,{"$error":"#N/A"},31,{"$error":"#N/A"},31,{"$error":"#N/A"},{"$error":"#N/A"},{"$error":"#N/A"},{"$error":"#N/A"}]
[null,null,null,0.8,null,null,null,1978,null,null,null,null,null,null,null,null,null,32,30690.209661209905,null,null,null,null,null,null,null,null,null,32,{"$error":"#N/A"},32,{"$error":"#N/A"},32,{"$error":"#N/A"},{"$error":"#N/A"},{"$error":"#N/A"},{"$error":"#N/A"}]
[null,null,null,null,null,null,null,1979,null,null,null,null,null,null,null,null,null,33,31513.713130796754,null,null,null,null,null,null,null,null,null,33,{"$error":"#N/A"},33,{"$error":"#N/A"},33,{"$error":"#N/A"},{"$error":"#N/A"},{"$error":"#N/A"},{"$error":"#N/A"}]
[null,null,null,null,null,null,null,1980,null,null,null,null,null,null,null,null,null,34,32396.038276782663,null,null,null,null,null,null,null,null,null,34,{"$error":"#N/A"},34,{"$error":"#N/A"},34,{"$error":"#N/A"},{"$error":"#N/A"},{"$error":"#N/A"},{"$error":"#N/A"}]
[null,null,null,null,null,null,null,1981,null,null,null,null,null,null,null,null,null,35,33212.18903681964,null,null,null,null,null,null,null,null,null,{"$f":"R38","v":35},{"$error":"#N/A"},35,{"$error":"#N/A"},35,{"$error":"#N/A"},{"$error":"#N/A"},{"$error":"#N/A"},{"$error":"#N/A"}]
[null,null,null,null,null,null,null,1982,null,null,null,null,null,null,null,null,null,36,34065.10334460601,null,null,null,null,null,null,null,null,null,36,{"$error":"#N/A"},36,{"$error":"#N/A"},36,{"$error":"#N/A"},{"$error":"#N/A"},{"$error":"#N/A"},{"$error":"#N/A"}]
[null,null,null,null,null,null,null,1983,null,null,null,null,null,null,null,null,null,37,34918.017652392395,null,null,null,null,null,null,null,null,null,37,{"$error":"#N/A"},37,{"$error":"#N/A"},37,{"$error":"#N/A"},{"$error":"#N/A"},{"$error":"#N/A"},{"$error":"#N/A"}]
[null,null,null,null,null,null,null,1984,null,null,null,null,null,null,null,null,null,38,35734.168412429361,null,null,null,null,null,null,null,null,null,38,{"$error":"#N/A"},38,{"$error":"#N/A"},38,{"$error":"#N/A"},{"$error":"#N/A"},{"$error":"#N/A"},{"$error":"#N/A"}]
[null,null,null,null,null,null,null,1985,null,null,null,null,null,null,null,null,null,39,36851.780264011511,null,null,null,null,null,null,null,null,null,39,{"$error":"#N/A"},39,{"$error":"#N/A"},39,{"$error":"#N/A"},{"$error":"#N/A"},{"$error":"#N/A"},{"$error":"#N/A"}]
[null,null,null,null,null,null,null,1986,null,null,null,null,null,null,null,null,null,40,37866.454181895308,null,null,null,null,null,null,null,null,null,40,{"$error":"#N/A"},40,{"$error":"#N/A"},40,{"$error":"#N/A"},{"$error":"#N/A"},{"$error":"#N/A"},{"$error":"#N/A"}]
[null,null,null,null,null,null,null,1987,null,null,null,null,null,null,null,null,null,41,38866.42268067933,null,null,null,null,null,null,null,null,null,41,{"$error":"#N/A"},41,{"$error":"#N/A"},41,{"$error":"#N/A"},{"$error":"#N/A"},{"$error":"#N/A"},{"$error":"#N/A"}]
[null,null,null,null,null,null,null,1988,null,null,null,null,null,null,null,null,null,42,39881.096598563126,null,null,null,null,null,null,null,null,null,42,{"$error":"#N/A"},42,{"$error":"#N/A"},42,{"$error":"#N/A"},{"$error":"#N/A"},{"$error":"#N/A"},{"$error":"#N/A"}]
[null,null,null,null,null,null,null,1989,null,null,null,null,null,null,null,null,null,43,41042.824707444583,null,null,null,null,null,null,null,null,null,43,{"$error":"#N/A"},43,{"$error":"#N/A"},43,{"$error":"#N/A"},{"$error":"#N/A"},{"$error":"#N/A"},{"$error":"#N/A"}]
[null,null,null,null,null,null,null,1990,null,null,null,null,null,null,null,null,null,44,42241.316364075443,null,null,null,null,null,null,null,null,null,44,{"$error":"#N/A"},44,{"$error":"#N/A"},44,{"$error":"#N/A"},{"$error":"#N/A"},{"$error":"#N/A"},{"$error":"#N/A"}]
[null,null,null,null,null,null,null,1991,null,null,null,null,null,null,null,null,null,45,43879.640848355128,null,null,null,null,null,null,null,null,null,45,{"$error":"#N/A"},45,{"$error":"#N/A"},45,{"$error":"#N/A"},{"$error":"#N/A"},{"$error":"#N/A"},{"$error":"#N/A"}]
[null,null,null,null,null,null,null,1992,null,null,null,null,null,null,null,null,null,46,45128.037065547964,null,null,null,null,null,null,null,null,null,46,{"$error":"#N/A"},46,{"$error":"#N/A"},46,{"$error":"#N/A"},{"$error":"#N/A"},{"$error":"#N/A"},{"$error":"#N/A"}]
[null,null,null,null,null,null,null,1993,null,null,null,null,null,null,null,null,null,47,46316.985843826849,null,null,null,null,null,null,null,null,null,47,{"$error":"#N/A"},47,{"$error":"#N/A"},47,{"$error":"#N/A"},{"$error":"#N/A"},{"$error":"#N/A"},{"$error":"#N/A"}]
[null,null,null,null,null,null,null,1994,null,null,null,null,null,null,null,null,null,48,48598.281312149455,null,null,null,null,null,null,null,null,null,48,{"$error":"#N/A"},48,{"$error":"#N/A"},48,{"$error":"#N/A"},{"$error":"#N/A"},{"$error":"#N/A"},{"$error":"#N/A"}]
[null,null,null,null,null,null,null,1995,null,null,null,null,null,null,null,null,null,49,50188.500303097469,null,null,null,null,null,null,null,null,null,49,{"$error":"#N/A"},49,{"$error":"#N/A"},49,{"$error":"#N/A"},{"$error":"#N/A"},{"$error":"#N/A"},{"$error":"#N/A"}]
[null,null,null,null,null,null,null,1996,null,null,null,null,null,null,null,null,null,50,52090.974788972402,null,null,null,null,null,null,null,null,null,50,{"$error":"#N/A"},50,{"$error":"#N/A"},50,{"$error":"#N/A"},{"$error":"#N/A"},{"$error":"#N/A"},{"$error":"#N/A"}]
[null,null,null,null,null,null,null,1997,null,null,null,null,null,null,null,null,null,51,53427.603520763827,null,null,null,null,null,null,null,null,null,51,{"$error":"#N/A"},51,{"$error":"#N/A"},51,{"$error":"#N/A"},{"$error":"#N/A"},{"$error":"#N/A"},{"$error":"#N/A"}]
[null,null,null,null,null,null,null,1998,null,null,null,null,null,null,null,null,null,52,55865.808939693517,null,null,null,null,null,null,null,null,null,52,{"$error":"#N/A"},52,{"$error":"#N/A"},52,{"$error":"#N/A"},{"$error":"#N/A"},{"$error":"#N/A"},{"$error":"#N/A"}]
[null,null,null,null,null,null,null,1999,null,null,null,null,null,null,null,null,null,53,59037.329805752437,null,null,null,null,null,null,null,null,null,53,{"$error":"#N/A"},53,{"$error":"#N/A"},53,{"$error":"#N/A"},{"$error":"#N/A"},{"$error":"#N/A"},{"$error":"#N/A"}]
[null,null,null,null,null,null,null,2000,null,null,null,null,null,null,null,null,null,54,62777.903458783665,null,null,null,null,null,null,null,null,null,54,{"$error":"#N/A"},54,{"$error":"#N/A"},54,{"$error":"#N/A"},{"$error":"#N/A"},{"$error":"#N/A"},{"$error":"#N/A"}]
[null,null,null,null,null,null,null,2001,null,null,null,null,null,null,null,null,null,55,67440.851058753353,null,null,null,null,null,null,null,null,null,55,{"$error":"#N/A"},55,{"$error":"#N/A"},55,{"$error":"#N/A"},{"$error":"#N/A"},{"$error":"#N/A"},{"$error":"#N/A"}]
[null,null,null,null,null,null,null,2002,null,null,null,null,null,null,null,null,null,56,72945.292800612777,null,null,null,null,null,null,null,null,null,56,{"$error":"#N/A"},56,{"$error":"#N/A"},56,{"$error":"#N/A"},{"$error":"#N/A"},{"$error":"#N/A"},{"$error":"#N/A"}]
[null,null,null,null,null,null,null,2003,null,null,null,null,null,null,null,null,null,57,76482.180755049383,null,null,null,null,null,null,null,null,null,57,{"$error":"#N/A"},57,{"$error":"#N/A"},57,{"$error":"#N/A"},{"$error":"#N/A"},{"$error":"#N/A"},{"$error":"#N/A"}]
[null,null,null,null,null,null,null,2004,null,null,null,null,null,null,null,null,null,58,82089.638650921552,null,null,null,null,null,null,null,null,null,58,{"$error":"#N/A"},58,{"$error":"#N/A"},58,{"$error":"#N/A"},{"$error":"#N/A"},{"$error":"#N/A"},{"$error":"#N/A"}]
[null,null,null,null,null,null,null,2005,null,null,null,null,null,null,null,null,null,59,87834.060317238851,null,null,null,null,null,null,null,null,null,59,{"$error":"#N/A"},59,{"$error":"#N/A"},59,{"$error":"#N/A"},{"$error":"#N/A"},{"$error":"#N/A"},{"$error":"#N/A"}]
[null,null,null,null,null,null,null,2006,null,null,null,null,null,null,null,null,null,60,94150.507142474147,null,null,null,null,null,null,null,null,null,60,{"$error":"#N/A"},60,{"$error":"#N/A"},60,{"$error":"#N/A"},{"$error":"#N/A"},{"$error":"#N/A"},{"$error":"#N/A"}]
[null,null,null,null,null,null,null,2007,null,null,null,null,null,null,null,null,null,61,100587.80435339635,null,null,null,null,null,null,null,null,null,61,{"$error":"#N/A"},61,{"$error":"#N/A"},61,{"$error":"#N/A"},{"$error":"#N/A"},{"$error":"#N/A"},{"$error":"#N/A"}]
[null,null,null,null,null,null,null,2008,null,null,null,null,null,null,null,null,null,62,107226.51887379673,null,null,null,null,null,null,null,null,null,62,{"$error":"#N/A"},62,{"$error":"#N/A"},62,{"$error":"#N/A"},{"$error":"#N/A"},{"$error":"#N/A"},{"$error":"#N/A"}]
[null,null,null,null,null,null,null,2009,null,null,null,null,null,null,null,null,null,63,116830.0961897157,null,null,null,null,null,null,null,null,null,63,{"$error":"#N/A"},63,{"$error":"#N/A"},63,{"$error":"#N/A"},{"$error":"#N/A"},{"$error":"#N/A"},{"$error":"#N/A"}]
[null,null,null,null,null,null,null,2010,null,null,null,null,null,null,null,null,null,64,127859.7080567401,null,null,null,null,null,null,null,null,null,64,{"$error":"#N/A"},64,{"$error":"#N/A"},64,{"$error":"#N/A"},{"$error":"#N/A"},{"$error":"#N/A"},{"$error":"#N/A"}]
[null,null,null,null,null,null,null,2011,null,null,null,null,null,null,null,null,null,65,138163.35718618514,null,null,null,null,null,null,null,null,null,65,{"$f":"S68*$W$14+$AB$3","v":{"$error":"#N/A"}},{"$f":"AC68","v":65},{"$f":"AD68/(1-SUM($Y$3:$Y$5))","v":{"$error":"#N/A"}},{"$f":"AE68","v":65},{"$f":"AD68/(1-SUM($Z$3:$Z$5))","v":{"$error":"#N/A"}},{"$f":"AF68","v":{"$error":"#N/A"}},{"$f":"AI68*90%","v":{"$error":"#N/A"}},{"$f":"AI68","v":{"$error":"#N/A"}}]
[null,null,null,null,null,null,null,2012,null,null,null,null,null,null,null,null,null,66,147274.4594028907,null,null,null,null,null,null,null,null,null,66,{"$error":"#N/A"},66,{"$error":"#N/A"},66,{"$error":"#N/A"},{"$error":"#N/A"},{"$error":"#N/A"},{"$error":"#N/A"}]
[null,null,null,null,null,null,null,2013,null,null,null,null,null,null,null,null,null,67,156556.39478615948,null,null,null,null,null,null,null,null,null,67,{"$error":"#N/A"},67,{"$error":"#N/A"},67,{"$error":"#N/A"},{"$error":"#N/A"},{"$error":"#N/A"},{"$error":"#N/A"}]
[null,null,null,null,null,null,null,2014,null,null,null,null,null,null,null,null,null,68,169084.16033412964,null,null,null,null,null,null,null,null,null,68,{"$error":"#N/A"},68,{"$error":"#N/A"},68,{"$error":"#N/A"},{"$error":"#N/A"},{"$error":"#N/A"},{"$error":"#N/A"}]
[null,null,null,null,null,null,null,2015,null,null,null,null,null,null,null,null,null,69,181864.10817559794,null,null,null,null,null,null,null,null,null,69,{"$error":"#N/A"},69,{"$error":"#N/A"},69,{"$error":"#N/A"},{"$error":"#N/A"},{"$error":"#N/A"},{"$error":"#N/A"}]
[null,null,null,null,null,null,null,2016,null,null,null,null,null,null,null,null,null,70,194701.00040592061,null,null,null,null,null,null,null,null,null,70,{"$error":"#N/A"},70,{"$error":"#N/A"},70,{"$error":"#N/A"},{"$error":"#N/A"},{"$error":"#N/A"},{"$error":"#N/A"}]
[null,null,null,null,null,null,null,2017,null,null,null,null,null,null,null,null,null,71,207668.05123933902,null,null,null,null,null,null,null,null,null,71,{"$error":"#N/A"},71,{"$error":"#N/A"},71,{"$error":"#N/A"},{"$error":"#N/A"},{"$error":"#N/A"},{"$error":"#N/A"}]
[null,null,null,null,null,null,null,2018,null,null,null,null,null,null,null,null,null,72,220740.85593777284,null,null,null,null,null,null,null,null,null,72,{"$error":"#N/A"},72,{"$error":"#N/A"},72,{"$error":"#N/A"},{"$error":"#N/A"},{"$error":"#N/A"},{"$error":"#N/A"}]
[null,null,null,null,null,null,null,2019,null,null,null,null,null,null,null,null,null,73,236189.05514270486,null,null,null,null,null,null,null,null,null,73,{"$error":"#N/A"},73,{"$error":"#N/A"},73,{"$error":"#N/A"},{"$error":"#N/A"},{"$error":"#N/A"},{"$error":"#N/A"}]
[null,null,null,null,null,null,null,2020,null,null,null,null,null,null,null,null,null,74,251767.41295073269,null,null,null,null,null,null,null,null,null,74,{"$error":"#N/A"},74,{"$error":"#N/A"},74,{"$error":"#N/A"},{"$error":"#N/A"},{"$error":"#N/A"},{"$error":"#N/A"}]
[null,null,null,null,null,null,null,null,null,null,null,null,null,null,null,null,null,75,267500.33409993676,null,null,null,null,null,null,null,null,null,75,{"$error":"#N/A"},75,{"$error":"#N/A"},75,{"$error":"#N/A"},{"$error":"#N/A"},{"$error":"#N/A"},{"$error":"#N/A"}]
[null,null,null,null,null,null,null,null,null,null,null,null,null,null,null,null,null,76,283379.68367762357,null,null,null,null,null,null,null,null,null,76,{"$error":"#N/A"},76,{"$error":"#N/A"},76,{"$error":"#N/A"},{"$error":"#N/A"},{"$error":"#N/A"},{"$error":"#N/A"}]
[null,null,null,null,null,null,null,null,null,null,null,null,null,null,null,null,null,77,299372.92203301931,null,null,null,null,null,null,null,null,null,77,{"$error":"#N/A"},77,{"$error":"#N/A"},77,{"$error":"#N/A"},{"$error":"#N/A"},{"$error":"#N/A"},{"$error":"#N/A"}]
[null,null,null,null,null,null,null,null,null,null,null,null,null,null,null,null,null,78,315813.58058655675,null,null,null,null,null,null,null,null,null,78,{"$error":"#N/A"},78,{"$error":"#N/A"},78,{"$error":"#N/A"},{"$error":"#N/A"},{"$error":"#N/A"},{"$error":"#N/A"}]
[null,null,null,null,null,null,null,null,null,null,null,null,null,null,null,null,null,79,332441.34213204443,null,null,null,null,null,null,null,null,null,79,{"$error":"#N/A"},79,{"$error":"#N/A"},79,{"$error":"#N/A"},{"$error":"#N/A"},{"$error":"#N/A"},{"$error":"#N/A"}]
[null,null,null,null,null,null,null,null,null,null,null,null,null,null,null,null,null,80,349264.34158217575,null,null,null,null,null,null,null,null,null,80,{"$error":"#N/A"},80,{"$error":"#N/A"},80,{"$error":"#N/A"},{"$error":"#N/A"},{"$error":"#N/A"},{"$error":"#N/A"}]
[null,null,null,null,null,null,null,null,null,null,null,null,null,null,null,null,null,81,366062.93629422662,null,null,null,null,null,null,null,null,null,81,{"$error":"#N/A"},81,{"$error":"#N/A"},81,{"$error":"#N/A"},{"$error":"#N/A"},{"$error":"#N/A"},{"$error":"#N/A"}]
[null,null,null,null,null,null,null,null,null,null,null,null,null,null,null,null,null,82,383138.11803785607,null,null,null,null,null,null,null,null,null,82,{"$error":"#N/A"},82,{"$error":"#N/A"},82,{"$error":"#N/A"},{"$error":"#N/A"},{"$error":"#N/A"},{"$error":"#N/A"}]
[null,null,null,null,null,null,null,null,null,null,null,null,null,null,null,null,null,83,400359.72820996825,null,null,null,null,null,null,null,null,null,83,{"$error":"#N/A"},83,{"$error":"#N/A"},83,{"$error":"#N/A"},{"$error":"#N/A"},{"$error":"#N/A"},{"$error":"#N/A"}]
[null,null,null,null,null,null,null,null,null,null,null,null,null,null,null,null,null,84,417573.20346938702,null,null,null,null,null,null,null,null,null,84,{"$error":"#N/A"},84,{"$error":"#N/A"},84,{"$error":"#N/A"},{"$error":"#N/A"},{"$error":"#N/A"},{"$error":"#N/A"}]

{"sheet":"MasterBase","index":9,"n_rows":852,"n_cols":17,"rows_kept":852,"cut":false,"hidden":true,"merged":[[0,12,0,16]]}
["Producto Seleccionado",null,null,null,null,null,null,null,null,null,null,null,"Tarifas base"]
["Contrucción del plan seleccionado",null,null,null,null,null,null,null,null,null,null,null,"Llave de busqueda","PlanName","Region","LowAge","Rate"]
["Suma asegurada","Deducible","Coaseguro","Tipo de cliente","Código de producto",null,null,null,null,null,null,null,{"$f":"CONCATENATE(N3,O3,P3)","v":"NVFS1D0C0TC0Mexico Region 1 BNV0"},"NVFS1D0C0TC0","Mexico Region 1 BNV",0,9754]
[{"$f":"'Datos Asegurado'!C27/1000000","v":0},{"$f":"'Datos Asegurado'!C29/1000","v":0},{"$f":"'Datos Asegurado'!C31*100","v":0},0,{"$f":"CONCATENATE(\"NVFS\",A4,\"D\",B4,\"C\",C4,\"TC\",D4)","v":"NVFS0D0C0TC0"},null,null,null,null,null,null,null,"NVFS1D0C0TC0Mexico Region 1 BNV1","NVFS1D0C0TC0","Mexico Region 1 BNV",1,8696]
[null,null,null,null,null,null,null,null,null,null,null,null,"NVFS1D0C0TC0Mexico Region 1 BNV2","NVFS1D0C0TC0","Mexico Region 1 BNV",2,7556]
["Región seleccionada",null,null,null,null,null,null,null,null,null,null,null,"NVFS1D0C0TC0Mexico Region 1 BNV3","NVFS1D0C0TC0","Mexico Region 1 BNV",3,7065]
[{"$f":"IF('Datos Asegurado'!C11=\"Zona 1: CDMX, Area Metropolitana y Monterrey\",\"Mexico Region 1 BNV\",\"Mexico Region 2 (no CDMX, ZM y MTY)\")","v":"Mexico Region 1 BNV"},null,null,null,null,null,null,null,null,null,null,null,"NVFS1D0C0TC0Mexico Region 1 BNV4","NVFS1D0C0TC0","Mexico Region 1 BNV",4,6530]
[null,null,null,null,null,null,null,null,null,null,null,null,"NVFS1D0C0TC0Mexico Region 1 BNV5","NVFS1D0C0TC0","Mexico Region 1 BNV",5,6739]
["Edad titular","Sexo titular","Valor prima",null,null,null,null,null,null,null,null,null,"NVFS1D0C0TC0Mexico Region 1 BNV6","NVFS1D0C0TC0","Mexico Region 1 BNV",6,6954]
[{"$f":"'Datos Asegurado'!C8","v":0},{"$f":"IF('Datos Asegurado'!C9=\"Masculino\",\"Male\",\"Female\")","v":"Female"},{"$f":"IFERROR(VLOOKUP(CONCATENATE($E$4,$A$7,A10),$M$3:$Q$851,5,FALSE),0)","v":0},null,null,null,null,null,null,null,null,null,"NVFS1D0C0TC0Mexico Region 1 BNV7","NVFS1D0C0TC0","Mexico Region 1 BNV",7,7179]
[null,null,null,null,null,null,null,null,null,null,null,null,"NVFS1D0C0TC0Mexico Region 1 BNV8","NVFS1D0C0TC0","Mexico Region 1 BNV",8,7409]
[null,null,null,null,null,null,null,null,null,null,null,null,"NVFS1D0C0TC0Mexico Region 1 BNV9","NVFS1D0C0TC0","Mexico Region 1 BNV",9,7647]
["Conyuges",null,null,null,"Hijos",null,null,null,"Dependientes",null,null,null,"NVFS1D0C0TC0Mexico Region 1 BNV10","NVFS1D0C0TC0","Mexico Region 1 BNV",10,7895]
["Econyugues","S Conyugues","Valor prima",null,"E hijos","S Hijos","Valor prima",null,"E dependientes","S dependientes","Valor prima",null,"NVFS1D0C0TC0Mexico Region 1 BNV11","NVFS1D0C0TC0","Mexico Region 1 BNV",11,8151]
[{"$f":"IF('Datos Asegurado'!I6=\"Conyuge\",'Datos Asegurado'!N6,\"\")","v":""},{"$f":"IF('Datos Asegurado'!I6=\"Conyuge\",IF('Datos Asegurado'!J6=\"Masculino\",\"Male\",\"Female\"),\"\")","v":""},{"$f":"IFERROR(VLOOKUP(CONCATENATE($E$4,$A$7,A15),$M$3:$Q$852,5,FALSE),0)","v":0},null,{"$f":"IF('Datos Asegurado'!I6=\"Hij@\",'Datos Asegurado'!N6,\"\")","v":""},{"$f":"IF('Datos Asegurado'!I6=\"Hij@\",IF('Datos Asegurado'!J6=\"Masculino\",\"Male\",\"Female\"),\"\")","v":""},{"$f":"IFERROR(VLOOKUP(CONCATENATE($E$4,$A$7,E15),$M$3:$Q$852,5,FALSE),0)","v":0},null,{"$f":"IF('Datos Asegurado'!I6=\"Dependiente economico\",'Datos Asegurado'!N6,\"\")","v":""},{"$f":"IF('Datos Asegurado'!I6=\"Dependiente economico\",IF('Datos Asegurado'!J6=\"Masculino\",\"Male\",\"Female\"),\"\")","v":""},{"$f":"IFERROR(VLOOKUP(CONCATENATE($E$4,$A$7,I15),$M$3:$Q$852,5,FALSE),0)","v":0},null,"NVFS1D0C0TC0Mexico Region 1 BNV12","NVFS1D0C0TC0","Mexico Region 1 BNV",12,8414]
[{"$f":"IF('Datos Asegurado'!I7=\"Conyuge\",'Datos Asegurado'!N7,\"\")","v":""},{"$f":"IF('Datos Asegurado'!I7=\"Conyuge\",IF('Datos Asegurado'!J7=\"Masculino\",\"Male\",\"Female\"),\"\")","v":""},0,null,{"$f":"IF('Datos Asegurado'!I7=\"Hij@\",'Datos Asegurado'!N7,\"\")","v":""},{"$f":"IF('Datos Asegurado'!I7=\"Hij@\",IF('Datos Asegurado'!J7=\"Masculino\",\"Male\",\"Female\"),\"\")","v":""},0,null,{"$f":"IF('Datos Asegurado'!I7=\"Dependiente economico\",'Datos Asegurado'!N7,\"\")","v":""},{"$f":"IF('Datos Asegurado'!I7=\"Dependiente economico\",IF('Datos Asegurado'!J7=\"Masculino\",\"Male\",\"Female\"),\"\")","v":""},0,null,"NVFS1D0C0TC0Mexico Region 1 BNV13","NVFS1D0C0TC0","Mexico Region 1 BNV",13,8688]
[{"$f":"IF('Datos Asegurado'!I8=\"Conyuge\",'Datos Asegurado'!N8,\"\")","v":""},{"$f":"IF('Datos Asegurado'!I8=\"Conyuge\",IF('Datos Asegurado'!J8=\"Masculino\",\"Male\",\"Female\"),\"\")","v":""},0,null,{"$f":"IF('Datos Asegurado'!I8=\"Hij@\",'Datos Asegurado'!N8,\"\")","v":""},{"$f":"IF('Datos Asegurado'!I8=\"Hij@\",IF('Datos Asegurado'!J8=\"Masculino\",\"Male\",\"Female\"),\"\")","v":""},0,null,{"$f":"IF('Datos Asegurado'!I8=\"Dependiente economico\",'Datos Asegurado'!N8,\"\")","v":""},{"$f":"IF('Datos Asegurado'!I8=\"Dependiente economico\",IF('Datos Asegurado'!J8=\"Masculino\",\"Male\",\"Female\"),\"\")","v":""},0,null,"NVFS1D0C0TC0Mexico Region 1 BNV14","NVFS1D0C0TC0","Mexico Region 1 BNV",14,8970]
[{"$f":"IF('Datos Asegurado'!I9=\"Conyuge\",'Datos Asegurado'!N9,\"\")","v":""},{"$f":"IF('Datos Asegurado'!I9=\"Conyuge\",IF('Datos Asegurado'!J9=\"Masculino\",\"Male\",\"Female\"),\"\")","v":""},0,null,{"$f":"IF('Datos Asegurado'!I9=\"Hij@\",'Datos Asegurado'!N9,\"\")","v":""},{"$f":"IF('Datos Asegurado'!I9=\"Hij@\",IF('Datos Asegurado'!J9=\"Masculino\",\"Male\",\"Female\"),\"\")","v":""},0,null,{"$f":"IF('Datos Asegurado'!I9=\"Dependiente economico\",'Datos Asegurado'!N9,\"\")","v":""},{"$f":"IF('Datos Asegurado'!I9=\"Dependiente economico\",IF('Datos Asegurado'!J9=\"Masculino\",\"Male\",\"Female\"),\"\")","v":""},0,null,"NVFS1D0C0TC0Mexico Region 1 BNV15","NVFS1D0C0TC0","Mexico Region 1 BNV",15,9263]
[{"$f":"IF('Datos Asegurado'!I10=\"Conyuge\",'Datos Asegurado'!N10,\"\")","v":""},{"$f":"IF('Datos Asegurado'!I10=\"Conyuge\",IF('Datos Asegurado'!J10=\"Masculino\",\"Male\",\"Female\"),\"\")","v":""},0,null,{"$f":"IF('Datos Asegurado'!I10=\"Hij@\",'Datos Asegurado'!N10,\"\")","v":""},{"$f":"IF('Datos Asegurado'!I10=\"Hij@\",IF('Datos Asegurado'!J10=\"Masculino\",\"Male\",\"Female\"),\"\")","v":""},0,null,{"$f":"IF('Datos Asegurado'!I10=\"Dependiente economico\",'Datos Asegurado'!N10,\"\")","v":""},{"$f":"IF('Datos Asegurado'!I10=\"Dependiente economico\",IF('Datos Asegurado'!J10=\"Masculino\",\"Male\",\"Female\"),\"\")","v":""},0,null,"NVFS1D0C0TC0Mexico Region 1 BNV16","NVFS1D0C0TC0","Mexico Region 1 BNV",16,9565]
[{"$f":"IF('Datos Asegurado'!I11=\"Conyuge\",'Datos Asegurado'!N11,\"\")","v":""},{"$f":"IF('Datos Asegurado'!I11=\"Conyuge\",IF('Datos Asegurado'!J11=\"Masculino\",\"Male\",\"Female\"),\"\")","v":""},0,null,{"$f":"IF('Datos Asegurado'!I11=\"Hij@\",'Datos Asegurado'!N11,\"\")","v":""},{"$f":"IF('Datos Asegurado'!I11=\"Hij@\",IF('Datos Asegurado'!J11=\"Masculino\",\"Male\",\"Female\"),\"\")","v":""},0,null,{"$f":"IF('Datos Asegurado'!I11=\"Dependiente economico\",'Datos Asegurado'!N11,\"\")","v":""},{"$f":"IF('Datos Asegurado'!I11=\"Dependiente economico\",IF('Datos Asegurado'!J11=\"Masculino\",\"Male\",\"Female\"),\"\")","v":""},0,null,"NVFS1D0C0TC0Mexico Region 1 BNV17","NVFS1D0C0TC0","Mexico Region 1 BNV",17,9879]
[{"$f":"IF('Datos Asegurado'!I12=\"Conyuge\",'Datos Asegurado'!N12,\"\")","v":""},{"$f":"IF('Datos Asegurado'!I12=\"Conyuge\",IF('Datos Asegurado'!J12=\"Masculino\",\"Male\",\"Female\"),\"\")","v":""},0,null,{"$f":"IF('Datos Asegurado'!I12=\"Hij@\",'Datos Asegurado'!N12,\"\")","v":""},{"$f":"IF('Datos Asegurado'!I12=\"Hij@\",IF('Datos Asegurado'!J12=\"Masculino\",\"Male\",\"Female\"),\"\")","v":""},0,null,{"$f":"IF('Datos Asegurado'!I12=\"Dependiente economico\",'Datos Asegurado'!N12,\"\")","v":""},{"$f":"IF('Datos Asegurado'!I12=\"Dependiente economico\",IF('Datos Asegurado'!J12=\"Masculino\",\"Male\",\"Female\"),\"\")","v":""},0,null,{"$f":"CONCATENATE(N21,O21,P21)","v":"NVFS2D0C0TC0Mexico Region 1 BNV0"},"NVFS2D0C0TC0","Mexico Region 1 BNV",0,11084]
[{"$f":"IF('Datos Asegurado'!I13=\"Conyuge\",'Datos Asegurado'!N13,\"\")","v":""},{"$f":"IF('Datos Asegurado'!I13=\"Conyuge\",IF('Datos Asegurado'!J13=\"Masculino\",\"Male\",\"Female\"),\"\")","v":""},0,null,{"$f":"IF('Datos Asegurado'!I13=\"Hij@\",'Datos Asegurado'!N13,\"\")","v":""},{"$f":"IF('Datos Asegurado'!I13=\"Hij@\",IF('Datos Asegurado'!J13=\"Masculino\",\"Male\",\"Female\"),\"\")","v":""},0,null,{"$f":"IF('Datos Asegurado'!I13=\"Dependiente economico\",'Datos Asegurado'!N13,\"\")","v":""},{"$f":"IF('Datos Asegurado'!I13=\"Dependiente economico\",IF('Datos Asegurado'!J13=\"Masculino\",\"Male\",\"Female\"),\"\")","v":""},0,null,"NVFS2D0C0TC0Mexico Region 1 BNV1","NVFS2D0C0TC0","Mexico Region 1 BNV",1,9884]
[{"$f":"IF('Datos Asegurado'!I14=\"Conyuge\",'Datos Asegurado'!N14,\"\")","v":""},{"$f":"IF('Datos Asegurado'!I14=\"Conyuge\",IF('Datos Asegurado'!J14=\"Masculino\",\"Male\",\"Female\"),\"\")","v":""},0,null,{"$f":"IF('Datos Asegurado'!I14=\"Hij@\",'Datos Asegurado'!N14,\"\")","v":""},{"$f":"IF('Datos Asegurado'!I14=\"Hij@\",IF('Datos Asegurado'!J14=\"Masculino\",\"Male\",\"Female\"),\"\")","v":""},0,null,{"$f":"IF('Datos Asegurado'!I14=\"Dependiente economico\",'Datos Asegurado'!N14,\"\")","v":""},{"$f":"IF('Datos Asegurado'!I14=\"Dependiente economico\",IF('Datos Asegurado'!J14=\"Masculino\",\"Male\",\"Female\"),\"\")","v":""},0,null,"NVFS2D0C0TC0Mexico Region 1 BNV2","NVFS2D0C0TC0","Mexico Region 1 BNV",2,8588]
[null,"Total tarifa base",{"$f":"SUM(C15:C23)","v":0},null,null,"Total tarifa base",{"$f":"SUM(G15:G23)","v":0},null,null,"Total tarifa base",{"$f":"SUM(K15:K23)","v":0},null,"NVFS2D0C0TC0Mexico Region 1 BNV3","NVFS2D0C0TC0","Mexico Region 1 BNV",3,8028]
[null,null,null,null,null,null,null,null,null,null,null,null,"NVFS2D0C0TC0Mexico Region 1 BNV4","NVFS2D0C0TC0","Mexico Region 1 BNV",4,7421]
[null,null,null,null,null,null,null,null,null,null,null,null,"NVFS2D0C0TC0Mexico Region 1 BNV5","NVFS2D0C0TC0","Mexico Region 1 BNV",5,7658]
[null,null,null,null,null,null,null,null,null,null,null,null,"NVFS2D0C0TC0Mexico Region 1 BNV6","NVFS2D0C0TC0","Mexico Region 1 BNV",6,7904]
[null,null,null,null,null,null,null,null,null,null,null,null,"NVFS2D0C0TC0Mexico Region 1 BNV7","NVFS2D0C0TC0","Mexico Region 1 BNV",7,8158]
[null,null,null,null,null,null,null,null,null,null,null,null,"NVFS2D0C0TC0Mexico Region 1 BNV8","NVFS2D0C0TC0","Mexico Region 1 BNV",8,8421]
[null,null,null,null,null,null,null,null,null,null,null,null,"NVFS2D0C0TC0Mexico Region 1 BNV9","NVFS2D0C0TC0","Mexico Region 1 BNV",9,8691]
[null,null,null,null,null,null,null,null,null,null,null,null,"NVFS2D0C0TC0Mexico Region 1 BNV10","NVFS2D0C0TC0","Mexico Region 1 BNV",10,8972]
[null,null,null,null,null,null,null,null,null,null,null,null,"NVFS2D0C0TC0Mexico Region 1 BNV11","NVFS2D0C0TC0","Mexico Region 1 BNV",11,9263]
[null,null,null,null,null,null,null,null,null,null,null,null,"NVFS2D0C0TC0Mexico Region 1 BNV12","NVFS2D0C0TC0","Mexico Region 1 BNV",12,9563]
[null,null,null,null,null,null,null,null,null,null,null,null,"NVFS2D0C0TC0Mexico Region 1 BNV13","NVFS2D0C0TC0","Mexico Region 1 BNV",13,9874]
[null,null,null,null,null,null,null,null,null,null,null,null,"NVFS2D0C0TC0Mexico Region 1 BNV14","NVFS2D0C0TC0","Mexico Region 1 BNV",14,10195]
[null,null,null,null,null,null,null,null,null,null,null,null,"NVFS2D0C0TC0Mexico Region 1 BNV15","NVFS2D0C0TC0","Mexico Region 1 BNV",15,10528]
[null,null,null,null,null,null,null,null,null,null,null,null,"NVFS2D0C0TC0Mexico Region 1 BNV16","NVFS2D0C0TC0","Mexico Region 1 BNV",16,10870]
[null,null,null,null,null,null,null,null,null,null,null,null,{"$f":"CONCATENATE(N38,O38,P38)","v":"NVFS2D0C0TC0Mexico Region 1 BNV17"},"NVFS2D0C0TC0","Mexico Region 1 BNV",17,11226]
[null,null,null,null,null,null,null,null,null,null,null,null,"NVFS3D0C0TC0Mexico Region 1 BNV0","NVFS3D0C0TC0","Mexico Region 1 BNV",0,12009]
[null,null,null,null,null,null,null,null,null,null,null,null,{"$f":"CONCATENATE(N40,O40,P40)","v":"NVFS3D0C0TC0Mexico Region 1 BNV1"},"NVFS3D0C0TC0","Mexico Region 1 BNV",1,10707]
[null,null,null,null,null,null,null,null,null,null,null,null,"NVFS3D0C0TC0Mexico Region 1 BNV2","NVFS3D0C0TC0","Mexico Region 1 BNV",2,9304]
[null,null,null,null,null,null,null,null,null,null,null,null,"NVFS3D0C0TC0Mexico Region 1 BNV3","NVFS3D0C0TC0","Mexico Region 1 BNV",3,8698]
[null,null,null,null,null,null,null,null,null,null,null,null,"NVFS3D0C0TC0Mexico Region 1 BNV4","NVFS3D0C0TC0","Mexico Region 1 BNV",4,8040]
[null,null,null,null,null,null,null,null,null,null,null,null,"NVFS3D0C0TC0Mexico Region 1 BNV5","NVFS3D0C0TC0","Mexico Region 1 BNV",5,8296]
[null,null,null,null,null,null,null,null,null,null,null,null,"NVFS3D0C0TC0Mexico Region 1 BNV6","NVFS3D0C0TC0","Mexico Region 1 BNV",6,8563]
[null,null,null,null,null,null,null,null,null,null,null,null,"NVFS3D0C0TC0Mexico Region 1 BNV7","NVFS3D0C0TC0","Mexico Region 1 BNV",7,8839]
[null,null,null,null,null,null,null,null,null,null,null,null,"NVFS3D0C0TC0Mexico Region 1 BNV8","NVFS3D0C0TC0","Mexico Region 1 BNV",8,9123]
[null,null,null,null,null,null,null,null,null,null,null,null,"NVFS3D0C0TC0Mexico Region 1 BNV9","NVFS3D0C0TC0","Mexico Region 1 BNV",9,9416]
[null,null,null,null,null,null,null,null,null,null,null,null,"NVFS3D0C0TC0Mexico Region 1 BNV10","NVFS3D0C0TC0","Mexico Region 1 BNV",10,9719]
[null,null,null,null,null,null,null,null,null,null,null,null,"NVFS3D0C0TC0Mexico Region 1 BNV11","NVFS3D0C0TC0","Mexico Region 1 BNV",11,10035]
[null,null,null,null,null,null,null,null,null,null,null,null,"NVFS3D0C0TC0Mexico Region 1 BNV12","NVFS3D0C0TC0","Mexico Region 1 BNV",12,10360]
[null,null,null,null,null,null,null,null,null,null,null,null,"NVFS3D0C0TC0Mexico Region 1 BNV13","NVFS3D0C0TC0","Mexico Region 1 BNV",13,10696]
[null,null,null,null,null,null,null,null,null,null,null,null,"NVFS3D0C0TC0Mexico Region 1 BNV14","NVFS3D0C0TC0","Mexico Region 1 BNV",14,11044]
[null,null,null,null,null,null,null,null,null,null,null,null,"NVFS3D0C0TC0Mexico Region 1 BNV15","NVFS3D0C0TC0","Mexico Region 1 BNV",15,11404]
[null,null,null,null,null,null,null,null,null,null,null,null,"NVFS3D0C0TC0Mexico Region 1 BNV16","NVFS3D0C0TC0","Mexico Region 1 BNV",16,11777]
[null,null,null,null,null,null,null,null,null,null,null,null,{"$f":"CONCATENATE(N56,O56,P56)","v":"NVFS3D0C0TC0Mexico Region 1 BNV17"},"NVFS3D0C0TC0","Mexico Region 1 BNV",17,12161]
[null,null,null,null,null,null,null,null,null,null,null,null,"NVFS4D0C0TC0Mexico Region 1 BNV0","NVFS4D0C0TC0","Mexico Region 1 BNV",0,12665]
[null,null,null,null,null,null,null,null,null,null,null,null,{"$f":"CONCATENATE(N58,O58,P58)","v":"NVFS4D0C0TC0Mexico Region 1 BNV1"},"NVFS4D0C0TC0","Mexico Region 1 BNV",1,11291]
[null,null,null,null,null,null,null,null,null,null,null,null,"NVFS4D0C0TC0Mexico Region 1 BNV2","NVFS4D0C0TC0","Mexico Region 1 BNV",2,9812]
[null,null,null,null,null,null,null,null,null,null,null,null,"NVFS4D0C0TC0Mexico Region 1 BNV3","NVFS4D0C0TC0","Mexico Region 1 BNV",3,9172]
[null,null,null,null,null,null,null,null,null,null,null,null,"NVFS4D0C0TC0Mexico Region 1 BNV4","NVFS4D0C0TC0","Mexico Region 1 BNV",4,8479]
[null,null,null,null,null,null,null,null,null,null,null,null,"NVFS4D0C0TC0Mexico Region 1 BNV5","NVFS4D0C0TC0","Mexico Region 1 BNV",5,8749]
[null,null,null,null,null,null,null,null,null,null,null,null,"NVFS4D0C0TC0Mexico Region 1 BNV6","NVFS4D0C0TC0","Mexico Region 1 BNV",6,9030]
[null,null,null,null,null,null,null,null,null,null,null,null,"NVFS4D0C0TC0Mexico Region 1 BNV7","NVFS4D0C0TC0","Mexico Region 1 BNV",7,9321]
[null,null,null,null,null,null,null,null,null,null,null,null,"NVFS4D0C0TC0Mexico Region 1 BNV8","NVFS4D0C0TC0","Mexico Region 1 BNV",8,9619]
[null,null,null,null,null,null,null,null,null,null,null,null,"NVFS4D0C0TC0Mexico Region 1 BNV9","NVFS4D0C0TC0","Mexico Region 1 BNV",9,9930]
[null,null,null,null,null,null,null,null,null,null,null,null,"NVFS4D0C0TC0Mexico Region 1 BNV10","NVFS4D0C0TC0","Mexico Region 1 BNV",10,10251]
[null,null,null,null,null,null,null,null,null,null,null,null,"NVFS4D0C0TC0Mexico Region 1 BNV11","NVFS4D0C0TC0","Mexico Region 1 BNV",11,10582]
[null,null,null,null,null,null,null,null,null,null,null,null,"NVFS4D0C0TC0Mexico Region 1 BNV12","NVFS4D0C0TC0","Mexico Region 1 BNV",12,10925]
[null,null,null,null,null,null,null,null,null,null,null,null,{"$f":"CONCATENATE(N70,O70,P70)","v":"NVFS4D0C0TC0Mexico Region 1 BNV13"},"NVFS4D0C0TC0","Mexico Region 1 BNV",13,11281]
[null,null,null,null,null,null,null,null,null,null,null,null,{"$f":"CONCATENATE(N71,O71,P71)","v":"NVFS4D0C0TC0Mexico Region 1 BNV14"},"NVFS4D0C0TC0","Mexico Region 1 BNV",14,11647]
[null,null,null,null,null,null,null,null,null,null,null,null,{"$f":"CONCATENATE(N72,O72,P72)","v":"NVFS4D0C0TC0Mexico Region 1 BNV15"},"NVFS4D0C0TC0","Mexico Region 1 BNV",15,12026]
[null,null,null,null,null,null,null,null,null,null,null,null,{"$f":"CONCATENATE(N73,O73,P73)","v":"NVFS4D0C0TC0Mexico Region 1 BNV16"},"NVFS4D0C0TC0","Mexico Region 1 BNV",16,12419]
[null,null,null,null,null,null,null,null,null,null,null,null,"NVFS4D0C0TC0Mexico Region 1 BNV17","NVFS4D0C0TC0","Mexico Region 1 BNV",17,12826]
[null,null,null,null,null,null,null,null,null,null,null,null,{"$f":"CONCATENATE(N75,O75,P75)","v":"NVFS5D0C0TC0Mexico Region 1 BNV0"},"NVFS5D0C0TC0","Mexico Region 1 BNV",0,12900]
[null,null,null,null,null,null,null,null,null,null,null,null,{"$f":"CONCATENATE(N76,O76,P76)","v":"NVFS5D0C0TC0Mexico Region 1 BNV1"},"NVFS5D0C0TC0","Mexico Region 1 BNV",1,11502]
[null,null,null,null,null,null,null,null,null,null,null,null,{"$f":"CONCATENATE(N77,O77,P77)","v":"NVFS5D0C0TC0Mexico Region 1 BNV2"},"NVFS5D0C0TC0","Mexico Region 1 BNV",2,9995]
[null,null,null,null,null,null,null,null,null,null,null,null,{"$f":"CONCATENATE(N78,O78,P78)","v":"NVFS5D0C0TC0Mexico Region 1 BNV3"},"NVFS5D0C0TC0","Mexico Region 1 BNV",3,9344]
[null,null,null,null,null,null,null,null,null,null,null,null,{"$f":"CONCATENATE(N79,O79,P79)","v":"NVFS5D0C0TC0Mexico Region 1 BNV4"},"NVFS5D0C0TC0","Mexico Region 1 BNV",4,8637]
[null,null,null,null,null,null,null,null,null,null,null,null,{"$f":"CONCATENATE(N80,O80,P80)","v":"NVFS5D0C0TC0Mexico Region 1 BNV5"},"NVFS5D0C0TC0","Mexico Region 1 BNV",5,8912]
[null,null,null,null,null,null,null,null,null,null,null,null,{"$f":"CONCATENATE(N81,O81,P81)","v":"NVFS5D0C0TC0Mexico Region 1 BNV6"},"NVFS5D0C0TC0","Mexico Region 1 BNV",6,9198]
[null,null,null,null,null,null,null,null,null,null,null,null,{"$f":"CONCATENATE(N82,O82,P82)","v":"NVFS5D0C0TC0Mexico Region 1 BNV7"},"NVFS5D0C0TC0","Mexico Region 1 BNV",7,9495]
[null,null,null,null,null,null,null,null,null,null,null,null,{"$f":"CONCATENATE(N83,O83,P83)","v":"NVFS5D0C0TC0Mexico Region 1 BNV8"},"NVFS5D0C0TC0","Mexico Region 1 BNV",8,9800]
[null,null,null,null,null,null,null,null,null,null,null,null,{"$f":"CONCATENATE(N84,O84,P84)","v":"NVFS5D0C0TC0Mexico Region 1 BNV9"},"NVFS5D0C0TC0","Mexico Region 1 BNV",9,10116]
[null,null,null,null,null,null,null,null,null,null,null,null,{"$f":"CONCATENATE(N85,O85,P85)","v":"NVFS5D0C0TC0Mexico Region 1 BNV10"},"NVFS5D0C0TC0","Mexico Region 1 BNV",10,10442]
[null,null,null,null,null,null,null,null,null,null,null,null,{"$f":"CONCATENATE(N86,O86,P86)","v":"NVFS5D0C0TC0Mexico Region 1 BNV11"},"NVFS5D0C0TC0","Mexico Region 1 BNV",11,10779]
[null,null,null,null,null,null,null,null,null,null,null,null,{"$f":"CONCATENATE(N87,O87,P87)","v":"NVFS5D0C0TC0Mexico Region 1 BNV12"},"NVFS5D0C0TC0","Mexico Region 1 BNV",12,11130]
[null,null,null,null,null,null,null,null,null,null,null,null,{"$f":"CONCATENATE(N88,O88,P88)","v":"NVFS5D0C0TC0Mexico Region 1 BNV13"},"NVFS5D0C0TC0","Mexico Region 1 BNV",13,11491]
[null,null,null,null,null,null,null,null,null,null,null,null,{"$f":"CONCATENATE(N89,O89,P89)","v":"NVFS5D0C0TC0Mexico Region 1 BNV14"},"NVFS5D0C0TC0","Mexico Region 1 BNV",14,11865]
[null,null,null,null,null,null,null,null,null,null,null,null,{"$f":"CONCATENATE(N90,O90,P90)","v":"NVFS5D0C0TC0Mexico Region 1 BNV15"},"NVFS5D0C0TC0","Mexico Region 1 BNV",15,12251]
[null,null,null,null,null,null,null,null,null,null,null,null,{"$f":"CONCATENATE(N91,O91,P91)","v":"NVFS5D0C0TC0Mexico Region 1 BNV16"},"NVFS5D0C0TC0","Mexico Region 1 BNV",16,12651]
[null,null,null,null,null,null,null,null,null,null,null,null,"NVFS5D0C0TC0Mexico Region 1 BNV17","NVFS5D0C0TC0","Mexico Region 1 BNV",17,13065]
[null,null,null,null,null,null,null,null,null,null,null,null,{"$f":"CONCATENATE(N93,O93,P93)","v":"NVFS1D0C0TC0Mexico Region 2 (no CDMX, ZM y MTY)0"},"NVFS1D0C0TC0","Mexico Region 2 (no CDMX, ZM y MTY)",0,7804]
[null,null,null,null,null,null,null,null,null,null,null,null,{"$f":"CONCATENATE(N94,O94,P94)","v":"NVFS1D0C0TC0Mexico Region 2 (no CDMX, ZM y MTY)1"},"NVFS1D0C0TC0","Mexico Region 2 (no CDMX, ZM y MTY)",1,6958]
[null,null,null,null,null,null,null,null,null,null,null,null,{"$f":"CONCATENATE(N95,O95,P95)","v":"NVFS1D0C0TC0Mexico Region 2 (no CDMX, ZM y MTY)2"},"NVFS1D0C0TC0","Mexico Region 2 (no CDMX, ZM y MTY)",2,6046]
[null,null,null,null,null,null,null,null,null,null,null,null,{"$f":"CONCATENATE(N96,O96,P96)","v":"NVFS1D0C0TC0Mexico Region 2 (no CDMX, ZM y MTY)3"},"NVFS1D0C0TC0","Mexico Region 2 (no CDMX, ZM y MTY)",3,5651]
[null,null,null,null,null,null,null,null,null,null,null,null,{"$f":"CONCATENATE(N97,O97,P97)","v":"NVFS1D0C0TC0Mexico Region 2 (no CDMX, ZM y MTY)4"},"NVFS1D0C0TC0","Mexico Region 2 (no CDMX, ZM y MTY)",4,5225]
[null,null,null,null,null,null,null,null,null,null,null,null,{"$f":"CONCATENATE(N98,O98,P98)","v":"NVFS1D0C0TC0Mexico Region 2 (no CDMX, ZM y MTY)5"},"NVFS1D0C0TC0","Mexico Region 2 (no CDMX, ZM y MTY)",5,5391]
[null,null,null,null,null,null,null,null,null,null,null,null,{"$f":"CONCATENATE(N99,O99,P99)","v":"NVFS1D0C0TC0Mexico Region 2 (no CDMX, ZM y MTY)6"},"NVFS1D0C0TC0","Mexico Region 2 (no CDMX, ZM y MTY)",6,5563]
[null,null,null,null,null,null,null,null,null,null,null,null,{"$f":"CONCATENATE(N100,O100,P100)","v":"NVFS1D0C0TC0Mexico Region 2 (no CDMX, ZM y MTY)7"},"NVFS1D0C0TC0","Mexico Region 2 (no CDMX, ZM y MTY)",7,5742]
[null,null,null,null,null,null,null,null,null,null,null,null,{"$f":"CONCATENATE(N101,O101,P101)","v":"NVFS1D0C0TC0Mexico Region 2 (no CDMX, ZM y MTY)8"},"NVFS1D0C0TC0","Mexico Region 2 (no CDMX, ZM y MTY)",8,5928]
[null,null,null,null,null,null,null,null,null,null,null,null,{"$f":"CONCATENATE(N102,O102,P102)","v":"NVFS1D0C0TC0Mexico Region 2 (no CDMX, ZM y MTY)9"},"NVFS1D0C0TC0","Mexico Region 2 (no CDMX, ZM y MTY)",9,6118]
[null,null,null,null,null,null,null,null,null,null,null,null,{"$f":"CONCATENATE(N103,O103,P103)","v":"NVFS1D0C0TC0Mexico Region 2 (no CDMX, ZM y MTY)10"},"NVFS1D0C0TC0","Mexico Region 2 (no CDMX, ZM y MTY)",10,6316]
[null,null,null,null,null,null,null,null,null,null,null,null,{"$f":"CONCATENATE(N104,O104,P104)","v":"NVFS1D0C0TC0Mexico Region 2 (no CDMX, ZM y MTY)11"},"NVFS1D0C0TC0","Mexico Region 2 (no CDMX, ZM y MTY)",11,6521]
[null,null,null,null,null,null,null,null,null,null,null,null,{"$f":"CONCATENATE(N105,O105,P105)","v":"NVFS1D0C0TC0Mexico Region 2 (no CDMX, ZM y MTY)12"},"NVFS1D0C0TC0","Mexico Region 2 (no CDMX, ZM y MTY)",12,6732]
[null,null,null,null,null,null,null,null,null,null,null,null,{"$f":"CONCATENATE(N106,O106,P106)","v":"NVFS1D0C0TC0Mexico Region 2 (no CDMX, ZM y MTY)13"},"NVFS1D0C0TC0","Mexico Region 2 (no CDMX, ZM y MTY)",13,6951]
[null,null,null,null,null,null,null,null,null,null,null,null,{"$f":"CONCATENATE(N107,O107,P107)","v":"NVFS1D0C0TC0Mexico Region 2 (no CDMX, ZM y MTY)14"},"NVFS1D0C0TC0","Mexico Region 2 (no CDMX, ZM y MTY)",14,7177]
[null,null,null,null,null,null,null,null,null,null,null,null,{"$f":"CONCATENATE(N108,O108,P108)","v":"NVFS1D0C0TC0Mexico Region 2 (no CDMX, ZM y MTY)15"},"NVFS1D0C0TC0","Mexico Region 2 (no CDMX, ZM y MTY)",15,7411]
[null,null,null,null,null,null,null,null,null,null,null,null,{"$f":"CONCATENATE(N109,O109,P109)","v":"NVFS1D0C0TC0Mexico Region 2 (no CDMX, ZM y MTY)16"},"NVFS1D0C0TC0","Mexico Region 2 (no CDMX, ZM y MTY)",16,7653]
[null,null,null,null,null,null,null,null,null,null,null,null,"NVFS1D0C0TC0Mexico Region 2 (no CDMX, ZM y MTY)17","NVFS1D0C0TC0","Mexico Region 2 (no CDMX, ZM y MTY)",17,7904]
[null,null,null,null,null,null,null,null,null,null,null,null,{"$f":"CONCATENATE(N111,O111,P111)","v":"NVFS2D0C0TC0Mexico Region 2 (no CDMX, ZM y MTY)0"},"NVFS2D0C0TC0","Mexico Region 2 (no CDMX, ZM y MTY)",0,8868]
[null,null,null,null,null,null,null,null,null,null,null,null,{"$f":"CONCATENATE(N112,O112,P112)","v":"NVFS2D0C0TC0Mexico Region 2 (no CDMX, ZM y MTY)1"},"NVFS2D0C0TC0","Mexico Region 2 (no CDMX, ZM y MTY)",1,7907]
[null,null,null,null,null,null,null,null,null,null,null,null,{"$f":"CONCATENATE(N113,O113,P113)","v":"NVFS2D0C0TC0Mexico Region 2 (no CDMX, ZM y MTY)2"},"NVFS2D0C0TC0","Mexico Region 2 (no CDMX, ZM y MTY)",2,6870]
[null,null,null,null,null,null,null,null,null,null,null,null,{"$f":"CONCATENATE(N114,O114,P114)","v":"NVFS2D0C0TC0Mexico Region 2 (no CDMX, ZM y MTY)3"},"NVFS2D0C0TC0","Mexico Region 2 (no CDMX, ZM y MTY)",3,6423]
[null,null,null,null,null,null,null,null,null,null,null,null,{"$f":"CONCATENATE(N115,O115,P115)","v":"NVFS2D0C0TC0Mexico Region 2 (no CDMX, ZM y MTY)4"},"NVFS2D0C0TC0","Mexico Region 2 (no CDMX, ZM y MTY)",4,5937]
[null,null,null,null,null,null,null,null,null,null,null,null,{"$f":"CONCATENATE(N116,O116,P116)","v":"NVFS2D0C0TC0Mexico Region 2 (no CDMX, ZM y MTY)5"},"NVFS2D0C0TC0","Mexico Region 2 (no CDMX, ZM y MTY)",5,6126]
[null,null,null,null,null,null,null,null,null,null,null,null,{"$f":"CONCATENATE(N117,O117,P117)","v":"NVFS2D0C0TC0Mexico Region 2 (no CDMX, ZM y MTY)6"},"NVFS2D0C0TC0","Mexico Region 2 (no CDMX, ZM y MTY)",6,6323]
[null,null,null,null,null,null,null,null,null,null,null,null,{"$f":"CONCATENATE(N118,O118,P118)","v":"NVFS2D0C0TC0Mexico Region 2 (no CDMX, ZM y MTY)7"},"NVFS2D0C0TC0","Mexico Region 2 (no CDMX, ZM y MTY)",7,6526]
[null,null,null,null,null,null,null,null,null,null,null,null,{"$f":"CONCATENATE(N119,O119,P119)","v":"NVFS2D0C0TC0Mexico Region 2 (no CDMX, ZM y MTY)8"},"NVFS2D0C0TC0","Mexico Region 2 (no CDMX, ZM y MTY)",8,6737]
[null,null,null,null,null,null,null,null,null,null,null,null,{"$f":"CONCATENATE(N120,O120,P120)","v":"NVFS2D0C0TC0Mexico Region 2 (no CDMX, ZM y MTY)9"},"NVFS2D0C0TC0","Mexico Region 2 (no CDMX, ZM y MTY)",9,6954]
[null,null,null,null,null,null,null,null,null,null,null,null,{"$f":"CONCATENATE(N121,O121,P121)","v":"NVFS2D0C0TC0Mexico Region 2 (no CDMX, ZM y MTY)10"},"NVFS2D0C0TC0","Mexico Region 2 (no CDMX, ZM y MTY)",10,7177]
[null,null,null,null,null,null,null,null,null,null,null,null,{"$f":"CONCATENATE(N122,O122,P122)","v":"NVFS2D0C0TC0Mexico Region 2 (no CDMX, ZM y MTY)11"},"NVFS2D0C0TC0","Mexico Region 2 (no CDMX, ZM y MTY)",11,7411]
[null,null,null,null,null,null,null,null,null,null,null,null,{"$f":"CONCATENATE(N123,O123,P123)","v":"NVFS2D0C0TC0Mexico Region 2 (no CDMX, ZM y MTY)12"},"NVFS2D0C0TC0","Mexico Region 2 (no CDMX, ZM y MTY)",12,7651]
[null,null,null,null,null,null,null,null,null,null,null,null,{"$f":"CONCATENATE(N124,O124,P124)","v":"NVFS2D0C0TC0Mexico Region 2 (no CDMX, ZM y MTY)13"},"NVFS2D0C0TC0","Mexico Region 2 (no CDMX, ZM y MTY)",13,7900]
[null,null,null,null,null,null,null,null,null,null,null,null,{"$f":"CONCATENATE(N125,O125,P125)","v":"NVFS2D0C0TC0Mexico Region 2 (no CDMX, ZM y MTY)14"},"NVFS2D0C0TC0","Mexico Region 2 (no CDMX, ZM y MTY)",14,8156]
[null,null,null,null,null,null,null,null,null,null,null,null,{"$f":"CONCATENATE(N126,O126,P126)","v":"NVFS2D0C0TC0Mexico Region 2 (no CDMX, ZM y MTY)15"},"NVFS2D0C0TC0","Mexico Region 2 (no CDMX, ZM y MTY)",15,8421]
[null,null,null,null,null,null,null,null,null,null,null,null,{"$f":"CONCATENATE(N127,O127,P127)","v":"NVFS2D0C0TC0Mexico Region 2 (no CDMX, ZM y MTY)16"},"NVFS2D0C0TC0","Mexico Region 2 (no CDMX, ZM y MTY)",16,8696]
[null,null,null,null,null,null,null,null,null,null,null,null,"NVFS2D0C0TC0Mexico Region 2 (no CDMX, ZM y MTY)17","NVFS2D0C0TC0","Mexico Region 2 (no CDMX, ZM y MTY)",17,8981]
[null,null,null,null,null,null,null,null,null,null,null,null,{"$f":"CONCATENATE(N129,O129,P129)","v":"NVFS3D0C0TC0Mexico Region 2 (no CDMX, ZM y MTY)0"},"NVFS3D0C0TC0","Mexico Region 2 (no CDMX, ZM y MTY)",0,9607]
[null,null,null,null,null,null,null,null,null,null,null,null,{"$f":"CONCATENATE(N130,O130,P130)","v":"NVFS3D0C0TC0Mexico Region 2 (no CDMX, ZM y MTY)1"},"NVFS3D0C0TC0","Mexico Region 2 (no CDMX, ZM y MTY)",1,8567]
[null,null,null,null,null,null,null,null,null,null,null,null,{"$f":"CONCATENATE(N131,O131,P131)","v":"NVFS3D0C0TC0Mexico Region 2 (no CDMX, ZM y MTY)2"},"NVFS3D0C0TC0","Mexico Region 2 (no CDMX, ZM y MTY)",2,7442]
[null,null,null,null,null,null,null,null,null,null,null,null,{"$f":"CONCATENATE(N132,O132,P132)","v":"NVFS3D0C0TC0Mexico Region 2 (no CDMX, ZM y MTY)3"},"NVFS3D0C0TC0","Mexico Region 2 (no CDMX, ZM y MTY)",3,6958]
[null,null,null,null,null,null,null,null,null,null,null,null,{"$f":"CONCATENATE(N133,O133,P133)","v":"NVFS3D0C0TC0Mexico Region 2 (no CDMX, ZM y MTY)4"},"NVFS3D0C0TC0","Mexico Region 2 (no CDMX, ZM y MTY)",4,6432]
[null,null,null,null,null,null,null,null,null,null,null,null,{"$f":"CONCATENATE(N134,O134,P134)","v":"NVFS3D0C0TC0Mexico Region 2 (no CDMX, ZM y MTY)5"},"NVFS3D0C0TC0","Mexico Region 2 (no CDMX, ZM y MTY)",5,6637]
[null,null,null,null,null,null,null,null,null,null,null,null,{"$f":"CONCATENATE(N135,O135,P135)","v":"NVFS3D0C0TC0Mexico Region 2 (no CDMX, ZM y MTY)6"},"NVFS3D0C0TC0","Mexico Region 2 (no CDMX, ZM y MTY)",6,6851]
[null,null,null,null,null,null,null,null,null,null,null,null,{"$f":"CONCATENATE(N136,O136,P136)","v":"NVFS3D0C0TC0Mexico Region 2 (no CDMX, ZM y MTY)7"},"NVFS3D0C0TC0","Mexico Region 2 (no CDMX, ZM y MTY)",7,7070]
[null,null,null,null,null,null,null,null,null,null,null,null,{"$f":"CONCATENATE(N137,O137,P137)","v":"NVFS3D0C0TC0Mexico Region 2 (no CDMX, ZM y MTY)8"},"NVFS3D0C0TC0","Mexico Region 2 (no CDMX, ZM y MTY)",8,7298]
[null,null,null,null,null,null,null,null,null,null,null,null,{"$f":"CONCATENATE(N138,O138,P138)","v":"NVFS3D0C0TC0Mexico Region 2 (no CDMX, ZM y MTY)9"},"NVFS3D0C0TC0","Mexico Region 2 (no CDMX, ZM y MTY)",9,7533]
[null,null,null,null,null,null,null,null,null,null,null,null,{"$f":"CONCATENATE(N139,O139,P139)","v":"NVFS3D0C0TC0Mexico Region 2 (no CDMX, ZM y MTY)10"},"NVFS3D0C0TC0","Mexico Region 2 (no CDMX, ZM y MTY)",10,7775]
[null,null,null,null,null,null,null,null,null,null,null,null,{"$f":"CONCATENATE(N140,O140,P140)","v":"NVFS3D0C0TC0Mexico Region 2 (no CDMX, ZM y MTY)11"},"NVFS3D0C0TC0","Mexico Region 2 (no CDMX, ZM y MTY)",11,8028]
[null,null,null,null,null,null,null,null,null,null,null,null,{"$f":"CONCATENATE(N141,O141,P141)","v":"NVFS3D0C0TC0Mexico Region 2 (no CDMX, ZM y MTY)12"},"NVFS3D0C0TC0","Mexico Region 2 (no CDMX, ZM y MTY)",12,8288]
[null,null,null,null,null,null,null,null,null,null,null,null,{"$f":"CONCATENATE(N142,O142,P142)","v":"NVFS3D0C0TC0Mexico Region 2 (no CDMX, ZM y MTY)13"},"NVFS3D0C0TC0","Mexico Region 2 (no CDMX, ZM y MTY)",13,8558]
[null,null,null,null,null,null,null,null,null,null,null,null,{"$f":"CONCATENATE(N143,O143,P143)","v":"NVFS3D0C0TC0Mexico Region 2 (no CDMX, ZM y MTY)14"},"NVFS3D0C0TC0","Mexico Region 2 (no CDMX, ZM y MTY)",14,8835]
[null,null,null,null,null,null,null,null,null,null,null,null,{"$f":"CONCATENATE(N144,O144,P144)","v":"NVFS3D0C0TC0Mexico Region 2 (no CDMX, ZM y MTY)15"},"NVFS3D0C0TC0","Mexico Region 2 (no CDMX, ZM y MTY)",15,9123]
[null,null,null,null,null,null,null,null,null,null,null,null,{"$f":"CONCATENATE(N145,O145,P145)","v":"NVFS3D0C0TC0Mexico Region 2 (no CDMX, ZM y MTY)16"},"NVFS3D0C0TC0","Mexico Region 2 (no CDMX, ZM y MTY)",16,9421]
[null,null,null,null,null,null,null,null,null,null,null,null,"NVFS3D0C0TC0Mexico Region 2 (no CDMX, ZM y MTY)17","NVFS3D0C0TC0","Mexico Region 2 (no CDMX, ZM y MTY)",17,9730]
[null,null,null,null,null,null,null,null,null,null,null,null,{"$f":"CONCATENATE(N147,O147,P147)","v":"NVFS4D0C0TC0Mexico Region 2 (no CDMX, ZM y MTY)0"},"NVFS4D0C0TC0","Mexico Region 2 (no CDMX, ZM y MTY)",0,10132]
[null,null,null,null,null,null,null,null,null,null,null,null,{"$f":"CONCATENATE(N148,O148,P148)","v":"NVFS4D0C0TC0Mexico Region 2 (no CDMX, ZM y MTY)1"},"NVFS4D0C0TC0","Mexico Region 2 (no CDMX, ZM y MTY)",1,9033]
[null,null,null,null,null,null,null,null,null,null,null,null,{"$f":"CONCATENATE(N149,O149,P149)","v":"NVFS4D0C0TC0Mexico Region 2 (no CDMX, ZM y MTY)2"},"NVFS4D0C0TC0","Mexico Region 2 (no CDMX, ZM y MTY)",2,7849]
[null,null,null,null,null,null,null,null,null,null,null,null,{"$f":"CONCATENATE(N150,O150,P150)","v":"NVFS4D0C0TC0Mexico Region 2 (no CDMX, ZM y MTY)3"},"NVFS4D0C0TC0","Mexico Region 2 (no CDMX, ZM y MTY)",3,7339]
[null,null,null,null,null,null,null,null,null,null,null,null,{"$f":"CONCATENATE(N151,O151,P151)","v":"NVFS4D0C0TC0Mexico Region 2 (no CDMX, ZM y MTY)4"},"NVFS4D0C0TC0","Mexico Region 2 (no CDMX, ZM y MTY)",4,6782]
[null,null,null,null,null,null,null,null,null,null,null,null,{"$f":"CONCATENATE(N152,O152,P152)","v":"NVFS4D0C0TC0Mexico Region 2 (no CDMX, ZM y MTY)5"},"NVFS4D0C0TC0","Mexico Region 2 (no CDMX, ZM y MTY)",5,7000]
[null,null,null,null,null,null,null,null,null,null,null,null,{"$f":"CONCATENATE(N153,O153,P153)","v":"NVFS4D0C0TC0Mexico Region 2 (no CDMX, ZM y MTY)6"},"NVFS4D0C0TC0","Mexico Region 2 (no CDMX, ZM y MTY)",6,7225]
[null,null,null,null,null,null,null,null,null,null,null,null,{"$f":"CONCATENATE(N154,O154,P154)","v":"NVFS4D0C0TC0Mexico Region 2 (no CDMX, ZM y MTY)7"},"NVFS4D0C0TC0","Mexico Region 2 (no CDMX, ZM y MTY)",7,7456]
[null,null,null,null,null,null,null,null,null,null,null,null,{"$f":"CONCATENATE(N155,O155,P155)","v":"NVFS4D0C0TC0Mexico Region 2 (no CDMX, ZM y MTY)8"},"NVFS4D0C0TC0","Mexico Region 2 (no CDMX, ZM y MTY)",8,7696]
[null,null,null,null,null,null,null,null,null,null,null,null,{"$f":"CONCATENATE(N156,O156,P156)","v":"NVFS4D0C0TC0Mexico Region 2 (no CDMX, ZM y MTY)9"},"NVFS4D0C0TC0","Mexico Region 2 (no CDMX, ZM y MTY)",9,7944]
[null,null,null,null,null,null,null,null,null,null,null,null,{"$f":"CONCATENATE(N157,O157,P157)","v":"NVFS4D0C0TC0Mexico Region 2 (no CDMX, ZM y MTY)10"},"NVFS4D0C0TC0","Mexico Region 2 (no CDMX, ZM y MTY)",10,8200]
[null,null,null,null,null,null,null,null,null,null,null,null,{"$f":"CONCATENATE(N158,O158,P158)","v":"NVFS4D0C0TC0Mexico Region 2 (no CDMX, ZM y MTY)11"},"NVFS4D0C0TC0","Mexico Region 2 (no CDMX, ZM y MTY)",11,8467]
[null,null,null,null,null,null,null,null,null,null,null,null,{"$f":"CONCATENATE(N159,O159,P159)","v":"NVFS4D0C0TC0Mexico Region 2 (no CDMX, ZM y MTY)12"},"NVFS4D0C0TC0","Mexico Region 2 (no CDMX, ZM y MTY)",12,8740]
[null,null,null,null,null,null,null,null,null,null,null,null,{"$f":"CONCATENATE(N160,O160,P160)","v":"NVFS4D0C0TC0Mexico Region 2 (no CDMX, ZM y MTY)13"},"NVFS4D0C0TC0","Mexico Region 2 (no CDMX, ZM y MTY)",13,9025]
[null,null,null,null,null,null,null,null,null,null,null,null,{"$f":"CONCATENATE(N161,O161,P161)","v":"NVFS4D0C0TC0Mexico Region 2 (no CDMX, ZM y MTY)14"},"NVFS4D0C0TC0","Mexico Region 2 (no CDMX, ZM y MTY)",14,9318]
[null,null,null,null,null,null,null,null,null,null,null,null,{"$f":"CONCATENATE(N162,O162,P162)","v":"NVFS4D0C0TC0Mexico Region 2 (no CDMX, ZM y MTY)15"},"NVFS4D0C0TC0","Mexico Region 2 (no CDMX, ZM y MTY)",15,9621]
[null,null,null,null,null,null,null,null,null,null,null,null,{"$f":"CONCATENATE(N163,O163,P163)","v":"NVFS4D0C0TC0Mexico Region 2 (no CDMX, ZM y MTY)16"},"NVFS4D0C0TC0","Mexico Region 2 (no CDMX, ZM y MTY)",16,9935]
[null,null,null,null,null,null,null,null,null,null,null,null,"NVFS4D0C0TC0Mexico Region 2 (no CDMX, ZM y MTY)17","NVFS4D0C0TC0","Mexico Region 2 (no CDMX, ZM y MTY)",17,10261]
[null,null,null,null,null,null,null,null,null,null,null,null,{"$f":"CONCATENATE(N165,O165,P165)","v":"NVFS5D0C0TC0Mexico Region 2 (no CDMX, ZM y MTY)0"},"NVFS5D0C0TC0","Mexico Region 2 (no CDMX, ZM y MTY)",0,10321]
[null,null,null,null,null,null,null,null,null,null,null,null,{"$f":"CONCATENATE(N166,O166,P166)","v":"NVFS5D0C0TC0Mexico Region 2 (no CDMX, ZM y MTY)1"},"NVFS5D0C0TC0","Mexico Region 2 (no CDMX, ZM y MTY)",1,9202]
[null,null,null,null,null,null,null,null,null,null,null,null,{"$f":"CONCATENATE(N167,O167,P167)","v":"NVFS5D0C0TC0Mexico Region 2 (no CDMX, ZM y MTY)2"},"NVFS5D0C0TC0","Mexico Region 2 (no CDMX, ZM y MTY)",2,7995]
[null,null,null,null,null,null,null,null,null,null,null,null,{"$f":"CONCATENATE(N168,O168,P168)","v":"NVFS5D0C0TC0Mexico Region 2 (no CDMX, ZM y MTY)3"},"NVFS5D0C0TC0","Mexico Region 2 (no CDMX, ZM y MTY)",3,7475]
[null,null,null,null,null,null,null,null,null,null,null,null,{"$f":"CONCATENATE(N169,O169,P169)","v":"NVFS5D0C0TC0Mexico Region 2 (no CDMX, ZM y MTY)4"},"NVFS5D0C0TC0","Mexico Region 2 (no CDMX, ZM y MTY)",4,6911]
[null,null,null,null,null,null,null,null,null,null,null,null,{"$f":"CONCATENATE(N170,O170,P170)","v":"NVFS5D0C0TC0Mexico Region 2 (no CDMX, ZM y MTY)5"},"NVFS5D0C0TC0","Mexico Region 2 (no CDMX, ZM y MTY)",5,7130]
[null,null,null,null,null,null,null,null,null,null,null,null,{"$f":"CONCATENATE(N171,O171,P171)","v":"NVFS5D0C0TC0Mexico Region 2 (no CDMX, ZM y MTY)6"},"NVFS5D0C0TC0","Mexico Region 2 (no CDMX, ZM y MTY)",6,7360]
[null,null,null,null,null,null,null,null,null,null,null,null,{"$f":"CONCATENATE(N172,O172,P172)","v":"NVFS5D0C0TC0Mexico Region 2 (no CDMX, ZM y MTY)7"},"NVFS5D0C0TC0","Mexico Region 2 (no CDMX, ZM y MTY)",7,7595]
[null,null,null,null,null,null,null,null,null,null,null,null,{"$f":"CONCATENATE(N173,O173,P173)","v":"NVFS5D0C0TC0Mexico Region 2 (no CDMX, ZM y MTY)8"},"NVFS5D0C0TC0","Mexico Region 2 (no CDMX, ZM y MTY)",8,7839]
[null,null,null,null,null,null,null,null,null,null,null,null,{"$f":"CONCATENATE(N174,O174,P174)","v":"NVFS5D0C0TC0Mexico Region 2 (no CDMX, ZM y MTY)9"},"NVFS5D0C0TC0","Mexico Region 2 (no CDMX, ZM y MTY)",9,8093]
[null,null,null,null,null,null,null,null,null,null,null,null,{"$f":"CONCATENATE(N175,O175,P175)","v":"NVFS5D0C0TC0Mexico Region 2 (no CDMX, ZM y MTY)10"},"NVFS5D0C0TC0","Mexico Region 2 (no CDMX, ZM y MTY)",10,8353]
[null,null,null,null,null,null,null,null,null,null,null,null,{"$f":"CONCATENATE(N176,O176,P176)","v":"NVFS5D0C0TC0Mexico Region 2 (no CDMX, ZM y MTY)11"},"NVFS5D0C0TC0","Mexico Region 2 (no CDMX, ZM y MTY)",11,8623]
[null,null,null,null,null,null,null,null,null,null,null,null,{"$f":"CONCATENATE(N177,O177,P177)","v":"NVFS5D0C0TC0Mexico Region 2 (no CDMX, ZM y MTY)12"},"NVFS5D0C0TC0","Mexico Region 2 (no CDMX, ZM y MTY)",12,8904]
[null,null,null,null,null,null,null,null,null,null,null,null,{"$f":"CONCATENATE(N178,O178,P178)","v":"NVFS5D0C0TC0Mexico Region 2 (no CDMX, ZM y MTY)13"},"NVFS5D0C0TC0","Mexico Region 2 (no CDMX, ZM y MTY)",13,9193]
[null,null,null,null,null,null,null,null,null,null,null,null,{"$f":"CONCATENATE(N179,O179,P179)","v":"NVFS5D0C0TC0Mexico Region 2 (no CDMX, ZM y MTY)14"},"NVFS5D0C0TC0","Mexico Region 2 (no CDMX, ZM y MTY)",14,9491]
[null,null,null,null,null,null,null,null,null,null,null,null,{"$f":"CONCATENATE(N180,O180,P180)","v":"NVFS5D0C0TC0Mexico Region 2 (no CDMX, ZM y MTY)15"},"NVFS5D0C0TC0","Mexico Region 2 (no CDMX, ZM y MTY)",15,9800]
[null,null,null,null,null,null,null,null,null,null,null,null,{"$f":"CONCATENATE(N181,O181,P181)","v":"NVFS5D0C0TC0Mexico Region 2 (no CDMX, ZM y MTY)16"},"NVFS5D0C0TC0","Mexico Region 2 (no CDMX, ZM y MTY)",16,10121]
[null,null,null,null,null,null,null,null,null,null,null,null,"NVFS5D0C0TC0Mexico Region 2 (no CDMX, ZM y MTY)17","NVFS5D0C0TC0","Mexico Region 2 (no CDMX, ZM y MTY)",17,10453]
[null,null,null,null,null,null,null,null,null,null,null,null,{"$f":"CONCATENATE(N183,O183,P183)","v":"NVFS1D0C0TC0Mexico Region 1 BNV18"},"NVFS1D0C0TC0","Mexico Region 1 BNV",18,10163]
[null,null,null,null,null,null,null,null,null,null,null,null,{"$f":"CONCATENATE(N184,O184,P184)","v":"NVFS1D0C0TC0Mexico Region 1 BNV19"},"NVFS1D0C0TC0","Mexico Region 1 BNV",19,10465]
[null,null,null,null,null,null,null,null,null,null,null,null,{"$f":"CONCATENATE(N185,O185,P185)","v":"NVFS1D0C0TC0Mexico Region 1 BNV20"},"NVFS1D0C0TC0","Mexico Region 1 BNV",20,10774]
[null,null,null,null,null,null,null,null,null,null,null,null,{"$f":"CONCATENATE(N186,O186,P186)","v":"NVFS1D0C0TC0Mexico Region 1 BNV21"},"NVFS1D0C0TC0","Mexico Region 1 BNV",21,11093]
[null,null,null,null,null,null,null,null,null,null,null,null,{"$f":"CONCATENATE(N187,O187,P187)","v":"NVFS1D0C0TC0Mexico Region 1 BNV22"},"NVFS1D0C0TC0","Mexico Region 1 BNV",22,11423]
[null,null,null,null,null,null,null,null,null,null,null,null,{"$f":"CONCATENATE(N188,O188,P188)","v":"NVFS1D0C0TC0Mexico Region 1 BNV23"},"NVFS1D0C0TC0","Mexico Region 1 BNV",23,11761]
[null,null,null,null,null,null,null,null,null,null,null,null,{"$f":"CONCATENATE(N189,O189,P189)","v":"NVFS1D0C0TC0Mexico Region 1 BNV24"},"NVFS1D0C0TC0","Mexico Region 1 BNV",24,12111]
[null,null,null,null,null,null,null,null,null,null,null,null,{"$f":"CONCATENATE(N190,O190,P190)","v":"NVFS1D0C0TC0Mexico Region 1 BNV25"},"NVFS1D0C0TC0","Mexico Region 1 BNV",25,12470]
[null,null,null,null,null,null,null,null,null,null,null,null,{"$f":"CONCATENATE(N191,O191,P191)","v":"NVFS1D0C0TC0Mexico Region 1 BNV26"},"NVFS1D0C0TC0","Mexico Region 1 BNV",26,12840]
[null,null,null,null,null,null,null,null,null,null,null,null,{"$f":"CONCATENATE(N192,O192,P192)","v":"NVFS1D0C0TC0Mexico Region 1 BNV27"},"NVFS1D0C0TC0","Mexico Region 1 BNV",27,13221]
[null,null,null,null,null,null,null,null,null,null,null,null,{"$f":"CONCATENATE(N193,O193,P193)","v":"NVFS1D0C0TC0Mexico Region 1 BNV28"},"NVFS1D0C0TC0","Mexico Region 1 BNV",28,13614]
[null,null,null,null,null,null,null,null,null,null,null,null,{"$f":"CONCATENATE(N194,O194,P194)","v":"NVFS1D0C0TC0Mexico Region 1 BNV29"},"NVFS1D0C0TC0","Mexico Region 1 BNV",29,14019]
[null,null,null,null,null,null,null,null,null,null,null,null,{"$f":"CONCATENATE(N195,O195,P195)","v":"NVFS1D0C0TC0Mexico Region 1 BNV30"},"NVFS1D0C0TC0","Mexico Region 1 BNV",30,15819]
[null,null,null,null,null,null,null,null,null,null,null,null,{"$f":"CONCATENATE(N196,O196,P196)","v":"NVFS1D0C0TC0Mexico Region 1 BNV31"},"NVFS1D0C0TC0","Mexico Region 1 BNV",31,16291]
[null,null,null,null,null,null,null,null,null,null,null,null,{"$f":"CONCATENATE(N197,O197,P197)","v":"NVFS1D0C0TC0Mexico Region 1 BNV32"},"NVFS1D0C0TC0","Mexico Region 1 BNV",32,16775]
[null,null,null,null,null,null,null,null,null,null,null,null,{"$f":"CONCATENATE(N198,O198,P198)","v":"NVFS1D0C0TC0Mexico Region 1 BNV33"},"NVFS1D0C0TC0","Mexico Region 1 BNV",33,17275]
[null,null,null,null,null,null,null,null,null,null,null,null,{"$f":"CONCATENATE(N199,O199,P199)","v":"NVFS1D0C0TC0Mexico Region 1 BNV34"},"NVFS1D0C0TC0","Mexico Region 1 BNV",34,17789]
[null,null,null,null,null,null,null,null,null,null,null,null,{"$f":"CONCATENATE(N200,O200,P200)","v":"NVFS1D0C0TC0Mexico Region 1 BNV35"},"NVFS1D0C0TC0","Mexico Region 1 BNV",35,18319]
[null,null,null,null,null,null,null,null,null,null,null,null,{"$f":"CONCATENATE(N201,O201,P201)","v":"NVFS1D0C0TC0Mexico Region 1 BNV36"},"NVFS1D0C0TC0","Mexico Region 1 BNV",36,18865]
[null,null,null,null,null,null,null,null,null,null,null,null,{"$f":"CONCATENATE(N202,O202,P202)","v":"NVFS1D0C0TC0Mexico Region 1 BNV37"},"NVFS1D0C0TC0","Mexico Region 1 BNV",37,19426]
[null,null,null,null,null,null,null,null,null,null,null,null,{"$f":"CONCATENATE(N203,O203,P203)","v":"NVFS1D0C0TC0Mexico Region 1 BNV38"},"NVFS1D0C0TC0","Mexico Region 1 BNV",38,20005]
[null,null,null,null,null,null,null,null,null,null,null,null,{"$f":"CONCATENATE(N204,O204,P204)","v":"NVFS1D0C0TC0Mexico Region 1 BNV39"},"NVFS1D0C0TC0","Mexico Region 1 BNV",39,20207]
[null,null,null,null,null,null,null,null,null,null,null,null,{"$f":"CONCATENATE(N205,O205,P205)","v":"NVFS1D0C0TC0Mexico Region 1 BNV40"},"NVFS1D0C0TC0","Mexico Region 1 BNV",40,20261]
[null,null,null,null,null,null,null,null,null,null,null,null,{"$f":"CONCATENATE(N206,O206,P206)","v":"NVFS1D0C0TC0Mexico Region 1 BNV41"},"NVFS1D0C0TC0","Mexico Region 1 BNV",41,20432]
[null,null,null,null,null,null,null,null,null,null,null,null,{"$f":"CONCATENATE(N207,O207,P207)","v":"NVFS1D0C0TC0Mexico Region 1 BNV42"},"NVFS1D0C0TC0","Mexico Region 1 BNV",42,21025]
[null,null,null,null,null,null,null,null,null,null,null,null,{"$f":"CONCATENATE(N208,O208,P208)","v":"NVFS1D0C0TC0Mexico Region 1 BNV43"},"NVFS1D0C0TC0","Mexico Region 1 BNV",43,21861]
[null,null,null,null,null,null,null,null,null,null,null,null,{"$f":"CONCATENATE(N209,O209,P209)","v":"NVFS1D0C0TC0Mexico Region 1 BNV44"},"NVFS1D0C0TC0","Mexico Region 1 BNV",44,22730]
[null,null,null,null,null,null,null,null,null,null,null,null,{"$f":"CONCATENATE(N210,O210,P210)","v":"NVFS1D0C0TC0Mexico Region 1 BNV45"},"NVFS1D0C0TC0","Mexico Region 1 BNV",45,23635]
[null,null,null,null,null,null,null,null,null,null,null,null,{"$f":"CONCATENATE(N211,O211,P211)","v":"NVFS1D0C0TC0Mexico Region 1 BNV46"},"NVFS1D0C0TC0","Mexico Region 1 BNV",46,24575]
[null,null,null,null,null,null,null,null,null,null,null,null,{"$f":"CONCATENATE(N212,O212,P212)","v":"NVFS1D0C0TC0Mexico Region 1 BNV47"},"NVFS1D0C0TC0","Mexico Region 1 BNV",47,25553]
[null,null,null,null,null,null,null,null,null,null,null,null,{"$f":"CONCATENATE(N213,O213,P213)","v":"NVFS1D0C0TC0Mexico Region 1 BNV48"},"NVFS1D0C0TC0","Mexico Region 1 BNV",48,26570]
[null,null,null,null,null,null,null,null,null,null,null,null,{"$f":"CONCATENATE(N214,O214,P214)","v":"NVFS1D0C0TC0Mexico Region 1 BNV49"},"NVFS1D0C0TC0","Mexico Region 1 BNV",49,27626]
[null,null,null,null,null,null,null,null,null,null,null,null,{"$f":"CONCATENATE(N215,O215,P215)","v":"NVFS1D0C0TC0Mexico Region 1 BNV50"},"NVFS1D0C0TC0","Mexico Region 1 BNV",50,28726]
[null,null,null,null,null,null,null,null,null,null,null,null,{"$f":"CONCATENATE(N216,O216,P216)","v":"NVFS1D0C0TC0Mexico Region 1 BNV51"},"NVFS1D0C0TC0","Mexico Region 1 BNV",51,30014]
[null,null,null,null,null,null,null,null,null,null,null,null,{"$f":"CONCATENATE(N217,O217,P217)","v":"NVFS1D0C0TC0Mexico Region 1 BNV52"},"NVFS1D0C0TC0","Mexico Region 1 BNV",52,31509]
[null,null,null,null,null,null,null,null,null,null,null,null,{"$f":"CONCATENATE(N218,O218,P218)","v":"NVFS1D0C0TC0Mexico Region 1 BNV53"},"NVFS1D0C0TC0","Mexico Region 1 BNV",53,33535]
[null,null,null,null,null,null,null,null,null,null,null,null,{"$f":"CONCATENATE(N219,O219,P219)","v":"NVFS1D0C0TC0Mexico Region 1 BNV54"},"NVFS1D0C0TC0","Mexico Region 1 BNV",54,36875]
[null,null,null,null,null,null,null,null,null,null,null,null,{"$f":"CONCATENATE(N220,O220,P220)","v":"NVFS1D0C0TC0Mexico Region 1 BNV55"},"NVFS1D0C0TC0","Mexico Region 1 BNV",55,39689]
[null,null,null,null,null,null,null,null,null,null,null,null,{"$f":"CONCATENATE(N221,O221,P221)","v":"NVFS1D0C0TC0Mexico Region 1 BNV56"},"NVFS1D0C0TC0","Mexico Region 1 BNV",56,42716]
[null,null,null,null,null,null,null,null,null,null,null,null,{"$f":"CONCATENATE(N222,O222,P222)","v":"NVFS1D0C0TC0Mexico Region 1 BNV57"},"NVFS1D0C0TC0","Mexico Region 1 BNV",57,45735]
[null,null,null,null,null,null,null,null,null,null,null,null,{"$f":"CONCATENATE(N223,O223,P223)","v":"NVFS1D0C0TC0Mexico Region 1 BNV58"},"NVFS1D0C0TC0","Mexico Region 1 BNV",58,49212]
[null,null,null,null,null,null,null,null,null,null,null,null,{"$f":"CONCATENATE(N224,O224,P224)","v":"NVFS1D0C0TC0Mexico Region 1 BNV59"},"NVFS1D0C0TC0","Mexico Region 1 BNV",59,52423]
[null,null,null,null,null,null,null,null,null,null,null,null,{"$f":"CONCATENATE(N225,O225,P225)","v":"NVFS1D0C0TC0Mexico Region 1 BNV60"},"NVFS1D0C0TC0","Mexico Region 1 BNV",60,57528]
[null,null,null,null,null,null,null,null,null,null,null,null,{"$f":"CONCATENATE(N226,O226,P226)","v":"NVFS1D0C0TC0Mexico Region 1 BNV61"},"NVFS1D0C0TC0","Mexico Region 1 BNV",61,61281]
[null,null,null,null,null,null,null,null,null,null,null,null,{"$f":"CONCATENATE(N227,O227,P227)","v":"NVFS1D0C0TC0Mexico Region 1 BNV62"},"NVFS1D0C0TC0","Mexico Region 1 BNV",62,65279]
[null,null,null,null,null,null,null,null,null,null,null,null,{"$f":"CONCATENATE(N228,O228,P228)","v":"NVFS1D0C0TC0Mexico Region 1 BNV63"},"NVFS1D0C0TC0","Mexico Region 1 BNV",63,68858]
[null,null,null,null,null,null,null,null,null,null,null,null,{"$f":"CONCATENATE(N229,O229,P229)","v":"NVFS1D0C0TC0Mexico Region 1 BNV64"},"NVFS1D0C0TC0","Mexico Region 1 BNV",64,73351]
[null,null,null,null,null,null,null,null,null,null,null,null,{"$f":"CONCATENATE(N230,O230,P230)","v":"NVFS1D0C0TC0Mexico Region 1 BNV65"},"NVFS1D0C0TC0","Mexico Region 1 BNV",65,78137]
[null,null,null,null,null,null,null,null,null,null,null,null,{"$f":"CONCATENATE(N231,O231,P231)","v":"NVFS1D0C0TC0Mexico Region 1 BNV66"},"NVFS1D0C0TC0","Mexico Region 1 BNV",66,83644]
[null,null,null,null,null,null,null,null,null,null,null,null,{"$f":"CONCATENATE(N232,O232,P232)","v":"NVFS1D0C0TC0Mexico Region 1 BNV67"},"NVFS1D0C0TC0","Mexico Region 1 BNV",67,89537]
[null,null,null,null,null,null,null,null,null,null,null,null,{"$f":"CONCATENATE(N233,O233,P233)","v":"NVFS1D0C0TC0Mexico Region 1 BNV68"},"NVFS1D0C0TC0","Mexico Region 1 BNV",68,95379]
[null,null,null,null,null,null,null,null,null,null,null,null,{"$f":"CONCATENATE(N234,O234,P234)","v":"NVFS1D0C0TC0Mexico Region 1 BNV69"},"NVFS1D0C0TC0","Mexico Region 1 BNV",69,101602]
[null,null,null,null,null,null,null,null,null,null,null,null,{"$f":"CONCATENATE(N235,O235,P235)","v":"NVFS1D0C0TC0Mexico Region 1 BNV70"},"NVFS1D0C0TC0","Mexico Region 1 BNV",70,108230]
[null,null,null,null,null,null,null,null,null,null,null,null,{"$f":"CONCATENATE(N236,O236,P236)","v":"NVFS1D0C0TC0Mexico Region 1 BNV71"},"NVFS1D0C0TC0","Mexico Region 1 BNV",71,115291]
[null,null,null,null,null,null,null,null,null,null,null,null,{"$f":"CONCATENATE(N237,O237,P237)","v":"NVFS1D0C0TC0Mexico Region 1 BNV72"},"NVFS1D0C0TC0","Mexico Region 1 BNV",72,122812]
[null,null,null,null,null,null,null,null,null,null,null,null,{"$f":"CONCATENATE(N238,O238,P238)","v":"NVFS1D0C0TC0Mexico Region 1 BNV73"},"NVFS1D0C0TC0","Mexico Region 1 BNV",73,130825]
[null,null,null,null,null,null,null,null,null,null,null,null,{"$f":"CONCATENATE(N239,O239,P239)","v":"NVFS1D0C0TC0Mexico Region 1 BNV74"},"NVFS1D0C0TC0","Mexico Region 1 BNV",74,139360]
[null,null,null,null,null,null,null,null,null,null,null,null,{"$f":"CONCATENATE(N240,O240,P240)","v":"NVFS1D0C0TC0Mexico Region 1 BNV75"},"NVFS1D0C0TC0","Mexico Region 1 BNV",75,148451]
[null,null,null,null,null,null,null,null,null,null,null,null,{"$f":"CONCATENATE(N241,O241,P241)","v":"NVFS1D0C0TC0Mexico Region 1 BNV76"},"NVFS1D0C0TC0","Mexico Region 1 BNV",76,158137]
[null,null,null,null,null,null,null,null,null,null,null,null,{"$f":"CONCATENATE(N242,O242,P242)","v":"NVFS1D0C0TC0Mexico Region 1 BNV77"},"NVFS1D0C0TC0","Mexico Region 1 BNV",77,168453]
[null,null,null,null,null,null,null,null,null,null,null,null,{"$f":"CONCATENATE(N243,O243,P243)","v":"NVFS1D0C0TC0Mexico Region 1 BNV78"},"NVFS1D0C0TC0","Mexico Region 1 BNV",78,179444]
[null,null,null,null,null,null,null,null,null,null,null,null,{"$f":"CONCATENATE(N244,O244,P244)","v":"NVFS1D0C0TC0Mexico Region 1 BNV79"},"NVFS1D0C0TC0","Mexico Region 1 BNV",79,191149]
[null,null,null,null,null,null,null,null,null,null,null,null,{"$f":"CONCATENATE(N245,O245,P245)","v":"NVFS1D0C0TC0Mexico Region 1 BNV80"},"NVFS1D0C0TC0","Mexico Region 1 BNV",80,203621]
[null,null,null,null,null,null,null,null,null,null,null,null,{"$f":"CONCATENATE(N246,O246,P246)","v":"NVFS1D0C0TC0Mexico Region 1 BNV81"},"NVFS1D0C0TC0","Mexico Region 1 BNV",81,216905]
[null,null,null,null,null,null,null,null,null,null,null,null,{"$f":"CONCATENATE(N247,O247,P247)","v":"NVFS1D0C0TC0Mexico Region 1 BNV82"},"NVFS1D0C0TC0","Mexico Region 1 BNV",82,231056]
[null,null,null,null,null,null,null,null,null,null,null,null,{"$f":"CONCATENATE(N248,O248,P248)","v":"NVFS1D0C0TC0Mexico Region 1 BNV83"},"NVFS1D0C0TC0","Mexico Region 1 BNV",83,246130]
[null,null,null,null,null,null,null,null,null,null,null,null,{"$f":"CONCATENATE(N249,O249,P249)","v":"NVFS1D0C0TC0Mexico Region 1 BNV84"},"NVFS1D0C0TC0","Mexico Region 1 BNV",84,262188]
[null,null,null,null,null,null,null,null,null,null,null,null,{"$f":"CONCATENATE(N250,O250,P250)","v":"NVFS2D0C0TC0Mexico Region 1 BNV18"},"NVFS2D0C0TC0","Mexico Region 1 BNV",18,11551]
[null,null,null,null,null,null,null,null,null,null,null,null,{"$f":"CONCATENATE(N251,O251,P251)","v":"NVFS2D0C0TC0Mexico Region 1 BNV19"},"NVFS2D0C0TC0","Mexico Region 1 BNV",19,11893]
[null,null,null,null,null,null,null,null,null,null,null,null,{"$f":"CONCATENATE(N252,O252,P252)","v":"NVFS2D0C0TC0Mexico Region 1 BNV20"},"NVFS2D0C0TC0","Mexico Region 1 BNV",20,12246]
[null,null,null,null,null,null,null,null,null,null,null,null,{"$f":"CONCATENATE(N253,O253,P253)","v":"NVFS2D0C0TC0Mexico Region 1 BNV21"},"NVFS2D0C0TC0","Mexico Region 1 BNV",21,12609]
[null,null,null,null,null,null,null,null,null,null,null,null,{"$f":"CONCATENATE(N254,O254,P254)","v":"NVFS2D0C0TC0Mexico Region 1 BNV22"},"NVFS2D0C0TC0","Mexico Region 1 BNV",22,12982]
[null,null,null,null,null,null,null,null,null,null,null,null,{"$f":"CONCATENATE(N255,O255,P255)","v":"NVFS2D0C0TC0Mexico Region 1 BNV23"},"NVFS2D0C0TC0","Mexico Region 1 BNV",23,13367]
[null,null,null,null,null,null,null,null,null,null,null,null,{"$f":"CONCATENATE(N256,O256,P256)","v":"NVFS2D0C0TC0Mexico Region 1 BNV24"},"NVFS2D0C0TC0","Mexico Region 1 BNV",24,13763]
[null,null,null,null,null,null,null,null,null,null,null,null,{"$f":"CONCATENATE(N257,O257,P257)","v":"NVFS2D0C0TC0Mexico Region 1 BNV25"},"NVFS2D0C0TC0","Mexico Region 1 BNV",25,14172]
[null,null,null,null,null,null,null,null,null,null,null,null,{"$f":"CONCATENATE(N258,O258,P258)","v":"NVFS2D0C0TC0Mexico Region 1 BNV26"},"NVFS2D0C0TC0","Mexico Region 1 BNV",26,14593]
[null,null,null,null,null,null,null,null,null,null,null,null,{"$f":"CONCATENATE(N259,O259,P259)","v":"NVFS2D0C0TC0Mexico Region 1 BNV27"},"NVFS2D0C0TC0","Mexico Region 1 BNV",27,15026]
[null,null,null,null,null,null,null,null,null,null,null,null,{"$f":"CONCATENATE(N260,O260,P260)","v":"NVFS2D0C0TC0Mexico Region 1 BNV28"},"NVFS2D0C0TC0","Mexico Region 1 BNV",28,15472]
[null,null,null,null,null,null,null,null,null,null,null,null,{"$f":"CONCATENATE(N261,O261,P261)","v":"NVFS2D0C0TC0Mexico Region 1 BNV29"},"NVFS2D0C0TC0","Mexico Region 1 BNV",29,15932]
[null,null,null,null,null,null,null,null,null,null,null,null,{"$f":"CONCATENATE(N262,O262,P262)","v":"NVFS2D0C0TC0Mexico Region 1 BNV30"},"NVFS2D0C0TC0","Mexico Region 1 BNV",30,17979]
[null,null,null,null,null,null,null,null,null,null,null,null,{"$f":"CONCATENATE(N263,O263,P263)","v":"NVFS2D0C0TC0Mexico Region 1 BNV31"},"NVFS2D0C0TC0","Mexico Region 1 BNV",31,18514]
[null,null,null,null,null,null,null,null,null,null,null,null,{"$f":"CONCATENATE(N264,O264,P264)","v":"NVFS2D0C0TC0Mexico Region 1 BNV32"},"NVFS2D0C0TC0","Mexico Region 1 BNV",32,19065]
[null,null,null,null,null,null,null,null,null,null,null,null,{"$f":"CONCATENATE(N265,O265,P265)","v":"NVFS2D0C0TC0Mexico Region 1 BNV33"},"NVFS2D0C0TC0","Mexico Region 1 BNV",33,19633]
[null,null,null,null,null,null,null,null,null,null,null,null,{"$f":"CONCATENATE(N266,O266,P266)","v":"NVFS2D0C0TC0Mexico Region 1 BNV34"},"NVFS2D0C0TC0","Mexico Region 1 BNV",34,20218]
[null,null,null,null,null,null,null,null,null,null,null,null,{"$f":"CONCATENATE(N267,O267,P267)","v":"NVFS2D0C0TC0Mexico Region 1 BNV35"},"NVFS2D0C0TC0","Mexico Region 1 BNV",35,20819]
[null,null,null,null,null,null,null,null,null,null,null,null,{"$f":"CONCATENATE(N268,O268,P268)","v":"NVFS2D0C0TC0Mexico Region 1 BNV36"},"NVFS2D0C0TC0","Mexico Region 1 BNV",36,21440]
[null,null,null,null,null,null,null,null,null,null,null,null,{"$f":"CONCATENATE(N269,O269,P269)","v":"NVFS2D0C0TC0Mexico Region 1 BNV37"},"NVFS2D0C0TC0","Mexico Region 1 BNV",37,22079]
[null,null,null,null,null,null,null,null,null,null,null,null,{"$f":"CONCATENATE(N270,O270,P270)","v":"NVFS2D0C0TC0Mexico Region 1 BNV38"},"NVFS2D0C0TC0","Mexico Region 1 BNV",38,22737]
[null,null,null,null,null,null,null,null,null,null,null,null,{"$f":"CONCATENATE(N271,O271,P271)","v":"NVFS2D0C0TC0Mexico Region 1 BNV39"},"NVFS2D0C0TC0","Mexico Region 1 BNV",39,22967]
[null,null,null,null,null,null,null,null,null,null,null,null,{"$f":"CONCATENATE(N272,O272,P272)","v":"NVFS2D0C0TC0Mexico Region 1 BNV40"},"NVFS2D0C0TC0","Mexico Region 1 BNV",40,23026]
[null,null,null,null,null,null,null,null,null,null,null,null,{"$f":"CONCATENATE(N273,O273,P273)","v":"NVFS2D0C0TC0Mexico Region 1 BNV41"},"NVFS2D0C0TC0","Mexico Region 1 BNV",41,23219]
[null,null,null,null,null,null,null,null,null,null,null,null,{"$f":"CONCATENATE(N274,O274,P274)","v":"NVFS2D0C0TC0Mexico Region 1 BNV42"},"NVFS2D0C0TC0","Mexico Region 1 BNV",42,23895]
[null,null,null,null,null,null,null,null,null,null,null,null,{"$f":"CONCATENATE(N275,O275,P275)","v":"NVFS2D0C0TC0Mexico Region 1 BNV43"},"NVFS2D0C0TC0","Mexico Region 1 BNV",43,24846]
[null,null,null,null,null,null,null,null,null,null,null,null,{"$f":"CONCATENATE(N276,O276,P276)","v":"NVFS2D0C0TC0Mexico Region 1 BNV44"},"NVFS2D0C0TC0","Mexico Region 1 BNV",44,25833]
[null,null,null,null,null,null,null,null,null,null,null,null,{"$f":"CONCATENATE(N277,O277,P277)","v":"NVFS2D0C0TC0Mexico Region 1 BNV45"},"NVFS2D0C0TC0","Mexico Region 1 BNV",45,26861]
[null,null,null,null,null,null,null,null,null,null,null,null,{"$f":"CONCATENATE(N278,O278,P278)","v":"NVFS2D0C0TC0Mexico Region 1 BNV46"},"NVFS2D0C0TC0","Mexico Region 1 BNV",46,27930]
[null,null,null,null,null,null,null,null,null,null,null,null,{"$f":"CONCATENATE(N279,O279,P279)","v":"NVFS2D0C0TC0Mexico Region 1 BNV47"},"NVFS2D0C0TC0","Mexico Region 1 BNV",47,29040]
[null,null,null,null,null,null,null,null,null,null,null,null,{"$f":"CONCATENATE(N280,O280,P280)","v":"NVFS2D0C0TC0Mexico Region 1 BNV48"},"NVFS2D0C0TC0","Mexico Region 1 BNV",48,30196]
[null,null,null,null,null,null,null,null,null,null,null,null,{"$f":"CONCATENATE(N281,O281,P281)","v":"NVFS2D0C0TC0Mexico Region 1 BNV49"},"NVFS2D0C0TC0","Mexico Region 1 BNV",49,31398]
[null,null,null,null,null,null,null,null,null,null,null,null,{"$f":"CONCATENATE(N282,O282,P282)","v":"NVFS2D0C0TC0Mexico Region 1 BNV50"},"NVFS2D0C0TC0","Mexico Region 1 BNV",50,32649]
[null,null,null,null,null,null,null,null,null,null,null,null,{"$f":"CONCATENATE(N283,O283,P283)","v":"NVFS2D0C0TC0Mexico Region 1 BNV51"},"NVFS2D0C0TC0","Mexico Region 1 BNV",51,34111]
[null,null,null,null,null,null,null,null,null,null,null,null,{"$f":"CONCATENATE(N284,O284,P284)","v":"NVFS2D0C0TC0Mexico Region 1 BNV52"},"NVFS2D0C0TC0","Mexico Region 1 BNV",52,35809]
[null,null,null,null,null,null,null,null,null,null,null,null,{"$f":"CONCATENATE(N285,O285,P285)","v":"NVFS2D0C0TC0Mexico Region 1 BNV53"},"NVFS2D0C0TC0","Mexico Region 1 BNV",53,38112]
[null,null,null,null,null,null,null,null,null,null,null,null,{"$f":"CONCATENATE(N286,O286,P286)","v":"NVFS2D0C0TC0Mexico Region 1 BNV54"},"NVFS2D0C0TC0","Mexico Region 1 BNV",54,41909]
[null,null,null,null,null,null,null,null,null,null,null,null,{"$f":"CONCATENATE(N287,O287,P287)","v":"NVFS2D0C0TC0Mexico Region 1 BNV55"},"NVFS2D0C0TC0","Mexico Region 1 BNV",55,45109]
[null,null,null,null,null,null,null,null,null,null,null,null,{"$f":"CONCATENATE(N288,O288,P288)","v":"NVFS2D0C0TC0Mexico Region 1 BNV56"},"NVFS2D0C0TC0","Mexico Region 1 BNV",56,48546]
[null,null,null,null,null,null,null,null,null,null,null,null,{"$f":"CONCATENATE(N289,O289,P289)","v":"NVFS2D0C0TC0Mexico Region 1 BNV57"},"NVFS2D0C0TC0","Mexico Region 1 BNV",57,51977]
[null,null,null,null,null,null,null,null,null,null,null,null,{"$f":"CONCATENATE(N290,O290,P290)","v":"NVFS2D0C0TC0Mexico Region 1 BNV58"},"NVFS2D0C0TC0","Mexico Region 1 BNV",58,55930]
[null,null,null,null,null,null,null,null,null,null,null,null,{"$f":"CONCATENATE(N291,O291,P291)","v":"NVFS2D0C0TC0Mexico Region 1 BNV59"},"NVFS2D0C0TC0","Mexico Region 1 BNV",59,59579]
[null,null,null,null,null,null,null,null,null,null,null,null,{"$f":"CONCATENATE(N292,O292,P292)","v":"NVFS2D0C0TC0Mexico Region 1 BNV60"},"NVFS2D0C0TC0","Mexico Region 1 BNV",60,65379]
[null,null,null,null,null,null,null,null,null,null,null,null,{"$f":"CONCATENATE(N293,O293,P293)","v":"NVFS2D0C0TC0Mexico Region 1 BNV61"},"NVFS2D0C0TC0","Mexico Region 1 BNV",61,69646]
[null,null,null,null,null,null,null,null,null,null,null,null,{"$f":"CONCATENATE(N294,O294,P294)","v":"NVFS2D0C0TC0Mexico Region 1 BNV62"},"NVFS2D0C0TC0","Mexico Region 1 BNV",62,74189]
[null,null,null,null,null,null,null,null,null,null,null,null,{"$f":"CONCATENATE(N295,O295,P295)","v":"NVFS2D0C0TC0Mexico Region 1 BNV63"},"NVFS2D0C0TC0","Mexico Region 1 BNV",63,78258]
[null,null,null,null,null,null,null,null,null,null,null,null,{"$f":"CONCATENATE(N296,O296,P296)","v":"NVFS2D0C0TC0Mexico Region 1 BNV64"},"NVFS2D0C0TC0","Mexico Region 1 BNV",64,83363]
[null,null,null,null,null,null,null,null,null,null,null,null,{"$f":"CONCATENATE(N297,O297,P297)","v":"NVFS2D0C0TC0Mexico Region 1 BNV65"},"NVFS2D0C0TC0","Mexico Region 1 BNV",65,88802]
[null,null,null,null,null,null,null,null,null,null,null,null,{"$f":"CONCATENATE(N298,O298,P298)","v":"NVFS2D0C0TC0Mexico Region 1 BNV66"},"NVFS2D0C0TC0","Mexico Region 1 BNV",66,95061]
[null,null,null,null,null,null,null,null,null,null,null,null,{"$f":"CONCATENATE(N299,O299,P299)","v":"NVFS2D0C0TC0Mexico Region 1 BNV67"},"NVFS2D0C0TC0","Mexico Region 1 BNV",67,101760]
[null,null,null,null,null,null,null,null,null,null,null,null,{"$f":"CONCATENATE(N300,O300,P300)","v":"NVFS2D0C0TC0Mexico Region 1 BNV68"},"NVFS2D0C0TC0","Mexico Region 1 BNV",68,108398]
[null,null,null,null,null,null,null,null,null,null,null,null,{"$f":"CONCATENATE(N301,O301,P301)","v":"NVFS2D0C0TC0Mexico Region 1 BNV69"},"NVFS2D0C0TC0","Mexico Region 1 BNV",69,115470]
[null,null,null,null,null,null,null,null,null,null,null,null,{"$f":"CONCATENATE(N302,O302,P302)","v":"NVFS2D0C0TC0Mexico Region 1 BNV70"},"NVFS2D0C0TC0","Mexico Region 1 BNV",70,123004]
[null,null,null,null,null,null,null,null,null,null,null,null,{"$f":"CONCATENATE(N303,O303,P303)","v":"NVFS2D0C0TC0Mexico Region 1 BNV71"},"NVFS2D0C0TC0","Mexico Region 1 BNV",71,131028]
[null,null,null,null,null,null,null,null,null,null,null,null,{"$f":"CONCATENATE(N304,O304,P304)","v":"NVFS2D0C0TC0Mexico Region 1 BNV72"},"NVFS2D0C0TC0","Mexico Region 1 BNV",72,139577]
[null,null,null,null,null,null,null,null,null,null,null,null,{"$f":"CONCATENATE(N305,O305,P305)","v":"NVFS2D0C0TC0Mexico Region 1 BNV73"},"NVFS2D0C0TC0","Mexico Region 1 BNV",73,148682]
[null,null,null,null,null,null,null,null,null,null,null,null,{"$f":"CONCATENATE(N306,O306,P306)","v":"NVFS2D0C0TC0Mexico Region 1 BNV74"},"NVFS2D0C0TC0","Mexico Region 1 BNV",74,158382]
[null,null,null,null,null,null,null,null,null,null,null,null,{"$f":"CONCATENATE(N307,O307,P307)","v":"NVFS2D0C0TC0Mexico Region 1 BNV75"},"NVFS2D0C0TC0","Mexico Region 1 BNV",75,168716]
[null,null,null,null,null,null,null,null,null,null,null,null,{"$f":"CONCATENATE(N308,O308,P308)","v":"NVFS2D0C0TC0Mexico Region 1 BNV76"},"NVFS2D0C0TC0","Mexico Region 1 BNV",76,179723]
[null,null,null,null,null,null,null,null,null,null,null,null,{"$f":"CONCATENATE(N309,O309,P309)","v":"NVFS2D0C0TC0Mexico Region 1 BNV77"},"NVFS2D0C0TC0","Mexico Region 1 BNV",77,191447]
[null,null,null,null,null,null,null,null,null,null,null,null,{"$f":"CONCATENATE(N310,O310,P310)","v":"NVFS2D0C0TC0Mexico Region 1 BNV78"},"NVFS2D0C0TC0","Mexico Region 1 BNV",78,203937]
[null,null,null,null,null,null,null,null,null,null,null,null,{"$f":"CONCATENATE(N311,O311,P311)","v":"NVFS2D0C0TC0Mexico Region 1 BNV79"},"NVFS2D0C0TC0","Mexico Region 1 BNV",79,217242]
[null,null,null,null,null,null,null,null,null,null,null,null,{"$f":"CONCATENATE(N312,O312,P312)","v":"NVFS2D0C0TC0Mexico Region 1 BNV80"},"NVFS2D0C0TC0","Mexico Region 1 BNV",80,231414]
[null,null,null,null,null,null,null,null,null,null,null,null,{"$f":"CONCATENATE(N313,O313,P313)","v":"NVFS2D0C0TC0Mexico Region 1 BNV81"},"NVFS2D0C0TC0","Mexico Region 1 BNV",81,246512]
[null,null,null,null,null,null,null,null,null,null,null,null,{"$f":"CONCATENATE(N314,O314,P314)","v":"NVFS2D0C0TC0Mexico Region 1 BNV82"},"NVFS2D0C0TC0","Mexico Region 1 BNV",82,262595]
[null,null,null,null,null,null,null,null,null,null,null,null,{"$f":"CONCATENATE(N315,O315,P315)","v":"NVFS2D0C0TC0Mexico Region 1 BNV83"},"NVFS2D0C0TC0","Mexico Region 1 BNV",83,279726]
[null,null,null,null,null,null,null,null,null,null,null,null,{"$f":"CONCATENATE(N316,O316,P316)","v":"NVFS2D0C0TC0Mexico Region 1 BNV84"},"NVFS2D0C0TC0","Mexico Region 1 BNV",84,297975]
[null,null,null,null,null,null,null,null,null,null,null,null,{"$f":"CONCATENATE(N317,O317,P317)","v":"NVFS3D0C0TC0Mexico Region 1 BNV18"},"NVFS3D0C0TC0","Mexico Region 1 BNV",18,12512]
[null,null,null,null,null,null,null,null,null,null,null,null,{"$f":"CONCATENATE(N318,O318,P318)","v":"NVFS3D0C0TC0Mexico Region 1 BNV19"},"NVFS3D0C0TC0","Mexico Region 1 BNV",19,12884]
[null,null,null,null,null,null,null,null,null,null,null,null,{"$f":"CONCATENATE(N319,O319,P319)","v":"NVFS3D0C0TC0Mexico Region 1 BNV20"},"NVFS3D0C0TC0","Mexico Region 1 BNV",20,13265]
[null,null,null,null,null,null,null,null,null,null,null,null,{"$f":"CONCATENATE(N320,O320,P320)","v":"NVFS3D0C0TC0Mexico Region 1 BNV21"},"NVFS3D0C0TC0","Mexico Region 1 BNV",21,13658]
[null,null,null,null,null,null,null,null,null,null,null,null,{"$f":"CONCATENATE(N321,O321,P321)","v":"NVFS3D0C0TC0Mexico Region 1 BNV22"},"NVFS3D0C0TC0","Mexico Region 1 BNV",22,14063]
[null,null,null,null,null,null,null,null,null,null,null,null,{"$f":"CONCATENATE(N322,O322,P322)","v":"NVFS3D0C0TC0Mexico Region 1 BNV23"},"NVFS3D0C0TC0","Mexico Region 1 BNV",23,14481]
[null,null,null,null,null,null,null,null,null,null,null,null,{"$f":"CONCATENATE(N323,O323,P323)","v":"NVFS3D0C0TC0Mexico Region 1 BNV24"},"NVFS3D0C0TC0","Mexico Region 1 BNV",24,14911]
[null,null,null,null,null,null,null,null,null,null,null,null,{"$f":"CONCATENATE(N324,O324,P324)","v":"NVFS3D0C0TC0Mexico Region 1 BNV25"},"NVFS3D0C0TC0","Mexico Region 1 BNV",25,15353]
[null,null,null,null,null,null,null,null,null,null,null,null,{"$f":"CONCATENATE(N325,O325,P325)","v":"NVFS3D0C0TC0Mexico Region 1 BNV26"},"NVFS3D0C0TC0","Mexico Region 1 BNV",26,15809]
[null,null,null,null,null,null,null,null,null,null,null,null,{"$f":"CONCATENATE(N326,O326,P326)","v":"NVFS3D0C0TC0Mexico Region 1 BNV27"},"NVFS3D0C0TC0","Mexico Region 1 BNV",27,16279]
[null,null,null,null,null,null,null,null,null,null,null,null,{"$f":"CONCATENATE(N327,O327,P327)","v":"NVFS3D0C0TC0Mexico Region 1 BNV28"},"NVFS3D0C0TC0","Mexico Region 1 BNV",28,16761]
[null,null,null,null,null,null,null,null,null,null,null,null,{"$f":"CONCATENATE(N328,O328,P328)","v":"NVFS3D0C0TC0Mexico Region 1 BNV29"},"NVFS3D0C0TC0","Mexico Region 1 BNV",29,17260]
[null,null,null,null,null,null,null,null,null,null,null,null,{"$f":"CONCATENATE(N329,O329,P329)","v":"NVFS3D0C0TC0Mexico Region 1 BNV30"},"NVFS3D0C0TC0","Mexico Region 1 BNV",30,19477]
[null,null,null,null,null,null,null,null,null,null,null,null,{"$f":"CONCATENATE(N330,O330,P330)","v":"NVFS3D0C0TC0Mexico Region 1 BNV31"},"NVFS3D0C0TC0","Mexico Region 1 BNV",31,20056]
[null,null,null,null,null,null,null,null,null,null,null,null,{"$f":"CONCATENATE(N331,O331,P331)","v":"NVFS3D0C0TC0Mexico Region 1 BNV32"},"NVFS3D0C0TC0","Mexico Region 1 BNV",32,20654]
[null,null,null,null,null,null,null,null,null,null,null,null,{"$f":"CONCATENATE(N332,O332,P332)","v":"NVFS3D0C0TC0Mexico Region 1 BNV33"},"NVFS3D0C0TC0","Mexico Region 1 BNV",33,21268]
[null,null,null,null,null,null,null,null,null,null,null,null,{"$f":"CONCATENATE(N333,O333,P333)","v":"NVFS3D0C0TC0Mexico Region 1 BNV34"},"NVFS3D0C0TC0","Mexico Region 1 BNV",34,21902]
[null,null,null,null,null,null,null,null,null,null,null,null,{"$f":"CONCATENATE(N334,O334,P334)","v":"NVFS3D0C0TC0Mexico Region 1 BNV35"},"NVFS3D0C0TC0","Mexico Region 1 BNV",35,22554]
[null,null,null,null,null,null,null,null,null,null,null,null,{"$f":"CONCATENATE(N335,O335,P335)","v":"NVFS3D0C0TC0Mexico Region 1 BNV36"},"NVFS3D0C0TC0","Mexico Region 1 BNV",36,23226]
[null,null,null,null,null,null,null,null,null,null,null,null,{"$f":"CONCATENATE(N336,O336,P336)","v":"NVFS3D0C0TC0Mexico Region 1 BNV37"},"NVFS3D0C0TC0","Mexico Region 1 BNV",37,23918]
[null,null,null,null,null,null,null,null,null,null,null,null,{"$f":"CONCATENATE(N337,O337,P337)","v":"NVFS3D0C0TC0Mexico Region 1 BNV38"},"NVFS3D0C0TC0","Mexico Region 1 BNV",38,24632]
[null,null,null,null,null,null,null,null,null,null,null,null,{"$f":"CONCATENATE(N338,O338,P338)","v":"NVFS3D0C0TC0Mexico Region 1 BNV39"},"NVFS3D0C0TC0","Mexico Region 1 BNV",39,24879]
[null,null,null,null,null,null,null,null,null,null,null,null,{"$f":"CONCATENATE(N339,O339,P339)","v":"NVFS3D0C0TC0Mexico Region 1 BNV40"},"NVFS3D0C0TC0","Mexico Region 1 BNV",40,24946]
[null,null,null,null,null,null,null,null,null,null,null,null,{"$f":"CONCATENATE(N340,O340,P340)","v":"NVFS3D0C0TC0Mexico Region 1 BNV41"},"NVFS3D0C0TC0","Mexico Region 1 BNV",41,25154]
[null,null,null,null,null,null,null,null,null,null,null,null,{"$f":"CONCATENATE(N341,O341,P341)","v":"NVFS3D0C0TC0Mexico Region 1 BNV42"},"NVFS3D0C0TC0","Mexico Region 1 BNV",42,25886]
[null,null,null,null,null,null,null,null,null,null,null,null,{"$f":"CONCATENATE(N342,O342,P342)","v":"NVFS3D0C0TC0Mexico Region 1 BNV43"},"NVFS3D0C0TC0","Mexico Region 1 BNV",43,26916]
[null,null,null,null,null,null,null,null,null,null,null,null,{"$f":"CONCATENATE(N343,O343,P343)","v":"NVFS3D0C0TC0Mexico Region 1 BNV44"},"NVFS3D0C0TC0","Mexico Region 1 BNV",44,27986]
[null,null,null,null,null,null,null,null,null,null,null,null,{"$f":"CONCATENATE(N344,O344,P344)","v":"NVFS3D0C0TC0Mexico Region 1 BNV45"},"NVFS3D0C0TC0","Mexico Region 1 BNV",45,29098]
[null,null,null,null,null,null,null,null,null,null,null,null,{"$f":"CONCATENATE(N345,O345,P345)","v":"NVFS3D0C0TC0Mexico Region 1 BNV46"},"NVFS3D0C0TC0","Mexico Region 1 BNV",46,30256]
[null,null,null,null,null,null,null,null,null,null,null,null,{"$f":"CONCATENATE(N346,O346,P346)","v":"NVFS3D0C0TC0Mexico Region 1 BNV47"},"NVFS3D0C0TC0","Mexico Region 1 BNV",47,31460]
[null,null,null,null,null,null,null,null,null,null,null,null,{"$f":"CONCATENATE(N347,O347,P347)","v":"NVFS3D0C0TC0Mexico Region 1 BNV48"},"NVFS3D0C0TC0","Mexico Region 1 BNV",48,32712]
[null,null,null,null,null,null,null,null,null,null,null,null,{"$f":"CONCATENATE(N348,O348,P348)","v":"NVFS3D0C0TC0Mexico Region 1 BNV49"},"NVFS3D0C0TC0","Mexico Region 1 BNV",49,34014]
[null,null,null,null,null,null,null,null,null,null,null,null,{"$f":"CONCATENATE(N349,O349,P349)","v":"NVFS3D0C0TC0Mexico Region 1 BNV50"},"NVFS3D0C0TC0","Mexico Region 1 BNV",50,35368]
[null,null,null,null,null,null,null,null,null,null,null,null,{"$f":"CONCATENATE(N350,O350,P350)","v":"NVFS3D0C0TC0Mexico Region 1 BNV51"},"NVFS3D0C0TC0","Mexico Region 1 BNV",51,36953]
[null,null,null,null,null,null,null,null,null,null,null,null,{"$f":"CONCATENATE(N351,O351,P351)","v":"NVFS3D0C0TC0Mexico Region 1 BNV52"},"NVFS3D0C0TC0","Mexico Region 1 BNV",52,38793]
[null,null,null,null,null,null,null,null,null,null,null,null,{"$f":"CONCATENATE(N352,O352,P352)","v":"NVFS3D0C0TC0Mexico Region 1 BNV53"},"NVFS3D0C0TC0","Mexico Region 1 BNV",53,41288]
[null,null,null,null,null,null,null,null,null,null,null,null,{"$f":"CONCATENATE(N353,O353,P353)","v":"NVFS3D0C0TC0Mexico Region 1 BNV54"},"NVFS3D0C0TC0","Mexico Region 1 BNV",54,45402]
[null,null,null,null,null,null,null,null,null,null,null,null,{"$f":"CONCATENATE(N354,O354,P354)","v":"NVFS3D0C0TC0Mexico Region 1 BNV55"},"NVFS3D0C0TC0","Mexico Region 1 BNV",55,48867]
[null,null,null,null,null,null,null,null,null,null,null,null,{"$f":"CONCATENATE(N355,O355,P355)","v":"NVFS3D0C0TC0Mexico Region 1 BNV56"},"NVFS3D0C0TC0","Mexico Region 1 BNV",56,52591]
[null,null,null,null,null,null,null,null,null,null,null,null,{"$f":"CONCATENATE(N356,O356,P356)","v":"NVFS3D0C0TC0Mexico Region 1 BNV57"},"NVFS3D0C0TC0","Mexico Region 1 BNV",57,56309]
[null,null,null,null,null,null,null,null,null,null,null,null,{"$f":"CONCATENATE(N357,O357,P357)","v":"NVFS3D0C0TC0Mexico Region 1 BNV58"},"NVFS3D0C0TC0","Mexico Region 1 BNV",58,60591]
[null,null,null,null,null,null,null,null,null,null,null,null,{"$f":"CONCATENATE(N358,O358,P358)","v":"NVFS3D0C0TC0Mexico Region 1 BNV59"},"NVFS3D0C0TC0","Mexico Region 1 BNV",59,64544]
[null,null,null,null,null,null,null,null,null,null,null,null,{"$f":"CONCATENATE(N359,O359,P359)","v":"NVFS3D0C0TC0Mexico Region 1 BNV60"},"NVFS3D0C0TC0","Mexico Region 1 BNV",60,70828]
[null,null,null,null,null,null,null,null,null,null,null,null,{"$f":"CONCATENATE(N360,O360,P360)","v":"NVFS3D0C0TC0Mexico Region 1 BNV61"},"NVFS3D0C0TC0","Mexico Region 1 BNV",61,75449]
[null,null,null,null,null,null,null,null,null,null,null,null,{"$f":"CONCATENATE(N361,O361,P361)","v":"NVFS3D0C0TC0Mexico Region 1 BNV62"},"NVFS3D0C0TC0","Mexico Region 1 BNV",62,80370]
[null,null,null,null,null,null,null,null,null,null,null,null,{"$f":"CONCATENATE(N362,O362,P362)","v":"NVFS3D0C0TC0Mexico Region 1 BNV63"},"NVFS3D0C0TC0","Mexico Region 1 BNV",63,84779]
[null,null,null,null,null,null,null,null,null,null,null,null,{"$f":"CONCATENATE(N363,O363,P363)","v":"NVFS3D0C0TC0Mexico Region 1 BNV64"},"NVFS3D0C0TC0","Mexico Region 1 BNV",64,90309]
[null,null,null,null,null,null,null,null,null,null,null,null,{"$f":"CONCATENATE(N364,O364,P364)","v":"NVFS3D0C0TC0Mexico Region 1 BNV65"},"NVFS3D0C0TC0","Mexico Region 1 BNV",65,96202]
[null,null,null,null,null,null,null,null,null,null,null,null,{"$f":"CONCATENATE(N365,O365,P365)","v":"NVFS3D0C0TC0Mexico Region 1 BNV66"},"NVFS3D0C0TC0","Mexico Region 1 BNV",66,102982]
[null,null,null,null,null,null,null,null,null,null,null,null,{"$f":"CONCATENATE(N366,O366,P366)","v":"NVFS3D0C0TC0Mexico Region 1 BNV67"},"NVFS3D0C0TC0","Mexico Region 1 BNV",67,110239]
[null,null,null,null,null,null,null,null,null,null,null,null,{"$f":"CONCATENATE(N367,O367,P367)","v":"NVFS3D0C0TC0Mexico Region 1 BNV68"},"NVFS3D0C0TC0","Mexico Region 1 BNV",68,117430]
[null,null,null,null,null,null,null,null,null,null,null,null,{"$f":"CONCATENATE(N368,O368,P368)","v":"NVFS3D0C0TC0Mexico Region 1 BNV69"},"NVFS3D0C0TC0","Mexico Region 1 BNV",69,125091]
[null,null,null,null,null,null,null,null,null,null,null,null,{"$f":"CONCATENATE(N369,O369,P369)","v":"NVFS3D0C0TC0Mexico Region 1 BNV70"},"NVFS3D0C0TC0","Mexico Region 1 BNV",70,133253]
[null,null,null,null,null,null,null,null,null,null,null,null,{"$f":"CONCATENATE(N370,O370,P370)","v":"NVFS3D0C0TC0Mexico Region 1 BNV71"},"NVFS3D0C0TC0","Mexico Region 1 BNV",71,141946]
[null,null,null,null,null,null,null,null,null,null,null,null,{"$f":"CONCATENATE(N371,O371,P371)","v":"NVFS3D0C0TC0Mexico Region 1 BNV72"},"NVFS3D0C0TC0","Mexico Region 1 BNV",72,151207]
[null,null,null,null,null,null,null,null,null,null,null,null,{"$f":"CONCATENATE(N372,O372,P372)","v":"NVFS3D0C0TC0Mexico Region 1 BNV73"},"NVFS3D0C0TC0","Mexico Region 1 BNV",73,161072]
[null,null,null,null,null,null,null,null,null,null,null,null,{"$f":"CONCATENATE(N373,O373,P373)","v":"NVFS3D0C0TC0Mexico Region 1 BNV74"},"NVFS3D0C0TC0","Mexico Region 1 BNV",74,171579]
[null,null,null,null,null,null,null,null,null,null,null,null,{"$f":"CONCATENATE(N374,O374,P374)","v":"NVFS3D0C0TC0Mexico Region 1 BNV75"},"NVFS3D0C0TC0","Mexico Region 1 BNV",75,182774]
[null,null,null,null,null,null,null,null,null,null,null,null,{"$f":"CONCATENATE(N375,O375,P375)","v":"NVFS3D0C0TC0Mexico Region 1 BNV76"},"NVFS3D0C0TC0","Mexico Region 1 BNV",76,194698]
[null,null,null,null,null,null,null,null,null,null,null,null,{"$f":"CONCATENATE(N376,O376,P376)","v":"NVFS3D0C0TC0Mexico Region 1 BNV77"},"NVFS3D0C0TC0","Mexico Region 1 BNV",77,207400]
[null,null,null,null,null,null,null,null,null,null,null,null,{"$f":"CONCATENATE(N377,O377,P377)","v":"NVFS3D0C0TC0Mexico Region 1 BNV78"},"NVFS3D0C0TC0","Mexico Region 1 BNV",78,220930]
[null,null,null,null,null,null,null,null,null,null,null,null,{"$f":"CONCATENATE(N378,O378,P378)","v":"NVFS3D0C0TC0Mexico Region 1 BNV79"},"NVFS3D0C0TC0","Mexico Region 1 BNV",79,235344]
[null,null,null,null,null,null,null,null,null,null,null,null,{"$f":"CONCATENATE(N379,O379,P379)","v":"NVFS3D0C0TC0Mexico Region 1 BNV80"},"NVFS3D0C0TC0","Mexico Region 1 BNV",80,250698]
[null,null,null,null,null,null,null,null,null,null,null,null,{"$f":"CONCATENATE(N380,O380,P380)","v":"NVFS3D0C0TC0Mexico Region 1 BNV81"},"NVFS3D0C0TC0","Mexico Region 1 BNV",81,267053]
[null,null,null,null,null,null,null,null,null,null,null,null,{"$f":"CONCATENATE(N381,O381,P381)","v":"NVFS3D0C0TC0Mexico Region 1 BNV82"},"NVFS3D0C0TC0","Mexico Region 1 BNV",82,284475]
[null,null,null,null,null,null,null,null,null,null,null,null,{"$f":"CONCATENATE(N382,O382,P382)","v":"NVFS3D0C0TC0Mexico Region 1 BNV83"},"NVFS3D0C0TC0","Mexico Region 1 BNV",83,303035]
[null,null,null,null,null,null,null,null,null,null,null,null,{"$f":"CONCATENATE(N383,O383,P383)","v":"NVFS3D0C0TC0Mexico Region 1 BNV84"},"NVFS3D0C0TC0","Mexico Region 1 BNV",84,322805]
[null,null,null,null,null,null,null,null,null,null,null,null,{"$f":"CONCATENATE(N384,O384,P384)","v":"NVFS4D0C0TC0Mexico Region 1 BNV18"},"NVFS4D0C0TC0","Mexico Region 1 BNV",18,13196]
[null,null,null,null,null,null,null,null,null,null,null,null,{"$f":"CONCATENATE(N385,O385,P385)","v":"NVFS4D0C0TC0Mexico Region 1 BNV19"},"NVFS4D0C0TC0","Mexico Region 1 BNV",19,13588]
[null,null,null,null,null,null,null,null,null,null,null,null,{"$f":"CONCATENATE(N386,O386,P386)","v":"NVFS4D0C0TC0Mexico Region 1 BNV20"},"NVFS4D0C0TC0","Mexico Region 1 BNV",20,13989]
[null,null,null,null,null,null,null,null,null,null,null,null,{"$f":"CONCATENATE(N387,O387,P387)","v":"NVFS4D0C0TC0Mexico Region 1 BNV21"},"NVFS4D0C0TC0","Mexico Region 1 BNV",21,14404]
[null,null,null,null,null,null,null,null,null,null,null,null,{"$f":"CONCATENATE(N388,O388,P388)","v":"NVFS4D0C0TC0Mexico Region 1 BNV22"},"NVFS4D0C0TC0","Mexico Region 1 BNV",22,14832]
[null,null,null,null,null,null,null,null,null,null,null,null,{"$f":"CONCATENATE(N389,O389,P389)","v":"NVFS4D0C0TC0Mexico Region 1 BNV23"},"NVFS4D0C0TC0","Mexico Region 1 BNV",23,15272]
[null,null,null,null,null,null,null,null,null,null,null,null,{"$f":"CONCATENATE(N390,O390,P390)","v":"NVFS4D0C0TC0Mexico Region 1 BNV24"},"NVFS4D0C0TC0","Mexico Region 1 BNV",24,15725]
[null,null,null,null,null,null,null,null,null,null,null,null,{"$f":"CONCATENATE(N391,O391,P391)","v":"NVFS4D0C0TC0Mexico Region 1 BNV25"},"NVFS4D0C0TC0","Mexico Region 1 BNV",25,16191]
[null,null,null,null,null,null,null,null,null,null,null,null,{"$f":"CONCATENATE(N392,O392,P392)","v":"NVFS4D0C0TC0Mexico Region 1 BNV26"},"NVFS4D0C0TC0","Mexico Region 1 BNV",26,16672]
[null,null,null,null,null,null,null,null,null,null,null,null,{"$f":"CONCATENATE(N393,O393,P393)","v":"NVFS4D0C0TC0Mexico Region 1 BNV27"},"NVFS4D0C0TC0","Mexico Region 1 BNV",27,17167]
[null,null,null,null,null,null,null,null,null,null,null,null,{"$f":"CONCATENATE(N394,O394,P394)","v":"NVFS4D0C0TC0Mexico Region 1 BNV28"},"NVFS4D0C0TC0","Mexico Region 1 BNV",28,17677]
[null,null,null,null,null,null,null,null,null,null,null,null,{"$f":"CONCATENATE(N395,O395,P395)","v":"NVFS4D0C0TC0Mexico Region 1 BNV29"},"NVFS4D0C0TC0","Mexico Region 1 BNV",29,18202]
[null,null,null,null,null,null,null,null,null,null,null,null,{"$f":"CONCATENATE(N396,O396,P396)","v":"NVFS4D0C0TC0Mexico Region 1 BNV30"},"NVFS4D0C0TC0","Mexico Region 1 BNV",30,20540]
[null,null,null,null,null,null,null,null,null,null,null,null,{"$f":"CONCATENATE(N397,O397,P397)","v":"NVFS4D0C0TC0Mexico Region 1 BNV31"},"NVFS4D0C0TC0","Mexico Region 1 BNV",31,21151]
[null,null,null,null,null,null,null,null,null,null,null,null,{"$f":"CONCATENATE(N398,O398,P398)","v":"NVFS4D0C0TC0Mexico Region 1 BNV32"},"NVFS4D0C0TC0","Mexico Region 1 BNV",32,21781]
[null,null,null,null,null,null,null,null,null,null,null,null,{"$f":"CONCATENATE(N399,O399,P399)","v":"NVFS4D0C0TC0Mexico Region 1 BNV33"},"NVFS4D0C0TC0","Mexico Region 1 BNV",33,22430]
[null,null,null,null,null,null,null,null,null,null,null,null,{"$f":"CONCATENATE(N400,O400,P400)","v":"NVFS4D0C0TC0Mexico Region 1 BNV34"},"NVFS4D0C0TC0","Mexico Region 1 BNV",34,23098]
[null,null,null,null,null,null,null,null,null,null,null,null,{"$f":"CONCATENATE(N401,O401,P401)","v":"NVFS4D0C0TC0Mexico Region 1 BNV35"},"NVFS4D0C0TC0","Mexico Region 1 BNV",35,23786]
[null,null,null,null,null,null,null,null,null,null,null,null,{"$f":"CONCATENATE(N402,O402,P402)","v":"NVFS4D0C0TC0Mexico Region 1 BNV36"},"NVFS4D0C0TC0","Mexico Region 1 BNV",36,24495]
[null,null,null,null,null,null,null,null,null,null,null,null,{"$f":"CONCATENATE(N403,O403,P403)","v":"NVFS4D0C0TC0Mexico Region 1 BNV37"},"NVFS4D0C0TC0","Mexico Region 1 BNV",37,25223]
[null,null,null,null,null,null,null,null,null,null,null,null,{"$f":"CONCATENATE(N404,O404,P404)","v":"NVFS4D0C0TC0Mexico Region 1 BNV38"},"NVFS4D0C0TC0","Mexico Region 1 BNV",38,25975]
[null,null,null,null,null,null,null,null,null,null,null,null,{"$f":"CONCATENATE(N405,O405,P405)","v":"NVFS4D0C0TC0Mexico Region 1 BNV39"},"NVFS4D0C0TC0","Mexico Region 1 BNV",39,26237]
[null,null,null,null,null,null,null,null,null,null,null,null,{"$f":"CONCATENATE(N406,O406,P406)","v":"NVFS4D0C0TC0Mexico Region 1 BNV40"},"NVFS4D0C0TC0","Mexico Region 1 BNV",40,26307]
[null,null,null,null,null,null,null,null,null,null,null,null,{"$f":"CONCATENATE(N407,O407,P407)","v":"NVFS4D0C0TC0Mexico Region 1 BNV41"},"NVFS4D0C0TC0","Mexico Region 1 BNV",41,26528]
[null,null,null,null,null,null,null,null,null,null,null,null,{"$f":"CONCATENATE(N408,O408,P408)","v":"NVFS4D0C0TC0Mexico Region 1 BNV42"},"NVFS4D0C0TC0","Mexico Region 1 BNV",42,27300]
[null,null,null,null,null,null,null,null,null,null,null,null,{"$f":"CONCATENATE(N409,O409,P409)","v":"NVFS4D0C0TC0Mexico Region 1 BNV43"},"NVFS4D0C0TC0","Mexico Region 1 BNV",43,28384]
[null,null,null,null,null,null,null,null,null,null,null,null,{"$f":"CONCATENATE(N410,O410,P410)","v":"NVFS4D0C0TC0Mexico Region 1 BNV44"},"NVFS4D0C0TC0","Mexico Region 1 BNV",44,29514]
[null,null,null,null,null,null,null,null,null,null,null,null,{"$f":"CONCATENATE(N411,O411,P411)","v":"NVFS4D0C0TC0Mexico Region 1 BNV45"},"NVFS4D0C0TC0","Mexico Region 1 BNV",45,30688]
[null,null,null,null,null,null,null,null,null,null,null,null,{"$f":"CONCATENATE(N412,O412,P412)","v":"NVFS4D0C0TC0Mexico Region 1 BNV46"},"NVFS4D0C0TC0","Mexico Region 1 BNV",46,31907]
[null,null,null,null,null,null,null,null,null,null,null,null,{"$f":"CONCATENATE(N413,O413,P413)","v":"NVFS4D0C0TC0Mexico Region 1 BNV47"},"NVFS4D0C0TC0","Mexico Region 1 BNV",47,33177]
[null,null,null,null,null,null,null,null,null,null,null,null,{"$f":"CONCATENATE(N414,O414,P414)","v":"NVFS4D0C0TC0Mexico Region 1 BNV48"},"NVFS4D0C0TC0","Mexico Region 1 BNV",48,34498]
[null,null,null,null,null,null,null,null,null,null,null,null,{"$f":"CONCATENATE(N415,O415,P415)","v":"NVFS4D0C0TC0Mexico Region 1 BNV49"},"NVFS4D0C0TC0","Mexico Region 1 BNV",49,35870]
[null,null,null,null,null,null,null,null,null,null,null,null,{"$f":"CONCATENATE(N416,O416,P416)","v":"NVFS4D0C0TC0Mexico Region 1 BNV50"},"NVFS4D0C0TC0","Mexico Region 1 BNV",50,37300]
[null,null,null,null,null,null,null,null,null,null,null,null,{"$f":"CONCATENATE(N417,O417,P417)","v":"NVFS4D0C0TC0Mexico Region 1 BNV51"},"NVFS4D0C0TC0","Mexico Region 1 BNV",51,38970]
[null,null,null,null,null,null,null,null,null,null,null,null,{"$f":"CONCATENATE(N418,O418,P418)","v":"NVFS4D0C0TC0Mexico Region 1 BNV52"},"NVFS4D0C0TC0","Mexico Region 1 BNV",52,40911]
[null,null,null,null,null,null,null,null,null,null,null,null,{"$f":"CONCATENATE(N419,O419,P419)","v":"NVFS4D0C0TC0Mexico Region 1 BNV53"},"NVFS4D0C0TC0","Mexico Region 1 BNV",53,43542]
[null,null,null,null,null,null,null,null,null,null,null,null,{"$f":"CONCATENATE(N420,O420,P420)","v":"NVFS4D0C0TC0Mexico Region 1 BNV54"},"NVFS4D0C0TC0","Mexico Region 1 BNV",54,47879]
[null,null,null,null,null,null,null,null,null,null,null,null,{"$f":"CONCATENATE(N421,O421,P421)","v":"NVFS4D0C0TC0Mexico Region 1 BNV55"},"NVFS4D0C0TC0","Mexico Region 1 BNV",55,51533]
[null,null,null,null,null,null,null,null,null,null,null,null,{"$f":"CONCATENATE(N422,O422,P422)","v":"NVFS4D0C0TC0Mexico Region 1 BNV56"},"NVFS4D0C0TC0","Mexico Region 1 BNV",56,55461]
[null,null,null,null,null,null,null,null,null,null,null,null,{"$f":"CONCATENATE(N423,O423,P423)","v":"NVFS4D0C0TC0Mexico Region 1 BNV57"},"NVFS4D0C0TC0","Mexico Region 1 BNV",57,59382]
[null,null,null,null,null,null,null,null,null,null,null,null,{"$f":"CONCATENATE(N424,O424,P424)","v":"NVFS4D0C0TC0Mexico Region 1 BNV58"},"NVFS4D0C0TC0","Mexico Region 1 BNV",58,63898]
[null,null,null,null,null,null,null,null,null,null,null,null,{"$f":"CONCATENATE(N425,O425,P425)","v":"NVFS4D0C0TC0Mexico Region 1 BNV59"},"NVFS4D0C0TC0","Mexico Region 1 BNV",59,68067]
[null,null,null,null,null,null,null,null,null,null,null,null,{"$f":"CONCATENATE(N426,O426,P426)","v":"NVFS4D0C0TC0Mexico Region 1 BNV60"},"NVFS4D0C0TC0","Mexico Region 1 BNV",60,74693]
[null,null,null,null,null,null,null,null,null,null,null,null,{"$f":"CONCATENATE(N427,O427,P427)","v":"NVFS4D0C0TC0Mexico Region 1 BNV61"},"NVFS4D0C0TC0","Mexico Region 1 BNV",61,79567]
[null,null,null,null,null,null,null,null,null,null,null,null,{"$f":"CONCATENATE(N428,O428,P428)","v":"NVFS4D0C0TC0Mexico Region 1 BNV62"},"NVFS4D0C0TC0","Mexico Region 1 BNV",62,84758]
[null,null,null,null,null,null,null,null,null,null,null,null,{"$f":"CONCATENATE(N429,O429,P429)","v":"NVFS4D0C0TC0Mexico Region 1 BNV63"},"NVFS4D0C0TC0","Mexico Region 1 BNV",63,89405]
[null,null,null,null,null,null,null,null,null,null,null,null,{"$f":"CONCATENATE(N430,O430,P430)","v":"NVFS4D0C0TC0Mexico Region 1 BNV64"},"NVFS4D0C0TC0","Mexico Region 1 BNV",64,95239]
[null,null,null,null,null,null,null,null,null,null,null,null,{"$f":"CONCATENATE(N431,O431,P431)","v":"NVFS4D0C0TC0Mexico Region 1 BNV65"},"NVFS4D0C0TC0","Mexico Region 1 BNV",65,101453]
[null,null,null,null,null,null,null,null,null,null,null,null,{"$f":"CONCATENATE(N432,O432,P432)","v":"NVFS4D0C0TC0Mexico Region 1 BNV66"},"NVFS4D0C0TC0","Mexico Region 1 BNV",66,108604]
[null,null,null,null,null,null,null,null,null,null,null,null,{"$f":"CONCATENATE(N433,O433,P433)","v":"NVFS4D0C0TC0Mexico Region 1 BNV67"},"NVFS4D0C0TC0","Mexico Region 1 BNV",67,116256]
[null,null,null,null,null,null,null,null,null,null,null,null,{"$f":"CONCATENATE(N434,O434,P434)","v":"NVFS4D0C0TC0Mexico Region 1 BNV68"},"NVFS4D0C0TC0","Mexico Region 1 BNV",68,123840]
[null,null,null,null,null,null,null,null,null,null,null,null,{"$f":"CONCATENATE(N435,O435,P435)","v":"NVFS4D0C0TC0Mexico Region 1 BNV69"},"NVFS4D0C0TC0","Mexico Region 1 BNV",69,131919]
[null,null,null,null,null,null,null,null,null,null,null,null,{"$f":"CONCATENATE(N436,O436,P436)","v":"NVFS4D0C0TC0Mexico Region 1 BNV70"},"NVFS4D0C0TC0","Mexico Region 1 BNV",70,140526]
[null,null,null,null,null,null,null,null,null,null,null,null,{"$f":"CONCATENATE(N437,O437,P437)","v":"NVFS4D0C0TC0Mexico Region 1 BNV71"},"NVFS4D0C0TC0","Mexico Region 1 BNV",71,149693]
[null,null,null,null,null,null,null,null,null,null,null,null,{"$f":"CONCATENATE(N438,O438,P438)","v":"NVFS4D0C0TC0Mexico Region 1 BNV72"},"NVFS4D0C0TC0","Mexico Region 1 BNV",72,159460]
[null,null,null,null,null,null,null,null,null,null,null,null,{"$f":"CONCATENATE(N439,O439,P439)","v":"NVFS4D0C0TC0Mexico Region 1 BNV73"},"NVFS4D0C0TC0","Mexico Region 1 BNV",73,169863]
[null,null,null,null,null,null,null,null,null,null,null,null,{"$f":"CONCATENATE(N440,O440,P440)","v":"NVFS4D0C0TC0Mexico Region 1 BNV74"},"NVFS4D0C0TC0","Mexico Region 1 BNV",74,180944]
[null,null,null,null,null,null,null,null,null,null,null,null,{"$f":"CONCATENATE(N441,O441,P441)","v":"NVFS4D0C0TC0Mexico Region 1 BNV75"},"NVFS4D0C0TC0","Mexico Region 1 BNV",75,192749]
[null,null,null,null,null,null,null,null,null,null,null,null,{"$f":"CONCATENATE(N442,O442,P442)","v":"NVFS4D0C0TC0Mexico Region 1 BNV76"},"NVFS4D0C0TC0","Mexico Region 1 BNV",76,205325]
[null,null,null,null,null,null,null,null,null,null,null,null,{"$f":"CONCATENATE(N443,O443,P443)","v":"NVFS4D0C0TC0Mexico Region 1 BNV77"},"NVFS4D0C0TC0","Mexico Region 1 BNV",77,218719]
[null,null,null,null,null,null,null,null,null,null,null,null,{"$f":"CONCATENATE(N444,O444,P444)","v":"NVFS4D0C0TC0Mexico Region 1 BNV78"},"NVFS4D0C0TC0","Mexico Region 1 BNV",78,232989]
[null,null,null,null,null,null,null,null,null,null,null,null,{"$f":"CONCATENATE(N445,O445,P445)","v":"NVFS4D0C0TC0Mexico Region 1 BNV79"},"NVFS4D0C0TC0","Mexico Region 1 BNV",79,248189]
[null,null,null,null,null,null,null,null,null,null,null,null,{"$f":"CONCATENATE(N446,O446,P446)","v":"NVFS4D0C0TC0Mexico Region 1 BNV80"},"NVFS4D0C0TC0","Mexico Region 1 BNV",80,264381]
[null,null,null,null,null,null,null,null,null,null,null,null,{"$f":"CONCATENATE(N447,O447,P447)","v":"NVFS4D0C0TC0Mexico Region 1 BNV81"},"NVFS4D0C0TC0","Mexico Region 1 BNV",81,281630]
[null,null,null,null,null,null,null,null,null,null,null,null,{"$f":"CONCATENATE(N448,O448,P448)","v":"NVFS4D0C0TC0Mexico Region 1 BNV82"},"NVFS4D0C0TC0","Mexico Region 1 BNV",82,300002]
[null,null,null,null,null,null,null,null,null,null,null,null,{"$f":"CONCATENATE(N449,O449,P449)","v":"NVFS4D0C0TC0Mexico Region 1 BNV83"},"NVFS4D0C0TC0","Mexico Region 1 BNV",83,319575]
[null,null,null,null,null,null,null,null,null,null,null,null,{"$f":"CONCATENATE(N450,O450,P450)","v":"NVFS4D0C0TC0Mexico Region 1 BNV84"},"NVFS4D0C0TC0","Mexico Region 1 BNV",84,340425]
[null,null,null,null,null,null,null,null,null,null,null,null,{"$f":"CONCATENATE(N451,O451,P451)","v":"NVFS5D0C0TC0Mexico Region 1 BNV18"},"NVFS5D0C0TC0","Mexico Region 1 BNV",18,13442]
[null,null,null,null,null,null,null,null,null,null,null,null,{"$f":"CONCATENATE(N452,O452,P452)","v":"NVFS5D0C0TC0Mexico Region 1 BNV19"},"NVFS5D0C0TC0","Mexico Region 1 BNV",19,13840]
[null,null,null,null,null,null,null,null,null,null,null,null,{"$f":"CONCATENATE(N453,O453,P453)","v":"NVFS5D0C0TC0Mexico Region 1 BNV20"},"NVFS5D0C0TC0","Mexico Region 1 BNV",20,14251]
[null,null,null,null,null,null,null,null,null,null,null,null,{"$f":"CONCATENATE(N454,O454,P454)","v":"NVFS5D0C0TC0Mexico Region 1 BNV21"},"NVFS5D0C0TC0","Mexico Region 1 BNV",21,14672]
[null,null,null,null,null,null,null,null,null,null,null,null,{"$f":"CONCATENATE(N455,O455,P455)","v":"NVFS5D0C0TC0Mexico Region 1 BNV22"},"NVFS5D0C0TC0","Mexico Region 1 BNV",22,15107]
[null,null,null,null,null,null,null,null,null,null,null,null,{"$f":"CONCATENATE(N456,O456,P456)","v":"NVFS5D0C0TC0Mexico Region 1 BNV23"},"NVFS5D0C0TC0","Mexico Region 1 BNV",23,15556]
[null,null,null,null,null,null,null,null,null,null,null,null,{"$f":"CONCATENATE(N457,O457,P457)","v":"NVFS5D0C0TC0Mexico Region 1 BNV24"},"NVFS5D0C0TC0","Mexico Region 1 BNV",24,16018]
[null,null,null,null,null,null,null,null,null,null,null,null,{"$f":"CONCATENATE(N458,O458,P458)","v":"NVFS5D0C0TC0Mexico Region 1 BNV25"},"NVFS5D0C0TC0","Mexico Region 1 BNV",25,16493]
[null,null,null,null,null,null,null,null,null,null,null,null,{"$f":"CONCATENATE(N459,O459,P459)","v":"NVFS5D0C0TC0Mexico Region 1 BNV26"},"NVFS5D0C0TC0","Mexico Region 1 BNV",26,16982]
[null,null,null,null,null,null,null,null,null,null,null,null,{"$f":"CONCATENATE(N460,O460,P460)","v":"NVFS5D0C0TC0Mexico Region 1 BNV27"},"NVFS5D0C0TC0","Mexico Region 1 BNV",27,17486]
[null,null,null,null,null,null,null,null,null,null,null,null,{"$f":"CONCATENATE(N461,O461,P461)","v":"NVFS5D0C0TC0Mexico Region 1 BNV28"},"NVFS5D0C0TC0","Mexico Region 1 BNV",28,18005]
[null,null,null,null,null,null,null,null,null,null,null,null,{"$f":"CONCATENATE(N462,O462,P462)","v":"NVFS5D0C0TC0Mexico Region 1 BNV29"},"NVFS5D0C0TC0","Mexico Region 1 BNV",29,18540]
[null,null,null,null,null,null,null,null,null,null,null,null,{"$f":"CONCATENATE(N463,O463,P463)","v":"NVFS5D0C0TC0Mexico Region 1 BNV30"},"NVFS5D0C0TC0","Mexico Region 1 BNV",30,20923]
[null,null,null,null,null,null,null,null,null,null,null,null,{"$f":"CONCATENATE(N464,O464,P464)","v":"NVFS5D0C0TC0Mexico Region 1 BNV31"},"NVFS5D0C0TC0","Mexico Region 1 BNV",31,21546]
[null,null,null,null,null,null,null,null,null,null,null,null,{"$f":"CONCATENATE(N465,O465,P465)","v":"NVFS5D0C0TC0Mexico Region 1 BNV32"},"NVFS5D0C0TC0","Mexico Region 1 BNV",32,22188]
[null,null,null,null,null,null,null,null,null,null,null,null,{"$f":"CONCATENATE(N466,O466,P466)","v":"NVFS5D0C0TC0Mexico Region 1 BNV33"},"NVFS5D0C0TC0","Mexico Region 1 BNV",33,22847]
[null,null,null,null,null,null,null,null,null,null,null,null,{"$f":"CONCATENATE(N467,O467,P467)","v":"NVFS5D0C0TC0Mexico Region 1 BNV34"},"NVFS5D0C0TC0","Mexico Region 1 BNV",34,23528]
[null,null,null,null,null,null,null,null,null,null,null,null,{"$f":"CONCATENATE(N468,O468,P468)","v":"NVFS5D0C0TC0Mexico Region 1 BNV35"},"NVFS5D0C0TC0","Mexico Region 1 BNV",35,24228]
[null,null,null,null,null,null,null,null,null,null,null,null,{"$f":"CONCATENATE(N469,O469,P469)","v":"NVFS5D0C0TC0Mexico Region 1 BNV36"},"NVFS5D0C0TC0","Mexico Region 1 BNV",36,24951]
[null,null,null,null,null,null,null,null,null,null,null,null,{"$f":"CONCATENATE(N470,O470,P470)","v":"NVFS5D0C0TC0Mexico Region 1 BNV37"},"NVFS5D0C0TC0","Mexico Region 1 BNV",37,25693]
[null,null,null,null,null,null,null,null,null,null,null,null,{"$f":"CONCATENATE(N471,O471,P471)","v":"NVFS5D0C0TC0Mexico Region 1 BNV38"},"NVFS5D0C0TC0","Mexico Region 1 BNV",38,26460]
[null,null,null,null,null,null,null,null,null,null,null,null,{"$f":"CONCATENATE(N472,O472,P472)","v":"NVFS5D0C0TC0Mexico Region 1 BNV39"},"NVFS5D0C0TC0","Mexico Region 1 BNV",39,26726]
[null,null,null,null,null,null,null,null,null,null,null,null,{"$f":"CONCATENATE(N473,O473,P473)","v":"NVFS5D0C0TC0Mexico Region 1 BNV40"},"NVFS5D0C0TC0","Mexico Region 1 BNV",40,26798]
[null,null,null,null,null,null,null,null,null,null,null,null,{"$f":"CONCATENATE(N474,O474,P474)","v":"NVFS5D0C0TC0Mexico Region 1 BNV41"},"NVFS5D0C0TC0","Mexico Region 1 BNV",41,27021]
[null,null,null,null,null,null,null,null,null,null,null,null,{"$f":"CONCATENATE(N475,O475,P475)","v":"NVFS5D0C0TC0Mexico Region 1 BNV42"},"NVFS5D0C0TC0","Mexico Region 1 BNV",42,27809]
[null,null,null,null,null,null,null,null,null,null,null,null,{"$f":"CONCATENATE(N476,O476,P476)","v":"NVFS5D0C0TC0Mexico Region 1 BNV43"},"NVFS5D0C0TC0","Mexico Region 1 BNV",43,28914]
[null,null,null,null,null,null,null,null,null,null,null,null,{"$f":"CONCATENATE(N477,O477,P477)","v":"NVFS5D0C0TC0Mexico Region 1 BNV44"},"NVFS5D0C0TC0","Mexico Region 1 BNV",44,30063]
[null,null,null,null,null,null,null,null,null,null,null,null,{"$f":"CONCATENATE(N478,O478,P478)","v":"NVFS5D0C0TC0Mexico Region 1 BNV45"},"NVFS5D0C0TC0","Mexico Region 1 BNV",45,31260]
[null,null,null,null,null,null,null,null,null,null,null,null,{"$f":"CONCATENATE(N479,O479,P479)","v":"NVFS5D0C0TC0Mexico Region 1 BNV46"},"NVFS5D0C0TC0","Mexico Region 1 BNV",46,32502]
[null,null,null,null,null,null,null,null,null,null,null,null,{"$f":"CONCATENATE(N480,O480,P480)","v":"NVFS5D0C0TC0Mexico Region 1 BNV47"},"NVFS5D0C0TC0","Mexico Region 1 BNV",47,33796]
[null,null,null,null,null,null,null,null,null,null,null,null,{"$f":"CONCATENATE(N481,O481,P481)","v":"NVFS5D0C0TC0Mexico Region 1 BNV48"},"NVFS5D0C0TC0","Mexico Region 1 BNV",48,35140]
[null,null,null,null,null,null,null,null,null,null,null,null,{"$f":"CONCATENATE(N482,O482,P482)","v":"NVFS5D0C0TC0Mexico Region 1 BNV49"},"NVFS5D0C0TC0","Mexico Region 1 BNV",49,36540]
[null,null,null,null,null,null,null,null,null,null,null,null,{"$f":"CONCATENATE(N483,O483,P483)","v":"NVFS5D0C0TC0Mexico Region 1 BNV50"},"NVFS5D0C0TC0","Mexico Region 1 BNV",50,37995]
[null,null,null,null,null,null,null,null,null,null,null,null,{"$f":"CONCATENATE(N484,O484,P484)","v":"NVFS5D0C0TC0Mexico Region 1 BNV51"},"NVFS5D0C0TC0","Mexico Region 1 BNV",51,39696]
[null,null,null,null,null,null,null,null,null,null,null,null,{"$f":"CONCATENATE(N485,O485,P485)","v":"NVFS5D0C0TC0Mexico Region 1 BNV52"},"NVFS5D0C0TC0","Mexico Region 1 BNV",52,41672]
[null,null,null,null,null,null,null,null,null,null,null,null,{"$f":"CONCATENATE(N486,O486,P486)","v":"NVFS5D0C0TC0Mexico Region 1 BNV53"},"NVFS5D0C0TC0","Mexico Region 1 BNV",53,44354]
[null,null,null,null,null,null,null,null,null,null,null,null,{"$f":"CONCATENATE(N487,O487,P487)","v":"NVFS5D0C0TC0Mexico Region 1 BNV54"},"NVFS5D0C0TC0","Mexico Region 1 BNV",54,48772]
[null,null,null,null,null,null,null,null,null,null,null,null,{"$f":"CONCATENATE(N488,O488,P488)","v":"NVFS5D0C0TC0Mexico Region 1 BNV55"},"NVFS5D0C0TC0","Mexico Region 1 BNV",55,52495]
[null,null,null,null,null,null,null,null,null,null,null,null,{"$f":"CONCATENATE(N489,O489,P489)","v":"NVFS5D0C0TC0Mexico Region 1 BNV56"},"NVFS5D0C0TC0","Mexico Region 1 BNV",56,56495]
[null,null,null,null,null,null,null,null,null,null,null,null,{"$f":"CONCATENATE(N490,O490,P490)","v":"NVFS5D0C0TC0Mexico Region 1 BNV57"},"NVFS5D0C0TC0","Mexico Region 1 BNV",57,60488]
[null,null,null,null,null,null,null,null,null,null,null,null,{"$f":"CONCATENATE(N491,O491,P491)","v":"NVFS5D0C0TC0Mexico Region 1 BNV58"},"NVFS5D0C0TC0","Mexico Region 1 BNV",58,65089]
[null,null,null,null,null,null,null,null,null,null,null,null,{"$f":"CONCATENATE(N492,O492,P492)","v":"NVFS5D0C0TC0Mexico Region 1 BNV59"},"NVFS5D0C0TC0","Mexico Region 1 BNV",59,69335]
[null,null,null,null,null,null,null,null,null,null,null,null,{"$f":"CONCATENATE(N493,O493,P493)","v":"NVFS5D0C0TC0Mexico Region 1 BNV60"},"NVFS5D0C0TC0","Mexico Region 1 BNV",60,76086]
[null,null,null,null,null,null,null,null,null,null,null,null,{"$f":"CONCATENATE(N494,O494,P494)","v":"NVFS5D0C0TC0Mexico Region 1 BNV61"},"NVFS5D0C0TC0","Mexico Region 1 BNV",61,81049]
[null,null,null,null,null,null,null,null,null,null,null,null,{"$f":"CONCATENATE(N495,O495,P495)","v":"NVFS5D0C0TC0Mexico Region 1 BNV62"},"NVFS5D0C0TC0","Mexico Region 1 BNV",62,86337]
[null,null,null,null,null,null,null,null,null,null,null,null,{"$f":"CONCATENATE(N496,O496,P496)","v":"NVFS5D0C0TC0Mexico Region 1 BNV63"},"NVFS5D0C0TC0","Mexico Region 1 BNV",63,91072]
[null,null,null,null,null,null,null,null,null,null,null,null,{"$f":"CONCATENATE(N497,O497,P497)","v":"NVFS5D0C0TC0Mexico Region 1 BNV64"},"NVFS5D0C0TC0","Mexico Region 1 BNV",64,97014]
[null,null,null,null,null,null,null,null,null,null,null,null,{"$f":"CONCATENATE(N498,O498,P498)","v":"NVFS5D0C0TC0Mexico Region 1 BNV65"},"NVFS5D0C0TC0","Mexico Region 1 BNV",65,103344]
[null,null,null,null,null,null,null,null,null,null,null,null,{"$f":"CONCATENATE(N499,O499,P499)","v":"NVFS5D0C0TC0Mexico Region 1 BNV66"},"NVFS5D0C0TC0","Mexico Region 1 BNV",66,110628]
[null,null,null,null,null,null,null,null,null,null,null,null,{"$f":"CONCATENATE(N500,O500,P500)","v":"NVFS5D0C0TC0Mexico Region 1 BNV67"},"NVFS5D0C0TC0","Mexico Region 1 BNV",67,118423]
[null,null,null,null,null,null,null,null,null,null,null,null,{"$f":"CONCATENATE(N501,O501,P501)","v":"NVFS5D0C0TC0Mexico Region 1 BNV68"},"NVFS5D0C0TC0","Mexico Region 1 BNV",68,126149]
[null,null,null,null,null,null,null,null,null,null,null,null,{"$f":"CONCATENATE(N502,O502,P502)","v":"NVFS5D0C0TC0Mexico Region 1 BNV69"},"NVFS5D0C0TC0","Mexico Region 1 BNV",69,134379]
[null,null,null,null,null,null,null,null,null,null,null,null,{"$f":"CONCATENATE(N503,O503,P503)","v":"NVFS5D0C0TC0Mexico Region 1 BNV70"},"NVFS5D0C0TC0","Mexico Region 1 BNV",70,143146]
[null,null,null,null,null,null,null,null,null,null,null,null,{"$f":"CONCATENATE(N504,O504,P504)","v":"NVFS5D0C0TC0Mexico Region 1 BNV71"},"NVFS5D0C0TC0","Mexico Region 1 BNV",71,152484]
[null,null,null,null,null,null,null,null,null,null,null,null,{"$f":"CONCATENATE(N505,O505,P505)","v":"NVFS5D0C0TC0Mexico Region 1 BNV72"},"NVFS5D0C0TC0","Mexico Region 1 BNV",72,162432]
[null,null,null,null,null,null,null,null,null,null,null,null,{"$f":"CONCATENATE(N506,O506,P506)","v":"NVFS5D0C0TC0Mexico Region 1 BNV73"},"NVFS5D0C0TC0","Mexico Region 1 BNV",73,173028]
[null,null,null,null,null,null,null,null,null,null,null,null,{"$f":"CONCATENATE(N507,O507,P507)","v":"NVFS5D0C0TC0Mexico Region 1 BNV74"},"NVFS5D0C0TC0","Mexico Region 1 BNV",74,184318]
[null,null,null,null,null,null,null,null,null,null,null,null,{"$f":"CONCATENATE(N508,O508,P508)","v":"NVFS5D0C0TC0Mexico Region 1 BNV75"},"NVFS5D0C0TC0","Mexico Region 1 BNV",75,196342]
[null,null,null,null,null,null,null,null,null,null,null,null,{"$f":"CONCATENATE(N509,O509,P509)","v":"NVFS5D0C0TC0Mexico Region 1 BNV76"},"NVFS5D0C0TC0","Mexico Region 1 BNV",76,209151]
[null,null,null,null,null,null,null,null,null,null,null,null,{"$f":"CONCATENATE(N510,O510,P510)","v":"NVFS5D0C0TC0Mexico Region 1 BNV77"},"NVFS5D0C0TC0","Mexico Region 1 BNV",77,222796]
[null,null,null,null,null,null,null,null,null,null,null,null,{"$f":"CONCATENATE(N511,O511,P511)","v":"NVFS5D0C0TC0Mexico Region 1 BNV78"},"NVFS5D0C0TC0","Mexico Region 1 BNV",78,237332]
[null,null,null,null,null,null,null,null,null,null,null,null,{"$f":"CONCATENATE(N512,O512,P512)","v":"NVFS5D0C0TC0Mexico Region 1 BNV79"},"NVFS5D0C0TC0","Mexico Region 1 BNV",79,252816]
[null,null,null,null,null,null,null,null,null,null,null,null,{"$f":"CONCATENATE(N513,O513,P513)","v":"NVFS5D0C0TC0Mexico Region 1 BNV80"},"NVFS5D0C0TC0","Mexico Region 1 BNV",80,269309]
[null,null,null,null,null,null,null,null,null,null,null,null,{"$f":"CONCATENATE(N514,O514,P514)","v":"NVFS5D0C0TC0Mexico Region 1 BNV81"},"NVFS5D0C0TC0","Mexico Region 1 BNV",81,286879]
[null,null,null,null,null,null,null,null,null,null,null,null,{"$f":"CONCATENATE(N515,O515,P515)","v":"NVFS5D0C0TC0Mexico Region 1 BNV82"},"NVFS5D0C0TC0","Mexico Region 1 BNV",82,305595]
[null,null,null,null,null,null,null,null,null,null,null,null,{"$f":"CONCATENATE(N516,O516,P516)","v":"NVFS5D0C0TC0Mexico Region 1 BNV83"},"NVFS5D0C0TC0","Mexico Region 1 BNV",83,325532]
[null,null,null,null,null,null,null,null,null,null,null,null,{"$f":"CONCATENATE(N517,O517,P517)","v":"NVFS5D0C0TC0Mexico Region 1 BNV84"},"NVFS5D0C0TC0","Mexico Region 1 BNV",84,346768]
[null,null,null,null,null,null,null,null,null,null,null,null,{"$f":"CONCATENATE(N518,O518,P518)","v":"NVFS1D0C0TC0Mexico Region 2 (no CDMX, ZM y MTY)18"},"NVFS1D0C0TC0","Mexico Region 2 (no CDMX, ZM y MTY)",18,8130]
[null,null,null,null,null,null,null,null,null,null,null,null,{"$f":"CONCATENATE(N519,O519,P519)","v":"NVFS1D0C0TC0Mexico Region 2 (no CDMX, ZM y MTY)19"},"NVFS1D0C0TC0","Mexico Region 2 (no CDMX, ZM y MTY)",19,8372]
[null,null,null,null,null,null,null,null,null,null,null,null,{"$f":"CONCATENATE(N520,O520,P520)","v":"NVFS1D0C0TC0Mexico Region 2 (no CDMX, ZM y MTY)20"},"NVFS1D0C0TC0","Mexico Region 2 (no CDMX, ZM y MTY)",20,8619]
[null,null,null,null,null,null,null,null,null,null,null,null,{"$f":"CONCATENATE(N521,O521,P521)","v":"NVFS1D0C0TC0Mexico Region 2 (no CDMX, ZM y MTY)21"},"NVFS1D0C0TC0","Mexico Region 2 (no CDMX, ZM y MTY)",21,8875]
[null,null,null,null,null,null,null,null,null,null,null,null,{"$f":"CONCATENATE(N522,O522,P522)","v":"NVFS1D0C0TC0Mexico Region 2 (no CDMX, ZM y MTY)22"},"NVFS1D0C0TC0","Mexico Region 2 (no CDMX, ZM y MTY)",22,9139]
[null,null,null,null,null,null,null,null,null,null,null,null,{"$f":"CONCATENATE(N523,O523,P523)","v":"NVFS1D0C0TC0Mexico Region 2 (no CDMX, ZM y MTY)23"},"NVFS1D0C0TC0","Mexico Region 2 (no CDMX, ZM y MTY)",23,9409]
[null,null,null,null,null,null,null,null,null,null,null,null,{"$f":"CONCATENATE(N524,O524,P524)","v":"NVFS1D0C0TC0Mexico Region 2 (no CDMX, ZM y MTY)24"},"NVFS1D0C0TC0","Mexico Region 2 (no CDMX, ZM y MTY)",24,9688]
[null,null,null,null,null,null,null,null,null,null,null,null,{"$f":"CONCATENATE(N525,O525,P525)","v":"NVFS1D0C0TC0Mexico Region 2 (no CDMX, ZM y MTY)25"},"NVFS1D0C0TC0","Mexico Region 2 (no CDMX, ZM y MTY)",25,9975]
[null,null,null,null,null,null,null,null,null,null,null,null,{"$f":"CONCATENATE(N526,O526,P526)","v":"NVFS1D0C0TC0Mexico Region 2 (no CDMX, ZM y MTY)26"},"NVFS1D0C0TC0","Mexico Region 2 (no CDMX, ZM y MTY)",26,10272]
[null,null,null,null,null,null,null,null,null,null,null,null,{"$f":"CONCATENATE(N527,O527,P527)","v":"NVFS1D0C0TC0Mexico Region 2 (no CDMX, ZM y MTY)27"},"NVFS1D0C0TC0","Mexico Region 2 (no CDMX, ZM y MTY)",27,10577]
[null,null,null,null,null,null,null,null,null,null,null,null,{"$f":"CONCATENATE(N528,O528,P528)","v":"NVFS1D0C0TC0Mexico Region 2 (no CDMX, ZM y MTY)28"},"NVFS1D0C0TC0","Mexico Region 2 (no CDMX, ZM y MTY)",28,10891]
[null,null,null,null,null,null,null,null,null,null,null,null,{"$f":"CONCATENATE(N529,O529,P529)","v":"NVFS1D0C0TC0Mexico Region 2 (no CDMX, ZM y MTY)29"},"NVFS1D0C0TC0","Mexico Region 2 (no CDMX, ZM y MTY)",29,11216]
[null,null,null,null,null,null,null,null,null,null,null,null,{"$f":"CONCATENATE(N530,O530,P530)","v":"NVFS1D0C0TC0Mexico Region 2 (no CDMX, ZM y MTY)30"},"NVFS1D0C0TC0","Mexico Region 2 (no CDMX, ZM y MTY)",30,12656]
[null,null,null,null,null,null,null,null,null,null,null,null,{"$f":"CONCATENATE(N531,O531,P531)","v":"NVFS1D0C0TC0Mexico Region 2 (no CDMX, ZM y MTY)31"},"NVFS1D0C0TC0","Mexico Region 2 (no CDMX, ZM y MTY)",31,13033]
[null,null,null,null,null,null,null,null,null,null,null,null,{"$f":"CONCATENATE(N532,O532,P532)","v":"NVFS1D0C0TC0Mexico Region 2 (no CDMX, ZM y MTY)32"},"NVFS1D0C0TC0","Mexico Region 2 (no CDMX, ZM y MTY)",32,13421]
[null,null,null,null,null,null,null,null,null,null,null,null,{"$f":"CONCATENATE(N533,O533,P533)","v":"NVFS1D0C0TC0Mexico Region 2 (no CDMX, ZM y MTY)33"},"NVFS1D0C0TC0","Mexico Region 2 (no CDMX, ZM y MTY)",33,13819]
[null,null,null,null,null,null,null,null,null,null,null,null,{"$f":"CONCATENATE(N534,O534,P534)","v":"NVFS1D0C0TC0Mexico Region 2 (no CDMX, ZM y MTY)34"},"NVFS1D0C0TC0","Mexico Region 2 (no CDMX, ZM y MTY)",34,14232]
[null,null,null,null,null,null,null,null,null,null,null,null,{"$f":"CONCATENATE(N535,O535,P535)","v":"NVFS1D0C0TC0Mexico Region 2 (no CDMX, ZM y MTY)35"},"NVFS1D0C0TC0","Mexico Region 2 (no CDMX, ZM y MTY)",35,14654]
[null,null,null,null,null,null,null,null,null,null,null,null,{"$f":"CONCATENATE(N536,O536,P536)","v":"NVFS1D0C0TC0Mexico Region 2 (no CDMX, ZM y MTY)36"},"NVFS1D0C0TC0","Mexico Region 2 (no CDMX, ZM y MTY)",36,15091]
[null,null,null,null,null,null,null,null,null,null,null,null,{"$f":"CONCATENATE(N537,O537,P537)","v":"NVFS1D0C0TC0Mexico Region 2 (no CDMX, ZM y MTY)37"},"NVFS1D0C0TC0","Mexico Region 2 (no CDMX, ZM y MTY)",37,15542]
[null,null,null,null,null,null,null,null,null,null,null,null,{"$f":"CONCATENATE(N538,O538,P538)","v":"NVFS1D0C0TC0Mexico Region 2 (no CDMX, ZM y MTY)38"},"NVFS1D0C0TC0","Mexico Region 2 (no CDMX, ZM y MTY)",38,16005]
[null,null,null,null,null,null,null,null,null,null,null,null,{"$f":"CONCATENATE(N539,O539,P539)","v":"NVFS1D0C0TC0Mexico Region 2 (no CDMX, ZM y MTY)39"},"NVFS1D0C0TC0","Mexico Region 2 (no CDMX, ZM y MTY)",39,16167]
[null,null,null,null,null,null,null,null,null,null,null,null,{"$f":"CONCATENATE(N540,O540,P540)","v":"NVFS1D0C0TC0Mexico Region 2 (no CDMX, ZM y MTY)40"},"NVFS1D0C0TC0","Mexico Region 2 (no CDMX, ZM y MTY)",40,16209]
[null,null,null,null,null,null,null,null,null,null,null,null,{"$f":"CONCATENATE(N541,O541,P541)","v":"NVFS1D0C0TC0Mexico Region 2 (no CDMX, ZM y MTY)41"},"NVFS1D0C0TC0","Mexico Region 2 (no CDMX, ZM y MTY)",41,16344]
[null,null,null,null,null,null,null,null,null,null,null,null,{"$f":"CONCATENATE(N542,O542,P542)","v":"NVFS1D0C0TC0Mexico Region 2 (no CDMX, ZM y MTY)42"},"NVFS1D0C0TC0","Mexico Region 2 (no CDMX, ZM y MTY)",42,16821]
[null,null,null,null,null,null,null,null,null,null,null,null,{"$f":"CONCATENATE(N543,O543,P543)","v":"NVFS1D0C0TC0Mexico Region 2 (no CDMX, ZM y MTY)43"},"NVFS1D0C0TC0","Mexico Region 2 (no CDMX, ZM y MTY)",43,17489]
[null,null,null,null,null,null,null,null,null,null,null,null,{"$f":"CONCATENATE(N544,O544,P544)","v":"NVFS1D0C0TC0Mexico Region 2 (no CDMX, ZM y MTY)44"},"NVFS1D0C0TC0","Mexico Region 2 (no CDMX, ZM y MTY)",44,18184]
[null,null,null,null,null,null,null,null,null,null,null,null,{"$f":"CONCATENATE(N545,O545,P545)","v":"NVFS1D0C0TC0Mexico Region 2 (no CDMX, ZM y MTY)45"},"NVFS1D0C0TC0","Mexico Region 2 (no CDMX, ZM y MTY)",45,18907]
[null,null,null,null,null,null,null,null,null,null,null,null,{"$f":"CONCATENATE(N546,O546,P546)","v":"NVFS1D0C0TC0Mexico Region 2 (no CDMX, ZM y MTY)46"},"NVFS1D0C0TC0","Mexico Region 2 (no CDMX, ZM y MTY)",46,19660]
[null,null,null,null,null,null,null,null,null,null,null,null,{"$f":"CONCATENATE(N547,O547,P547)","v":"NVFS1D0C0TC0Mexico Region 2 (no CDMX, ZM y MTY)47"},"NVFS1D0C0TC0","Mexico Region 2 (no CDMX, ZM y MTY)",47,20442]
[null,null,null,null,null,null,null,null,null,null,null,null,{"$f":"CONCATENATE(N548,O548,P548)","v":"NVFS1D0C0TC0Mexico Region 2 (no CDMX, ZM y MTY)48"},"NVFS1D0C0TC0","Mexico Region 2 (no CDMX, ZM y MTY)",48,21256]
[null,null,null,null,null,null,null,null,null,null,null,null,{"$f":"CONCATENATE(N549,O549,P549)","v":"NVFS1D0C0TC0Mexico Region 2 (no CDMX, ZM y MTY)49"},"NVFS1D0C0TC0","Mexico Region 2 (no CDMX, ZM y MTY)",49,22102]
[null,null,null,null,null,null,null,null,null,null,null,null,{"$f":"CONCATENATE(N550,O550,P550)","v":"NVFS1D0C0TC0Mexico Region 2 (no CDMX, ZM y MTY)50"},"NVFS1D0C0TC0","Mexico Region 2 (no CDMX, ZM y MTY)",50,22982]
[null,null,null,null,null,null,null,null,null,null,null,null,{"$f":"CONCATENATE(N551,O551,P551)","v":"NVFS1D0C0TC0Mexico Region 2 (no CDMX, ZM y MTY)51"},"NVFS1D0C0TC0","Mexico Region 2 (no CDMX, ZM y MTY)",51,24011]
[null,null,null,null,null,null,null,null,null,null,null,null,{"$f":"CONCATENATE(N552,O552,P552)","v":"NVFS1D0C0TC0Mexico Region 2 (no CDMX, ZM y MTY)52"},"NVFS1D0C0TC0","Mexico Region 2 (no CDMX, ZM y MTY)",52,25207]
[null,null,null,null,null,null,null,null,null,null,null,null,{"$f":"CONCATENATE(N553,O553,P553)","v":"NVFS1D0C0TC0Mexico Region 2 (no CDMX, ZM y MTY)53"},"NVFS1D0C0TC0","Mexico Region 2 (no CDMX, ZM y MTY)",53,26828]
[null,null,null,null,null,null,null,null,null,null,null,null,{"$f":"CONCATENATE(N554,O554,P554)","v":"NVFS1D0C0TC0Mexico Region 2 (no CDMX, ZM y MTY)54"},"NVFS1D0C0TC0","Mexico Region 2 (no CDMX, ZM y MTY)",54,29500]
[null,null,null,null,null,null,null,null,null,null,null,null,{"$f":"CONCATENATE(N555,O555,P555)","v":"NVFS1D0C0TC0Mexico Region 2 (no CDMX, ZM y MTY)55"},"NVFS1D0C0TC0","Mexico Region 2 (no CDMX, ZM y MTY)",55,31753]
[null,null,null,null,null,null,null,null,null,null,null,null,{"$f":"CONCATENATE(N556,O556,P556)","v":"NVFS1D0C0TC0Mexico Region 2 (no CDMX, ZM y MTY)56"},"NVFS1D0C0TC0","Mexico Region 2 (no CDMX, ZM y MTY)",56,34172]
[null,null,null,null,null,null,null,null,null,null,null,null,{"$f":"CONCATENATE(N557,O557,P557)","v":"NVFS1D0C0TC0Mexico Region 2 (no CDMX, ZM y MTY)57"},"NVFS1D0C0TC0","Mexico Region 2 (no CDMX, ZM y MTY)",57,36588]
[null,null,null,null,null,null,null,null,null,null,null,null,{"$f":"CONCATENATE(N558,O558,P558)","v":"NVFS1D0C0TC0Mexico Region 2 (no CDMX, ZM y MTY)58"},"NVFS1D0C0TC0","Mexico Region 2 (no CDMX, ZM y MTY)",58,39370]
[null,null,null,null,null,null,null,null,null,null,null,null,{"$f":"CONCATENATE(N559,O559,P559)","v":"NVFS1D0C0TC0Mexico Region 2 (no CDMX, ZM y MTY)59"},"NVFS1D0C0TC0","Mexico Region 2 (no CDMX, ZM y MTY)",59,41939]
[null,null,null,null,null,null,null,null,null,null,null,null,{"$f":"CONCATENATE(N560,O560,P560)","v":"NVFS1D0C0TC0Mexico Region 2 (no CDMX, ZM y MTY)60"},"NVFS1D0C0TC0","Mexico Region 2 (no CDMX, ZM y MTY)",60,46021]
[null,null,null,null,null,null,null,null,null,null,null,null,{"$f":"CONCATENATE(N561,O561,P561)","v":"NVFS1D0C0TC0Mexico Region 2 (no CDMX, ZM y MTY)61"},"NVFS1D0C0TC0","Mexico Region 2 (no CDMX, ZM y MTY)",61,49025]
[null,null,null,null,null,null,null,null,null,null,null,null,{"$f":"CONCATENATE(N562,O562,P562)","v":"NVFS1D0C0TC0Mexico Region 2 (no CDMX, ZM y MTY)62"},"NVFS1D0C0TC0","Mexico Region 2 (no CDMX, ZM y MTY)",62,52223]
[null,null,null,null,null,null,null,null,null,null,null,null,{"$f":"CONCATENATE(N563,O563,P563)","v":"NVFS1D0C0TC0Mexico Region 2 (no CDMX, ZM y MTY)63"},"NVFS1D0C0TC0","Mexico Region 2 (no CDMX, ZM y MTY)",63,55086]
[null,null,null,null,null,null,null,null,null,null,null,null,{"$f":"CONCATENATE(N564,O564,P564)","v":"NVFS1D0C0TC0Mexico Region 2 (no CDMX, ZM y MTY)64"},"NVFS1D0C0TC0","Mexico Region 2 (no CDMX, ZM y MTY)",64,58681]
[null,null,null,null,null,null,null,null,null,null,null,null,{"$f":"CONCATENATE(N565,O565,P565)","v":"NVFS1D0C0TC0Mexico Region 2 (no CDMX, ZM y MTY)65"},"NVFS1D0C0TC0","Mexico Region 2 (no CDMX, ZM y MTY)",65,62509]
[null,null,null,null,null,null,null,null,null,null,null,null,{"$f":"CONCATENATE(N566,O566,P566)","v":"NVFS1D0C0TC0Mexico Region 2 (no CDMX, ZM y MTY)66"},"NVFS1D0C0TC0","Mexico Region 2 (no CDMX, ZM y MTY)",66,66916]
[null,null,null,null,null,null,null,null,null,null,null,null,{"$f":"CONCATENATE(N567,O567,P567)","v":"NVFS1D0C0TC0Mexico Region 2 (no CDMX, ZM y MTY)67"},"NVFS1D0C0TC0","Mexico Region 2 (no CDMX, ZM y MTY)",67,71630]
[null,null,null,null,null,null,null,null,null,null,null,null,{"$f":"CONCATENATE(N568,O568,P568)","v":"NVFS1D0C0TC0Mexico Region 2 (no CDMX, ZM y MTY)68"},"NVFS1D0C0TC0","Mexico Region 2 (no CDMX, ZM y MTY)",68,76304]
[null,null,null,null,null,null,null,null,null,null,null,null,{"$f":"CONCATENATE(N569,O569,P569)","v":"NVFS1D0C0TC0Mexico Region 2 (no CDMX, ZM y MTY)69"},"NVFS1D0C0TC0","Mexico Region 2 (no CDMX, ZM y MTY)",69,81281]
[null,null,null,null,null,null,null,null,null,null,null,null,{"$f":"CONCATENATE(N570,O570,P570)","v":"NVFS1D0C0TC0Mexico Region 2 (no CDMX, ZM y MTY)70"},"NVFS1D0C0TC0","Mexico Region 2 (no CDMX, ZM y MTY)",70,86584]
[null,null,null,null,null,null,null,null,null,null,null,null,{"$f":"CONCATENATE(N571,O571,P571)","v":"NVFS1D0C0TC0Mexico Region 2 (no CDMX, ZM y MTY)71"},"NVFS1D0C0TC0","Mexico Region 2 (no CDMX, ZM y MTY)",71,92233]
[null,null,null,null,null,null,null,null,null,null,null,null,{"$f":"CONCATENATE(N572,O572,P572)","v":"NVFS1D0C0TC0Mexico Region 2 (no CDMX, ZM y MTY)72"},"NVFS1D0C0TC0","Mexico Region 2 (no CDMX, ZM y MTY)",72,98249]
[null,null,null,null,null,null,null,null,null,null,null,null,{"$f":"CONCATENATE(N573,O573,P573)","v":"NVFS1D0C0TC0Mexico Region 2 (no CDMX, ZM y MTY)73"},"NVFS1D0C0TC0","Mexico Region 2 (no CDMX, ZM y MTY)",73,104660]
[null,null,null,null,null,null,null,null,null,null,null,null,{"$f":"CONCATENATE(N574,O574,P574)","v":"NVFS1D0C0TC0Mexico Region 2 (no CDMX, ZM y MTY)74"},"NVFS1D0C0TC0","Mexico Region 2 (no CDMX, ZM y MTY)",74,111488]
[null,null,null,null,null,null,null,null,null,null,null,null,{"$f":"CONCATENATE(N575,O575,P575)","v":"NVFS1D0C0TC0Mexico Region 2 (no CDMX, ZM y MTY)75"},"NVFS1D0C0TC0","Mexico Region 2 (no CDMX, ZM y MTY)",75,118761]
[null,null,null,null,null,null,null,null,null,null,null,null,{"$f":"CONCATENATE(N576,O576,P576)","v":"NVFS1D0C0TC0Mexico Region 2 (no CDMX, ZM y MTY)76"},"NVFS1D0C0TC0","Mexico Region 2 (no CDMX, ZM y MTY)",76,126509]
[null,null,null,null,null,null,null,null,null,null,null,null,{"$f":"CONCATENATE(N577,O577,P577)","v":"NVFS1D0C0TC0Mexico Region 2 (no CDMX, ZM y MTY)77"},"NVFS1D0C0TC0","Mexico Region 2 (no CDMX, ZM y MTY)",77,134763]
[null,null,null,null,null,null,null,null,null,null,null,null,{"$f":"CONCATENATE(N578,O578,P578)","v":"NVFS1D0C0TC0Mexico Region 2 (no CDMX, ZM y MTY)78"},"NVFS1D0C0TC0","Mexico Region 2 (no CDMX, ZM y MTY)",78,143554]
[null,null,null,null,null,null,null,null,null,null,null,null,{"$f":"CONCATENATE(N579,O579,P579)","v":"NVFS1D0C0TC0Mexico Region 2 (no CDMX, ZM y MTY)79"},"NVFS1D0C0TC0","Mexico Region 2 (no CDMX, ZM y MTY)",79,152919]
[null,null,null,null,null,null,null,null,null,null,null,null,{"$f":"CONCATENATE(N580,O580,P580)","v":"NVFS1D0C0TC0Mexico Region 2 (no CDMX, ZM y MTY)80"},"NVFS1D0C0TC0","Mexico Region 2 (no CDMX, ZM y MTY)",80,162896]
[null,null,null,null,null,null,null,null,null,null,null,null,{"$f":"CONCATENATE(N581,O581,P581)","v":"NVFS1D0C0TC0Mexico Region 2 (no CDMX, ZM y MTY)81"},"NVFS1D0C0TC0","Mexico Region 2 (no CDMX, ZM y MTY)",81,173525]
[null,null,null,null,null,null,null,null,null,null,null,null,{"$f":"CONCATENATE(N582,O582,P582)","v":"NVFS1D0C0TC0Mexico Region 2 (no CDMX, ZM y MTY)82"},"NVFS1D0C0TC0","Mexico Region 2 (no CDMX, ZM y MTY)",82,184844]
[null,null,null,null,null,null,null,null,null,null,null,null,{"$f":"CONCATENATE(N583,O583,P583)","v":"NVFS1D0C0TC0Mexico Region 2 (no CDMX, ZM y MTY)83"},"NVFS1D0C0TC0","Mexico Region 2 (no CDMX, ZM y MTY)",83,196904]
[null,null,null,null,null,null,null,null,null,null,null,null,{"$f":"CONCATENATE(N584,O584,P584)","v":"NVFS1D0C0TC0Mexico Region 2 (no CDMX, ZM y MTY)84"},"NVFS1D0C0TC0","Mexico Region 2 (no CDMX, ZM y MTY)",84,209749]
[null,null,null,null,null,null,null,null,null,null,null,null,{"$f":"CONCATENATE(N585,O585,P585)","v":"NVFS2D0C0TC0Mexico Region 2 (no CDMX, ZM y MTY)18"},"NVFS2D0C0TC0","Mexico Region 2 (no CDMX, ZM y MTY)",18,9240]
[null,null,null,null,null,null,null,null,null,null,null,null,{"$f":"CONCATENATE(N586,O586,P586)","v":"NVFS2D0C0TC0Mexico Region 2 (no CDMX, ZM y MTY)19"},"NVFS2D0C0TC0","Mexico Region 2 (no CDMX, ZM y MTY)",19,9514]
[null,null,null,null,null,null,null,null,null,null,null,null,{"$f":"CONCATENATE(N587,O587,P587)","v":"NVFS2D0C0TC0Mexico Region 2 (no CDMX, ZM y MTY)20"},"NVFS2D0C0TC0","Mexico Region 2 (no CDMX, ZM y MTY)",20,9796]
[null,null,null,null,null,null,null,null,null,null,null,null,{"$f":"CONCATENATE(N588,O588,P588)","v":"NVFS2D0C0TC0Mexico Region 2 (no CDMX, ZM y MTY)21"},"NVFS2D0C0TC0","Mexico Region 2 (no CDMX, ZM y MTY)",21,10086]
[null,null,null,null,null,null,null,null,null,null,null,null,{"$f":"CONCATENATE(N589,O589,P589)","v":"NVFS2D0C0TC0Mexico Region 2 (no CDMX, ZM y MTY)22"},"NVFS2D0C0TC0","Mexico Region 2 (no CDMX, ZM y MTY)",22,10386]
[null,null,null,null,null,null,null,null,null,null,null,null,{"$f":"CONCATENATE(N590,O590,P590)","v":"NVFS2D0C0TC0Mexico Region 2 (no CDMX, ZM y MTY)23"},"NVFS2D0C0TC0","Mexico Region 2 (no CDMX, ZM y MTY)",23,10693]
[null,null,null,null,null,null,null,null,null,null,null,null,{"$f":"CONCATENATE(N591,O591,P591)","v":"NVFS2D0C0TC0Mexico Region 2 (no CDMX, ZM y MTY)24"},"NVFS2D0C0TC0","Mexico Region 2 (no CDMX, ZM y MTY)",24,11011]
[null,null,null,null,null,null,null,null,null,null,null,null,{"$f":"CONCATENATE(N592,O592,P592)","v":"NVFS2D0C0TC0Mexico Region 2 (no CDMX, ZM y MTY)25"},"NVFS2D0C0TC0","Mexico Region 2 (no CDMX, ZM y MTY)",25,11337]
[null,null,null,null,null,null,null,null,null,null,null,null,{"$f":"CONCATENATE(N593,O593,P593)","v":"NVFS2D0C0TC0Mexico Region 2 (no CDMX, ZM y MTY)26"},"NVFS2D0C0TC0","Mexico Region 2 (no CDMX, ZM y MTY)",26,11674]
[null,null,null,null,null,null,null,null,null,null,null,null,{"$f":"CONCATENATE(N594,O594,P594)","v":"NVFS2D0C0TC0Mexico Region 2 (no CDMX, ZM y MTY)27"},"NVFS2D0C0TC0","Mexico Region 2 (no CDMX, ZM y MTY)",27,12021]
[null,null,null,null,null,null,null,null,null,null,null,null,{"$f":"CONCATENATE(N595,O595,P595)","v":"NVFS2D0C0TC0Mexico Region 2 (no CDMX, ZM y MTY)28"},"NVFS2D0C0TC0","Mexico Region 2 (no CDMX, ZM y MTY)",28,12377]
[null,null,null,null,null,null,null,null,null,null,null,null,{"$f":"CONCATENATE(N596,O596,P596)","v":"NVFS2D0C0TC0Mexico Region 2 (no CDMX, ZM y MTY)29"},"NVFS2D0C0TC0","Mexico Region 2 (no CDMX, ZM y MTY)",29,12746]
[null,null,null,null,null,null,null,null,null,null,null,null,{"$f":"CONCATENATE(N597,O597,P597)","v":"NVFS2D0C0TC0Mexico Region 2 (no CDMX, ZM y MTY)30"},"NVFS2D0C0TC0","Mexico Region 2 (no CDMX, ZM y MTY)",30,14384]
[null,null,null,null,null,null,null,null,null,null,null,null,{"$f":"CONCATENATE(N598,O598,P598)","v":"NVFS2D0C0TC0Mexico Region 2 (no CDMX, ZM y MTY)31"},"NVFS2D0C0TC0","Mexico Region 2 (no CDMX, ZM y MTY)",31,14811]
[null,null,null,null,null,null,null,null,null,null,null,null,{"$f":"CONCATENATE(N599,O599,P599)","v":"NVFS2D0C0TC0Mexico Region 2 (no CDMX, ZM y MTY)32"},"NVFS2D0C0TC0","Mexico Region 2 (no CDMX, ZM y MTY)",32,15253]
[null,null,null,null,null,null,null,null,null,null,null,null,{"$f":"CONCATENATE(N600,O600,P600)","v":"NVFS2D0C0TC0Mexico Region 2 (no CDMX, ZM y MTY)33"},"NVFS2D0C0TC0","Mexico Region 2 (no CDMX, ZM y MTY)",33,15707]
[null,null,null,null,null,null,null,null,null,null,null,null,{"$f":"CONCATENATE(N601,O601,P601)","v":"NVFS2D0C0TC0Mexico Region 2 (no CDMX, ZM y MTY)34"},"NVFS2D0C0TC0","Mexico Region 2 (no CDMX, ZM y MTY)",34,16174]
[null,null,null,null,null,null,null,null,null,null,null,null,{"$f":"CONCATENATE(N602,O602,P602)","v":"NVFS2D0C0TC0Mexico Region 2 (no CDMX, ZM y MTY)35"},"NVFS2D0C0TC0","Mexico Region 2 (no CDMX, ZM y MTY)",35,16656]
[null,null,null,null,null,null,null,null,null,null,null,null,{"$f":"CONCATENATE(N603,O603,P603)","v":"NVFS2D0C0TC0Mexico Region 2 (no CDMX, ZM y MTY)36"},"NVFS2D0C0TC0","Mexico Region 2 (no CDMX, ZM y MTY)",36,17153]
[null,null,null,null,null,null,null,null,null,null,null,null,{"$f":"CONCATENATE(N604,O604,P604)","v":"NVFS2D0C0TC0Mexico Region 2 (no CDMX, ZM y MTY)37"},"NVFS2D0C0TC0","Mexico Region 2 (no CDMX, ZM y MTY)",37,17663]
[null,null,null,null,null,null,null,null,null,null,null,null,{"$f":"CONCATENATE(N605,O605,P605)","v":"NVFS2D0C0TC0Mexico Region 2 (no CDMX, ZM y MTY)38"},"NVFS2D0C0TC0","Mexico Region 2 (no CDMX, ZM y MTY)",38,18189]
[null,null,null,null,null,null,null,null,null,null,null,null,{"$f":"CONCATENATE(N606,O606,P606)","v":"NVFS2D0C0TC0Mexico Region 2 (no CDMX, ZM y MTY)39"},"NVFS2D0C0TC0","Mexico Region 2 (no CDMX, ZM y MTY)",39,18372]
[null,null,null,null,null,null,null,null,null,null,null,null,{"$f":"CONCATENATE(N607,O607,P607)","v":"NVFS2D0C0TC0Mexico Region 2 (no CDMX, ZM y MTY)40"},"NVFS2D0C0TC0","Mexico Region 2 (no CDMX, ZM y MTY)",40,18421]
[null,null,null,null,null,null,null,null,null,null,null,null,{"$f":"CONCATENATE(N608,O608,P608)","v":"NVFS2D0C0TC0Mexico Region 2 (no CDMX, ZM y MTY)41"},"NVFS2D0C0TC0","Mexico Region 2 (no CDMX, ZM y MTY)",41,18575]
[null,null,null,null,null,null,null,null,null,null,null,null,{"$f":"CONCATENATE(N609,O609,P609)","v":"NVFS2D0C0TC0Mexico Region 2 (no CDMX, ZM y MTY)42"},"NVFS2D0C0TC0","Mexico Region 2 (no CDMX, ZM y MTY)",42,19116]
[null,null,null,null,null,null,null,null,null,null,null,null,{"$f":"CONCATENATE(N610,O610,P610)","v":"NVFS2D0C0TC0Mexico Region 2 (no CDMX, ZM y MTY)43"},"NVFS2D0C0TC0","Mexico Region 2 (no CDMX, ZM y MTY)",43,19875]
[null,null,null,null,null,null,null,null,null,null,null,null,{"$f":"CONCATENATE(N611,O611,P611)","v":"NVFS2D0C0TC0Mexico Region 2 (no CDMX, ZM y MTY)44"},"NVFS2D0C0TC0","Mexico Region 2 (no CDMX, ZM y MTY)",44,20667]
[null,null,null,null,null,null,null,null,null,null,null,null,{"$f":"CONCATENATE(N612,O612,P612)","v":"NVFS2D0C0TC0Mexico Region 2 (no CDMX, ZM y MTY)45"},"NVFS2D0C0TC0","Mexico Region 2 (no CDMX, ZM y MTY)",45,21488]
[null,null,null,null,null,null,null,null,null,null,null,null,{"$f":"CONCATENATE(N613,O613,P613)","v":"NVFS2D0C0TC0Mexico Region 2 (no CDMX, ZM y MTY)46"},"NVFS2D0C0TC0","Mexico Region 2 (no CDMX, ZM y MTY)",46,22344]
[null,null,null,null,null,null,null,null,null,null,null,null,{"$f":"CONCATENATE(N614,O614,P614)","v":"NVFS2D0C0TC0Mexico Region 2 (no CDMX, ZM y MTY)47"},"NVFS2D0C0TC0","Mexico Region 2 (no CDMX, ZM y MTY)",47,23232]
[null,null,null,null,null,null,null,null,null,null,null,null,{"$f":"CONCATENATE(N615,O615,P615)","v":"NVFS2D0C0TC0Mexico Region 2 (no CDMX, ZM y MTY)48"},"NVFS2D0C0TC0","Mexico Region 2 (no CDMX, ZM y MTY)",48,24156]
[null,null,null,null,null,null,null,null,null,null,null,null,{"$f":"CONCATENATE(N616,O616,P616)","v":"NVFS2D0C0TC0Mexico Region 2 (no CDMX, ZM y MTY)49"},"NVFS2D0C0TC0","Mexico Region 2 (no CDMX, ZM y MTY)",49,25119]
[null,null,null,null,null,null,null,null,null,null,null,null,{"$f":"CONCATENATE(N617,O617,P617)","v":"NVFS2D0C0TC0Mexico Region 2 (no CDMX, ZM y MTY)50"},"NVFS2D0C0TC0","Mexico Region 2 (no CDMX, ZM y MTY)",50,26119]
[null,null,null,null,null,null,null,null,null,null,null,null,{"$f":"CONCATENATE(N618,O618,P618)","v":"NVFS2D0C0TC0Mexico Region 2 (no CDMX, ZM y MTY)51"},"NVFS2D0C0TC0","Mexico Region 2 (no CDMX, ZM y MTY)",51,27289]
[null,null,null,null,null,null,null,null,null,null,null,null,{"$f":"CONCATENATE(N619,O619,P619)","v":"NVFS2D0C0TC0Mexico Region 2 (no CDMX, ZM y MTY)52"},"NVFS2D0C0TC0","Mexico Region 2 (no CDMX, ZM y MTY)",52,28647]
[null,null,null,null,null,null,null,null,null,null,null,null,{"$f":"CONCATENATE(N620,O620,P620)","v":"NVFS2D0C0TC0Mexico Region 2 (no CDMX, ZM y MTY)53"},"NVFS2D0C0TC0","Mexico Region 2 (no CDMX, ZM y MTY)",53,30489]
[null,null,null,null,null,null,null,null,null,null,null,null,{"$f":"CONCATENATE(N621,O621,P621)","v":"NVFS2D0C0TC0Mexico Region 2 (no CDMX, ZM y MTY)54"},"NVFS2D0C0TC0","Mexico Region 2 (no CDMX, ZM y MTY)",54,33526]
[null,null,null,null,null,null,null,null,null,null,null,null,{"$f":"CONCATENATE(N622,O622,P622)","v":"NVFS2D0C0TC0Mexico Region 2 (no CDMX, ZM y MTY)55"},"NVFS2D0C0TC0","Mexico Region 2 (no CDMX, ZM y MTY)",55,36086]
[null,null,null,null,null,null,null,null,null,null,null,null,{"$f":"CONCATENATE(N623,O623,P623)","v":"NVFS2D0C0TC0Mexico Region 2 (no CDMX, ZM y MTY)56"},"NVFS2D0C0TC0","Mexico Region 2 (no CDMX, ZM y MTY)",56,38837]
[null,null,null,null,null,null,null,null,null,null,null,null,{"$f":"CONCATENATE(N624,O624,P624)","v":"NVFS2D0C0TC0Mexico Region 2 (no CDMX, ZM y MTY)57"},"NVFS2D0C0TC0","Mexico Region 2 (no CDMX, ZM y MTY)",57,41582]
[null,null,null,null,null,null,null,null,null,null,null,null,{"$f":"CONCATENATE(N625,O625,P625)","v":"NVFS2D0C0TC0Mexico Region 2 (no CDMX, ZM y MTY)58"},"NVFS2D0C0TC0","Mexico Region 2 (no CDMX, ZM y MTY)",58,44744]
[null,null,null,null,null,null,null,null,null,null,null,null,{"$f":"CONCATENATE(N626,O626,P626)","v":"NVFS2D0C0TC0Mexico Region 2 (no CDMX, ZM y MTY)59"},"NVFS2D0C0TC0","Mexico Region 2 (no CDMX, ZM y MTY)",59,47663]
[null,null,null,null,null,null,null,null,null,null,null,null,{"$f":"CONCATENATE(N627,O627,P627)","v":"NVFS2D0C0TC0Mexico Region 2 (no CDMX, ZM y MTY)60"},"NVFS2D0C0TC0","Mexico Region 2 (no CDMX, ZM y MTY)",60,52304]
[null,null,null,null,null,null,null,null,null,null,null,null,{"$f":"CONCATENATE(N628,O628,P628)","v":"NVFS2D0C0TC0Mexico Region 2 (no CDMX, ZM y MTY)61"},"NVFS2D0C0TC0","Mexico Region 2 (no CDMX, ZM y MTY)",61,55716]
[null,null,null,null,null,null,null,null,null,null,null,null,{"$f":"CONCATENATE(N629,O629,P629)","v":"NVFS2D0C0TC0Mexico Region 2 (no CDMX, ZM y MTY)62"},"NVFS2D0C0TC0","Mexico Region 2 (no CDMX, ZM y MTY)",62,59351]
[null,null,null,null,null,null,null,null,null,null,null,null,{"$f":"CONCATENATE(N630,O630,P630)","v":"NVFS2D0C0TC0Mexico Region 2 (no CDMX, ZM y MTY)63"},"NVFS2D0C0TC0","Mexico Region 2 (no CDMX, ZM y MTY)",63,62607]
[null,null,null,null,null,null,null,null,null,null,null,null,{"$f":"CONCATENATE(N631,O631,P631)","v":"NVFS2D0C0TC0Mexico Region 2 (no CDMX, ZM y MTY)64"},"NVFS2D0C0TC0","Mexico Region 2 (no CDMX, ZM y MTY)",64,66691]
[null,null,null,null,null,null,null,null,null,null,null,null,{"$f":"CONCATENATE(N632,O632,P632)","v":"NVFS2D0C0TC0Mexico Region 2 (no CDMX, ZM y MTY)65"},"NVFS2D0C0TC0","Mexico Region 2 (no CDMX, ZM y MTY)",65,71042]
[null,null,null,null,null,null,null,null,null,null,null,null,{"$f":"CONCATENATE(N633,O633,P633)","v":"NVFS2D0C0TC0Mexico Region 2 (no CDMX, ZM y MTY)66"},"NVFS2D0C0TC0","Mexico Region 2 (no CDMX, ZM y MTY)",66,76049]
[null,null,null,null,null,null,null,null,null,null,null,null,{"$f":"CONCATENATE(N634,O634,P634)","v":"NVFS2D0C0TC0Mexico Region 2 (no CDMX, ZM y MTY)67"},"NVFS2D0C0TC0","Mexico Region 2 (no CDMX, ZM y MTY)",67,81407]
[null,null,null,null,null,null,null,null,null,null,null,null,{"$f":"CONCATENATE(N635,O635,P635)","v":"NVFS2D0C0TC0Mexico Region 2 (no CDMX, ZM y MTY)68"},"NVFS2D0C0TC0","Mexico Region 2 (no CDMX, ZM y MTY)",68,86719]
[null,null,null,null,null,null,null,null,null,null,null,null,{"$f":"CONCATENATE(N636,O636,P636)","v":"NVFS2D0C0TC0Mexico Region 2 (no CDMX, ZM y MTY)69"},"NVFS2D0C0TC0","Mexico Region 2 (no CDMX, ZM y MTY)",69,92375]
[null,null,null,null,null,null,null,null,null,null,null,null,{"$f":"CONCATENATE(N637,O637,P637)","v":"NVFS2D0C0TC0Mexico Region 2 (no CDMX, ZM y MTY)70"},"NVFS2D0C0TC0","Mexico Region 2 (no CDMX, ZM y MTY)",70,98404]
[null,null,null,null,null,null,null,null,null,null,null,null,{"$f":"CONCATENATE(N638,O638,P638)","v":"NVFS2D0C0TC0Mexico Region 2 (no CDMX, ZM y MTY)71"},"NVFS2D0C0TC0","Mexico Region 2 (no CDMX, ZM y MTY)",71,104823]
[null,null,null,null,null,null,null,null,null,null,null,null,{"$f":"CONCATENATE(N639,O639,P639)","v":"NVFS2D0C0TC0Mexico Region 2 (no CDMX, ZM y MTY)72"},"NVFS2D0C0TC0","Mexico Region 2 (no CDMX, ZM y MTY)",72,111661]
[null,null,null,null,null,null,null,null,null,null,null,null,{"$f":"CONCATENATE(N640,O640,P640)","v":"NVFS2D0C0TC0Mexico Region 2 (no CDMX, ZM y MTY)73"},"NVFS2D0C0TC0","Mexico Region 2 (no CDMX, ZM y MTY)",73,118946]
[null,null,null,null,null,null,null,null,null,null,null,null,{"$f":"CONCATENATE(N641,O641,P641)","v":"NVFS2D0C0TC0Mexico Region 2 (no CDMX, ZM y MTY)74"},"NVFS2D0C0TC0","Mexico Region 2 (no CDMX, ZM y MTY)",74,126705]
[null,null,null,null,null,null,null,null,null,null,null,null,{"$f":"CONCATENATE(N642,O642,P642)","v":"NVFS2D0C0TC0Mexico Region 2 (no CDMX, ZM y MTY)75"},"NVFS2D0C0TC0","Mexico Region 2 (no CDMX, ZM y MTY)",75,134972]
[null,null,null,null,null,null,null,null,null,null,null,null,{"$f":"CONCATENATE(N643,O643,P643)","v":"NVFS2D0C0TC0Mexico Region 2 (no CDMX, ZM y MTY)76"},"NVFS2D0C0TC0","Mexico Region 2 (no CDMX, ZM y MTY)",76,143777]
[null,null,null,null,null,null,null,null,null,null,null,null,{"$f":"CONCATENATE(N644,O644,P644)","v":"NVFS2D0C0TC0Mexico Region 2 (no CDMX, ZM y MTY)77"},"NVFS2D0C0TC0","Mexico Region 2 (no CDMX, ZM y MTY)",77,153158]
[null,null,null,null,null,null,null,null,null,null,null,null,{"$f":"CONCATENATE(N645,O645,P645)","v":"NVFS2D0C0TC0Mexico Region 2 (no CDMX, ZM y MTY)78"},"NVFS2D0C0TC0","Mexico Region 2 (no CDMX, ZM y MTY)",78,163149]
[null,null,null,null,null,null,null,null,null,null,null,null,{"$f":"CONCATENATE(N646,O646,P646)","v":"NVFS2D0C0TC0Mexico Region 2 (no CDMX, ZM y MTY)79"},"NVFS2D0C0TC0","Mexico Region 2 (no CDMX, ZM y MTY)",79,173793]
[null,null,null,null,null,null,null,null,null,null,null,null,{"$f":"CONCATENATE(N647,O647,P647)","v":"NVFS2D0C0TC0Mexico Region 2 (no CDMX, ZM y MTY)80"},"NVFS2D0C0TC0","Mexico Region 2 (no CDMX, ZM y MTY)",80,185132]
[null,null,null,null,null,null,null,null,null,null,null,null,{"$f":"CONCATENATE(N648,O648,P648)","v":"NVFS2D0C0TC0Mexico Region 2 (no CDMX, ZM y MTY)81"},"NVFS2D0C0TC0","Mexico Region 2 (no CDMX, ZM y MTY)",81,197211]
[null,null,null,null,null,null,null,null,null,null,null,null,{"$f":"CONCATENATE(N649,O649,P649)","v":"NVFS2D0C0TC0Mexico Region 2 (no CDMX, ZM y MTY)82"},"NVFS2D0C0TC0","Mexico Region 2 (no CDMX, ZM y MTY)",82,210075]
[null,null,null,null,null,null,null,null,null,null,null,null,{"$f":"CONCATENATE(N650,O650,P650)","v":"NVFS2D0C0TC0Mexico Region 2 (no CDMX, ZM y MTY)83"},"NVFS2D0C0TC0","Mexico Region 2 (no CDMX, ZM y MTY)",83,223781]
[null,null,null,null,null,null,null,null,null,null,null,null,{"$f":"CONCATENATE(N651,O651,P651)","v":"NVFS2D0C0TC0Mexico Region 2 (no CDMX, ZM y MTY)84"},"NVFS2D0C0TC0","Mexico Region 2 (no CDMX, ZM y MTY)",84,238381]
[null,null,null,null,null,null,null,null,null,null,null,null,{"$f":"CONCATENATE(N652,O652,P652)","v":"NVFS3D0C0TC0Mexico Region 2 (no CDMX, ZM y MTY)18"},"NVFS3D0C0TC0","Mexico Region 2 (no CDMX, ZM y MTY)",18,10011]
[null,null,null,null,null,null,null,null,null,null,null,null,{"$f":"CONCATENATE(N653,O653,P653)","v":"NVFS3D0C0TC0Mexico Region 2 (no CDMX, ZM y MTY)19"},"NVFS3D0C0TC0","Mexico Region 2 (no CDMX, ZM y MTY)",19,10307]
[null,null,null,null,null,null,null,null,null,null,null,null,{"$f":"CONCATENATE(N654,O654,P654)","v":"NVFS3D0C0TC0Mexico Region 2 (no CDMX, ZM y MTY)20"},"NVFS3D0C0TC0","Mexico Region 2 (no CDMX, ZM y MTY)",20,10612]
[null,null,null,null,null,null,null,null,null,null,null,null,{"$f":"CONCATENATE(N655,O655,P655)","v":"NVFS3D0C0TC0Mexico Region 2 (no CDMX, ZM y MTY)21"},"NVFS3D0C0TC0","Mexico Region 2 (no CDMX, ZM y MTY)",21,10926]
[null,null,null,null,null,null,null,null,null,null,null,null,{"$f":"CONCATENATE(N656,O656,P656)","v":"NVFS3D0C0TC0Mexico Region 2 (no CDMX, ZM y MTY)22"},"NVFS3D0C0TC0","Mexico Region 2 (no CDMX, ZM y MTY)",22,11251]
[null,null,null,null,null,null,null,null,null,null,null,null,{"$f":"CONCATENATE(N657,O657,P657)","v":"NVFS3D0C0TC0Mexico Region 2 (no CDMX, ZM y MTY)23"},"NVFS3D0C0TC0","Mexico Region 2 (no CDMX, ZM y MTY)",23,11584]
[null,null,null,null,null,null,null,null,null,null,null,null,{"$f":"CONCATENATE(N658,O658,P658)","v":"NVFS3D0C0TC0Mexico Region 2 (no CDMX, ZM y MTY)24"},"NVFS3D0C0TC0","Mexico Region 2 (no CDMX, ZM y MTY)",24,11928]
[null,null,null,null,null,null,null,null,null,null,null,null,{"$f":"CONCATENATE(N659,O659,P659)","v":"NVFS3D0C0TC0Mexico Region 2 (no CDMX, ZM y MTY)25"},"NVFS3D0C0TC0","Mexico Region 2 (no CDMX, ZM y MTY)",25,12282]
[null,null,null,null,null,null,null,null,null,null,null,null,{"$f":"CONCATENATE(N660,O660,P660)","v":"NVFS3D0C0TC0Mexico Region 2 (no CDMX, ZM y MTY)26"},"NVFS3D0C0TC0","Mexico Region 2 (no CDMX, ZM y MTY)",26,12647]
[null,null,null,null,null,null,null,null,null,null,null,null,{"$f":"CONCATENATE(N661,O661,P661)","v":"NVFS3D0C0TC0Mexico Region 2 (no CDMX, ZM y MTY)27"},"NVFS3D0C0TC0","Mexico Region 2 (no CDMX, ZM y MTY)",27,13023]
[null,null,null,null,null,null,null,null,null,null,null,null,{"$f":"CONCATENATE(N662,O662,P662)","v":"NVFS3D0C0TC0Mexico Region 2 (no CDMX, ZM y MTY)28"},"NVFS3D0C0TC0","Mexico Region 2 (no CDMX, ZM y MTY)",28,13409]
[null,null,null,null,null,null,null,null,null,null,null,null,{"$f":"CONCATENATE(N663,O663,P663)","v":"NVFS3D0C0TC0Mexico Region 2 (no CDMX, ZM y MTY)29"},"NVFS3D0C0TC0","Mexico Region 2 (no CDMX, ZM y MTY)",29,13807]
[null,null,null,null,null,null,null,null,null,null,null,null,{"$f":"CONCATENATE(N664,O664,P664)","v":"NVFS3D0C0TC0Mexico Region 2 (no CDMX, ZM y MTY)30"},"NVFS3D0C0TC0","Mexico Region 2 (no CDMX, ZM y MTY)",30,15582]
[null,null,null,null,null,null,null,null,null,null,null,null,{"$f":"CONCATENATE(N665,O665,P665)","v":"NVFS3D0C0TC0Mexico Region 2 (no CDMX, ZM y MTY)31"},"NVFS3D0C0TC0","Mexico Region 2 (no CDMX, ZM y MTY)",31,16046]
[null,null,null,null,null,null,null,null,null,null,null,null,{"$f":"CONCATENATE(N666,O666,P666)","v":"NVFS3D0C0TC0Mexico Region 2 (no CDMX, ZM y MTY)32"},"NVFS3D0C0TC0","Mexico Region 2 (no CDMX, ZM y MTY)",32,16523]
[null,null,null,null,null,null,null,null,null,null,null,null,{"$f":"CONCATENATE(N667,O667,P667)","v":"NVFS3D0C0TC0Mexico Region 2 (no CDMX, ZM y MTY)33"},"NVFS3D0C0TC0","Mexico Region 2 (no CDMX, ZM y MTY)",33,17016]
[null,null,null,null,null,null,null,null,null,null,null,null,{"$f":"CONCATENATE(N668,O668,P668)","v":"NVFS3D0C0TC0Mexico Region 2 (no CDMX, ZM y MTY)34"},"NVFS3D0C0TC0","Mexico Region 2 (no CDMX, ZM y MTY)",34,17521]
[null,null,null,null,null,null,null,null,null,null,null,null,{"$f":"CONCATENATE(N669,O669,P669)","v":"NVFS3D0C0TC0Mexico Region 2 (no CDMX, ZM y MTY)35"},"NVFS3D0C0TC0","Mexico Region 2 (no CDMX, ZM y MTY)",35,18044]
[null,null,null,null,null,null,null,null,null,null,null,null,{"$f":"CONCATENATE(N670,O670,P670)","v":"NVFS3D0C0TC0Mexico Region 2 (no CDMX, ZM y MTY)36"},"NVFS3D0C0TC0","Mexico Region 2 (no CDMX, ZM y MTY)",36,18581]
[null,null,null,null,null,null,null,null,null,null,null,null,{"$f":"CONCATENATE(N671,O671,P671)","v":"NVFS3D0C0TC0Mexico Region 2 (no CDMX, ZM y MTY)37"},"NVFS3D0C0TC0","Mexico Region 2 (no CDMX, ZM y MTY)",37,19135]
[null,null,null,null,null,null,null,null,null,null,null,null,{"$f":"CONCATENATE(N672,O672,P672)","v":"NVFS3D0C0TC0Mexico Region 2 (no CDMX, ZM y MTY)38"},"NVFS3D0C0TC0","Mexico Region 2 (no CDMX, ZM y MTY)",38,19705]
[null,null,null,null,null,null,null,null,null,null,null,null,{"$f":"CONCATENATE(N673,O673,P673)","v":"NVFS3D0C0TC0Mexico Region 2 (no CDMX, ZM y MTY)39"},"NVFS3D0C0TC0","Mexico Region 2 (no CDMX, ZM y MTY)",39,19904]
[null,null,null,null,null,null,null,null,null,null,null,null,{"$f":"CONCATENATE(N674,O674,P674)","v":"NVFS3D0C0TC0Mexico Region 2 (no CDMX, ZM y MTY)40"},"NVFS3D0C0TC0","Mexico Region 2 (no CDMX, ZM y MTY)",40,19956]
[null,null,null,null,null,null,null,null,null,null,null,null,{"$f":"CONCATENATE(N675,O675,P675)","v":"NVFS3D0C0TC0Mexico Region 2 (no CDMX, ZM y MTY)41"},"NVFS3D0C0TC0","Mexico Region 2 (no CDMX, ZM y MTY)",41,20123]
[null,null,null,null,null,null,null,null,null,null,null,null,{"$f":"CONCATENATE(N676,O676,P676)","v":"NVFS3D0C0TC0Mexico Region 2 (no CDMX, ZM y MTY)42"},"NVFS3D0C0TC0","Mexico Region 2 (no CDMX, ZM y MTY)",42,20709]
[null,null,null,null,null,null,null,null,null,null,null,null,{"$f":"CONCATENATE(N677,O677,P677)","v":"NVFS3D0C0TC0Mexico Region 2 (no CDMX, ZM y MTY)43"},"NVFS3D0C0TC0","Mexico Region 2 (no CDMX, ZM y MTY)",43,21532]
[null,null,null,null,null,null,null,null,null,null,null,null,{"$f":"CONCATENATE(N678,O678,P678)","v":"NVFS3D0C0TC0Mexico Region 2 (no CDMX, ZM y MTY)44"},"NVFS3D0C0TC0","Mexico Region 2 (no CDMX, ZM y MTY)",44,22389]
[null,null,null,null,null,null,null,null,null,null,null,null,{"$f":"CONCATENATE(N679,O679,P679)","v":"NVFS3D0C0TC0Mexico Region 2 (no CDMX, ZM y MTY)45"},"NVFS3D0C0TC0","Mexico Region 2 (no CDMX, ZM y MTY)",45,23279]
[null,null,null,null,null,null,null,null,null,null,null,null,{"$f":"CONCATENATE(N680,O680,P680)","v":"NVFS3D0C0TC0Mexico Region 2 (no CDMX, ZM y MTY)46"},"NVFS3D0C0TC0","Mexico Region 2 (no CDMX, ZM y MTY)",46,24205]
[null,null,null,null,null,null,null,null,null,null,null,null,{"$f":"CONCATENATE(N681,O681,P681)","v":"NVFS3D0C0TC0Mexico Region 2 (no CDMX, ZM y MTY)47"},"NVFS3D0C0TC0","Mexico Region 2 (no CDMX, ZM y MTY)",47,25168]
[null,null,null,null,null,null,null,null,null,null,null,null,{"$f":"CONCATENATE(N682,O682,P682)","v":"NVFS3D0C0TC0Mexico Region 2 (no CDMX, ZM y MTY)48"},"NVFS3D0C0TC0","Mexico Region 2 (no CDMX, ZM y MTY)",48,26170]
[null,null,null,null,null,null,null,null,null,null,null,null,{"$f":"CONCATENATE(N683,O683,P683)","v":"NVFS3D0C0TC0Mexico Region 2 (no CDMX, ZM y MTY)49"},"NVFS3D0C0TC0","Mexico Region 2 (no CDMX, ZM y MTY)",49,27212]
[null,null,null,null,null,null,null,null,null,null,null,null,{"$f":"CONCATENATE(N684,O684,P684)","v":"NVFS3D0C0TC0Mexico Region 2 (no CDMX, ZM y MTY)50"},"NVFS3D0C0TC0","Mexico Region 2 (no CDMX, ZM y MTY)",50,28295]
[null,null,null,null,null,null,null,null,null,null,null,null,{"$f":"CONCATENATE(N685,O685,P685)","v":"NVFS3D0C0TC0Mexico Region 2 (no CDMX, ZM y MTY)51"},"NVFS3D0C0TC0","Mexico Region 2 (no CDMX, ZM y MTY)",51,29563]
[null,null,null,null,null,null,null,null,null,null,null,null,{"$f":"CONCATENATE(N686,O686,P686)","v":"NVFS3D0C0TC0Mexico Region 2 (no CDMX, ZM y MTY)52"},"NVFS3D0C0TC0","Mexico Region 2 (no CDMX, ZM y MTY)",52,31035]
[null,null,null,null,null,null,null,null,null,null,null,null,{"$f":"CONCATENATE(N687,O687,P687)","v":"NVFS3D0C0TC0Mexico Region 2 (no CDMX, ZM y MTY)53"},"NVFS3D0C0TC0","Mexico Region 2 (no CDMX, ZM y MTY)",53,33032]
[null,null,null,null,null,null,null,null,null,null,null,null,{"$f":"CONCATENATE(N688,O688,P688)","v":"NVFS3D0C0TC0Mexico Region 2 (no CDMX, ZM y MTY)54"},"NVFS3D0C0TC0","Mexico Region 2 (no CDMX, ZM y MTY)",54,36321]
[null,null,null,null,null,null,null,null,null,null,null,null,{"$f":"CONCATENATE(N689,O689,P689)","v":"NVFS3D0C0TC0Mexico Region 2 (no CDMX, ZM y MTY)55"},"NVFS3D0C0TC0","Mexico Region 2 (no CDMX, ZM y MTY)",55,39093]
[null,null,null,null,null,null,null,null,null,null,null,null,{"$f":"CONCATENATE(N690,O690,P690)","v":"NVFS3D0C0TC0Mexico Region 2 (no CDMX, ZM y MTY)56"},"NVFS3D0C0TC0","Mexico Region 2 (no CDMX, ZM y MTY)",56,42074]
[null,null,null,null,null,null,null,null,null,null,null,null,{"$f":"CONCATENATE(N691,O691,P691)","v":"NVFS3D0C0TC0Mexico Region 2 (no CDMX, ZM y MTY)57"},"NVFS3D0C0TC0","Mexico Region 2 (no CDMX, ZM y MTY)",57,45047]
[null,null,null,null,null,null,null,null,null,null,null,null,{"$f":"CONCATENATE(N692,O692,P692)","v":"NVFS3D0C0TC0Mexico Region 2 (no CDMX, ZM y MTY)58"},"NVFS3D0C0TC0","Mexico Region 2 (no CDMX, ZM y MTY)",58,48472]
[null,null,null,null,null,null,null,null,null,null,null,null,{"$f":"CONCATENATE(N693,O693,P693)","v":"NVFS3D0C0TC0Mexico Region 2 (no CDMX, ZM y MTY)59"},"NVFS3D0C0TC0","Mexico Region 2 (no CDMX, ZM y MTY)",59,51635]
[null,null,null,null,null,null,null,null,null,null,null,null,{"$f":"CONCATENATE(N694,O694,P694)","v":"NVFS3D0C0TC0Mexico Region 2 (no CDMX, ZM y MTY)60"},"NVFS3D0C0TC0","Mexico Region 2 (no CDMX, ZM y MTY)",60,56661]
[null,null,null,null,null,null,null,null,null,null,null,null,{"$f":"CONCATENATE(N695,O695,P695)","v":"NVFS3D0C0TC0Mexico Region 2 (no CDMX, ZM y MTY)61"},"NVFS3D0C0TC0","Mexico Region 2 (no CDMX, ZM y MTY)",61,60358]
[null,null,null,null,null,null,null,null,null,null,null,null,{"$f":"CONCATENATE(N696,O696,P696)","v":"NVFS3D0C0TC0Mexico Region 2 (no CDMX, ZM y MTY)62"},"NVFS3D0C0TC0","Mexico Region 2 (no CDMX, ZM y MTY)",62,64296]
[null,null,null,null,null,null,null,null,null,null,null,null,{"$f":"CONCATENATE(N697,O697,P697)","v":"NVFS3D0C0TC0Mexico Region 2 (no CDMX, ZM y MTY)63"},"NVFS3D0C0TC0","Mexico Region 2 (no CDMX, ZM y MTY)",63,67823]
[null,null,null,null,null,null,null,null,null,null,null,null,{"$f":"CONCATENATE(N698,O698,P698)","v":"NVFS3D0C0TC0Mexico Region 2 (no CDMX, ZM y MTY)64"},"NVFS3D0C0TC0","Mexico Region 2 (no CDMX, ZM y MTY)",64,72247]
[null,null,null,null,null,null,null,null,null,null,null,null,{"$f":"CONCATENATE(N699,O699,P699)","v":"NVFS3D0C0TC0Mexico Region 2 (no CDMX, ZM y MTY)65"},"NVFS3D0C0TC0","Mexico Region 2 (no CDMX, ZM y MTY)",65,76961]
[null,null,null,null,null,null,null,null,null,null,null,null,{"$f":"CONCATENATE(N700,O700,P700)","v":"NVFS3D0C0TC0Mexico Region 2 (no CDMX, ZM y MTY)66"},"NVFS3D0C0TC0","Mexico Region 2 (no CDMX, ZM y MTY)",66,82386]
[null,null,null,null,null,null,null,null,null,null,null,null,{"$f":"CONCATENATE(N701,O701,P701)","v":"NVFS3D0C0TC0Mexico Region 2 (no CDMX, ZM y MTY)67"},"NVFS3D0C0TC0","Mexico Region 2 (no CDMX, ZM y MTY)",67,88191]
[null,null,null,null,null,null,null,null,null,null,null,null,{"$f":"CONCATENATE(N702,O702,P702)","v":"NVFS3D0C0TC0Mexico Region 2 (no CDMX, ZM y MTY)68"},"NVFS3D0C0TC0","Mexico Region 2 (no CDMX, ZM y MTY)",68,93944]
[null,null,null,null,null,null,null,null,null,null,null,null,{"$f":"CONCATENATE(N703,O703,P703)","v":"NVFS3D0C0TC0Mexico Region 2 (no CDMX, ZM y MTY)69"},"NVFS3D0C0TC0","Mexico Region 2 (no CDMX, ZM y MTY)",69,100074]
[null,null,null,null,null,null,null,null,null,null,null,null,{"$f":"CONCATENATE(N704,O704,P704)","v":"NVFS3D0C0TC0Mexico Region 2 (no CDMX, ZM y MTY)70"},"NVFS3D0C0TC0","Mexico Region 2 (no CDMX, ZM y MTY)",70,106602]
[null,null,null,null,null,null,null,null,null,null,null,null,{"$f":"CONCATENATE(N705,O705,P705)","v":"NVFS3D0C0TC0Mexico Region 2 (no CDMX, ZM y MTY)71"},"NVFS3D0C0TC0","Mexico Region 2 (no CDMX, ZM y MTY)",71,113556]
[null,null,null,null,null,null,null,null,null,null,null,null,{"$f":"CONCATENATE(N706,O706,P706)","v":"NVFS3D0C0TC0Mexico Region 2 (no CDMX, ZM y MTY)72"},"NVFS3D0C0TC0","Mexico Region 2 (no CDMX, ZM y MTY)",72,120965]
[null,null,null,null,null,null,null,null,null,null,null,null,{"$f":"CONCATENATE(N707,O707,P707)","v":"NVFS3D0C0TC0Mexico Region 2 (no CDMX, ZM y MTY)73"},"NVFS3D0C0TC0","Mexico Region 2 (no CDMX, ZM y MTY)",73,128858]
[null,null,null,null,null,null,null,null,null,null,null,null,{"$f":"CONCATENATE(N708,O708,P708)","v":"NVFS3D0C0TC0Mexico Region 2 (no CDMX, ZM y MTY)74"},"NVFS3D0C0TC0","Mexico Region 2 (no CDMX, ZM y MTY)",74,137263]
[null,null,null,null,null,null,null,null,null,null,null,null,{"$f":"CONCATENATE(N709,O709,P709)","v":"NVFS3D0C0TC0Mexico Region 2 (no CDMX, ZM y MTY)75"},"NVFS3D0C0TC0","Mexico Region 2 (no CDMX, ZM y MTY)",75,146219]
[null,null,null,null,null,null,null,null,null,null,null,null,{"$f":"CONCATENATE(N710,O710,P710)","v":"NVFS3D0C0TC0Mexico Region 2 (no CDMX, ZM y MTY)76"},"NVFS3D0C0TC0","Mexico Region 2 (no CDMX, ZM y MTY)",76,155758]
[null,null,null,null,null,null,null,null,null,null,null,null,{"$f":"CONCATENATE(N711,O711,P711)","v":"NVFS3D0C0TC0Mexico Region 2 (no CDMX, ZM y MTY)77"},"NVFS3D0C0TC0","Mexico Region 2 (no CDMX, ZM y MTY)",77,165919]
[null,null,null,null,null,null,null,null,null,null,null,null,{"$f":"CONCATENATE(N712,O712,P712)","v":"NVFS3D0C0TC0Mexico Region 2 (no CDMX, ZM y MTY)78"},"NVFS3D0C0TC0","Mexico Region 2 (no CDMX, ZM y MTY)",78,176744]
[null,null,null,null,null,null,null,null,null,null,null,null,{"$f":"CONCATENATE(N713,O713,P713)","v":"NVFS3D0C0TC0Mexico Region 2 (no CDMX, ZM y MTY)79"},"NVFS3D0C0TC0","Mexico Region 2 (no CDMX, ZM y MTY)",79,188275]
[null,null,null,null,null,null,null,null,null,null,null,null,{"$f":"CONCATENATE(N714,O714,P714)","v":"NVFS3D0C0TC0Mexico Region 2 (no CDMX, ZM y MTY)80"},"NVFS3D0C0TC0","Mexico Region 2 (no CDMX, ZM y MTY)",80,200558]
[null,null,null,null,null,null,null,null,null,null,null,null,{"$f":"CONCATENATE(N715,O715,P715)","v":"NVFS3D0C0TC0Mexico Region 2 (no CDMX, ZM y MTY)81"},"NVFS3D0C0TC0","Mexico Region 2 (no CDMX, ZM y MTY)",81,213642]
[null,null,null,null,null,null,null,null,null,null,null,null,{"$f":"CONCATENATE(N716,O716,P716)","v":"NVFS3D0C0TC0Mexico Region 2 (no CDMX, ZM y MTY)82"},"NVFS3D0C0TC0","Mexico Region 2 (no CDMX, ZM y MTY)",82,227581]
[null,null,null,null,null,null,null,null,null,null,null,null,{"$f":"CONCATENATE(N717,O717,P717)","v":"NVFS3D0C0TC0Mexico Region 2 (no CDMX, ZM y MTY)83"},"NVFS3D0C0TC0","Mexico Region 2 (no CDMX, ZM y MTY)",83,242428]
[null,null,null,null,null,null,null,null,null,null,null,null,{"$f":"CONCATENATE(N718,O718,P718)","v":"NVFS3D0C0TC0Mexico Region 2 (no CDMX, ZM y MTY)84"},"NVFS3D0C0TC0","Mexico Region 2 (no CDMX, ZM y MTY)",84,258244]
[null,null,null,null,null,null,null,null,null,null,null,null,{"$f":"CONCATENATE(N719,O719,P719)","v":"NVFS4D0C0TC0Mexico Region 2 (no CDMX, ZM y MTY)18"},"NVFS4D0C0TC0","Mexico Region 2 (no CDMX, ZM y MTY)",18,10556]
[null,null,null,null,null,null,null,null,null,null,null,null,{"$f":"CONCATENATE(N720,O720,P720)","v":"NVFS4D0C0TC0Mexico Region 2 (no CDMX, ZM y MTY)19"},"NVFS4D0C0TC0","Mexico Region 2 (no CDMX, ZM y MTY)",19,10870]
[null,null,null,null,null,null,null,null,null,null,null,null,{"$f":"CONCATENATE(N721,O721,P721)","v":"NVFS4D0C0TC0Mexico Region 2 (no CDMX, ZM y MTY)20"},"NVFS4D0C0TC0","Mexico Region 2 (no CDMX, ZM y MTY)",20,11191]
[null,null,null,null,null,null,null,null,null,null,null,null,{"$f":"CONCATENATE(N722,O722,P722)","v":"NVFS4D0C0TC0Mexico Region 2 (no CDMX, ZM y MTY)21"},"NVFS4D0C0TC0","Mexico Region 2 (no CDMX, ZM y MTY)",21,11523]
[null,null,null,null,null,null,null,null,null,null,null,null,{"$f":"CONCATENATE(N723,O723,P723)","v":"NVFS4D0C0TC0Mexico Region 2 (no CDMX, ZM y MTY)22"},"NVFS4D0C0TC0","Mexico Region 2 (no CDMX, ZM y MTY)",22,11865]
[null,null,null,null,null,null,null,null,null,null,null,null,{"$f":"CONCATENATE(N724,O724,P724)","v":"NVFS4D0C0TC0Mexico Region 2 (no CDMX, ZM y MTY)23"},"NVFS4D0C0TC0","Mexico Region 2 (no CDMX, ZM y MTY)",23,12218]
[null,null,null,null,null,null,null,null,null,null,null,null,{"$f":"CONCATENATE(N725,O725,P725)","v":"NVFS4D0C0TC0Mexico Region 2 (no CDMX, ZM y MTY)24"},"NVFS4D0C0TC0","Mexico Region 2 (no CDMX, ZM y MTY)",24,12579]
[null,null,null,null,null,null,null,null,null,null,null,null,{"$f":"CONCATENATE(N726,O726,P726)","v":"NVFS4D0C0TC0Mexico Region 2 (no CDMX, ZM y MTY)25"},"NVFS4D0C0TC0","Mexico Region 2 (no CDMX, ZM y MTY)",25,12953]
[null,null,null,null,null,null,null,null,null,null,null,null,{"$f":"CONCATENATE(N727,O727,P727)","v":"NVFS4D0C0TC0Mexico Region 2 (no CDMX, ZM y MTY)26"},"NVFS4D0C0TC0","Mexico Region 2 (no CDMX, ZM y MTY)",26,13337]
[null,null,null,null,null,null,null,null,null,null,null,null,{"$f":"CONCATENATE(N728,O728,P728)","v":"NVFS4D0C0TC0Mexico Region 2 (no CDMX, ZM y MTY)27"},"NVFS4D0C0TC0","Mexico Region 2 (no CDMX, ZM y MTY)",27,13733]
[null,null,null,null,null,null,null,null,null,null,null,null,{"$f":"CONCATENATE(N729,O729,P729)","v":"NVFS4D0C0TC0Mexico Region 2 (no CDMX, ZM y MTY)28"},"NVFS4D0C0TC0","Mexico Region 2 (no CDMX, ZM y MTY)",28,14142]
[null,null,null,null,null,null,null,null,null,null,null,null,{"$f":"CONCATENATE(N730,O730,P730)","v":"NVFS4D0C0TC0Mexico Region 2 (no CDMX, ZM y MTY)29"},"NVFS4D0C0TC0","Mexico Region 2 (no CDMX, ZM y MTY)",29,14561]
[null,null,null,null,null,null,null,null,null,null,null,null,{"$f":"CONCATENATE(N731,O731,P731)","v":"NVFS4D0C0TC0Mexico Region 2 (no CDMX, ZM y MTY)30"},"NVFS4D0C0TC0","Mexico Region 2 (no CDMX, ZM y MTY)",30,16432]
[null,null,null,null,null,null,null,null,null,null,null,null,{"$f":"CONCATENATE(N732,O732,P732)","v":"NVFS4D0C0TC0Mexico Region 2 (no CDMX, ZM y MTY)31"},"NVFS4D0C0TC0","Mexico Region 2 (no CDMX, ZM y MTY)",31,16921]
[null,null,null,null,null,null,null,null,null,null,null,null,{"$f":"CONCATENATE(N733,O733,P733)","v":"NVFS4D0C0TC0Mexico Region 2 (no CDMX, ZM y MTY)32"},"NVFS4D0C0TC0","Mexico Region 2 (no CDMX, ZM y MTY)",32,17425]
[null,null,null,null,null,null,null,null,null,null,null,null,{"$f":"CONCATENATE(N734,O734,P734)","v":"NVFS4D0C0TC0Mexico Region 2 (no CDMX, ZM y MTY)33"},"NVFS4D0C0TC0","Mexico Region 2 (no CDMX, ZM y MTY)",33,17944]
[null,null,null,null,null,null,null,null,null,null,null,null,{"$f":"CONCATENATE(N735,O735,P735)","v":"NVFS4D0C0TC0Mexico Region 2 (no CDMX, ZM y MTY)34"},"NVFS4D0C0TC0","Mexico Region 2 (no CDMX, ZM y MTY)",34,18477]
[null,null,null,null,null,null,null,null,null,null,null,null,{"$f":"CONCATENATE(N736,O736,P736)","v":"NVFS4D0C0TC0Mexico Region 2 (no CDMX, ZM y MTY)35"},"NVFS4D0C0TC0","Mexico Region 2 (no CDMX, ZM y MTY)",35,19028]
[null,null,null,null,null,null,null,null,null,null,null,null,{"$f":"CONCATENATE(N737,O737,P737)","v":"NVFS4D0C0TC0Mexico Region 2 (no CDMX, ZM y MTY)36"},"NVFS4D0C0TC0","Mexico Region 2 (no CDMX, ZM y MTY)",36,19595]
[null,null,null,null,null,null,null,null,null,null,null,null,{"$f":"CONCATENATE(N738,O738,P738)","v":"NVFS4D0C0TC0Mexico Region 2 (no CDMX, ZM y MTY)37"},"NVFS4D0C0TC0","Mexico Region 2 (no CDMX, ZM y MTY)",37,20179]
[null,null,null,null,null,null,null,null,null,null,null,null,{"$f":"CONCATENATE(N739,O739,P739)","v":"NVFS4D0C0TC0Mexico Region 2 (no CDMX, ZM y MTY)38"},"NVFS4D0C0TC0","Mexico Region 2 (no CDMX, ZM y MTY)",38,20781]
[null,null,null,null,null,null,null,null,null,null,null,null,{"$f":"CONCATENATE(N740,O740,P740)","v":"NVFS4D0C0TC0Mexico Region 2 (no CDMX, ZM y MTY)39"},"NVFS4D0C0TC0","Mexico Region 2 (no CDMX, ZM y MTY)",39,20989]
[null,null,null,null,null,null,null,null,null,null,null,null,{"$f":"CONCATENATE(N741,O741,P741)","v":"NVFS4D0C0TC0Mexico Region 2 (no CDMX, ZM y MTY)40"},"NVFS4D0C0TC0","Mexico Region 2 (no CDMX, ZM y MTY)",40,21046]
[null,null,null,null,null,null,null,null,null,null,null,null,{"$f":"CONCATENATE(N742,O742,P742)","v":"NVFS4D0C0TC0Mexico Region 2 (no CDMX, ZM y MTY)41"},"NVFS4D0C0TC0","Mexico Region 2 (no CDMX, ZM y MTY)",41,21221]
[null,null,null,null,null,null,null,null,null,null,null,null,{"$f":"CONCATENATE(N743,O743,P743)","v":"NVFS4D0C0TC0Mexico Region 2 (no CDMX, ZM y MTY)42"},"NVFS4D0C0TC0","Mexico Region 2 (no CDMX, ZM y MTY)",42,21839]
[null,null,null,null,null,null,null,null,null,null,null,null,{"$f":"CONCATENATE(N744,O744,P744)","v":"NVFS4D0C0TC0Mexico Region 2 (no CDMX, ZM y MTY)43"},"NVFS4D0C0TC0","Mexico Region 2 (no CDMX, ZM y MTY)",43,22707]
[null,null,null,null,null,null,null,null,null,null,null,null,{"$f":"CONCATENATE(N745,O745,P745)","v":"NVFS4D0C0TC0Mexico Region 2 (no CDMX, ZM y MTY)44"},"NVFS4D0C0TC0","Mexico Region 2 (no CDMX, ZM y MTY)",44,23611]
[null,null,null,null,null,null,null,null,null,null,null,null,{"$f":"CONCATENATE(N746,O746,P746)","v":"NVFS4D0C0TC0Mexico Region 2 (no CDMX, ZM y MTY)45"},"NVFS4D0C0TC0","Mexico Region 2 (no CDMX, ZM y MTY)",45,24549]
[null,null,null,null,null,null,null,null,null,null,null,null,{"$f":"CONCATENATE(N747,O747,P747)","v":"NVFS4D0C0TC0Mexico Region 2 (no CDMX, ZM y MTY)46"},"NVFS4D0C0TC0","Mexico Region 2 (no CDMX, ZM y MTY)",46,25526]
[null,null,null,null,null,null,null,null,null,null,null,null,{"$f":"CONCATENATE(N748,O748,P748)","v":"NVFS4D0C0TC0Mexico Region 2 (no CDMX, ZM y MTY)47"},"NVFS4D0C0TC0","Mexico Region 2 (no CDMX, ZM y MTY)",47,26542]
[null,null,null,null,null,null,null,null,null,null,null,null,{"$f":"CONCATENATE(N749,O749,P749)","v":"NVFS4D0C0TC0Mexico Region 2 (no CDMX, ZM y MTY)48"},"NVFS4D0C0TC0","Mexico Region 2 (no CDMX, ZM y MTY)",48,27598]
[null,null,null,null,null,null,null,null,null,null,null,null,{"$f":"CONCATENATE(N750,O750,P750)","v":"NVFS4D0C0TC0Mexico Region 2 (no CDMX, ZM y MTY)49"},"NVFS4D0C0TC0","Mexico Region 2 (no CDMX, ZM y MTY)",49,28696]
[null,null,null,null,null,null,null,null,null,null,null,null,{"$f":"CONCATENATE(N751,O751,P751)","v":"NVFS4D0C0TC0Mexico Region 2 (no CDMX, ZM y MTY)50"},"NVFS4D0C0TC0","Mexico Region 2 (no CDMX, ZM y MTY)",50,29839]
[null,null,null,null,null,null,null,null,null,null,null,null,{"$f":"CONCATENATE(N752,O752,P752)","v":"NVFS4D0C0TC0Mexico Region 2 (no CDMX, ZM y MTY)51"},"NVFS4D0C0TC0","Mexico Region 2 (no CDMX, ZM y MTY)",51,31175]
[null,null,null,null,null,null,null,null,null,null,null,null,{"$f":"CONCATENATE(N753,O753,P753)","v":"NVFS4D0C0TC0Mexico Region 2 (no CDMX, ZM y MTY)52"},"NVFS4D0C0TC0","Mexico Region 2 (no CDMX, ZM y MTY)",52,32728]
[null,null,null,null,null,null,null,null,null,null,null,null,{"$f":"CONCATENATE(N754,O754,P754)","v":"NVFS4D0C0TC0Mexico Region 2 (no CDMX, ZM y MTY)53"},"NVFS4D0C0TC0","Mexico Region 2 (no CDMX, ZM y MTY)",53,34833]
[null,null,null,null,null,null,null,null,null,null,null,null,{"$f":"CONCATENATE(N755,O755,P755)","v":"NVFS4D0C0TC0Mexico Region 2 (no CDMX, ZM y MTY)54"},"NVFS4D0C0TC0","Mexico Region 2 (no CDMX, ZM y MTY)",54,38304]
[null,null,null,null,null,null,null,null,null,null,null,null,{"$f":"CONCATENATE(N756,O756,P756)","v":"NVFS4D0C0TC0Mexico Region 2 (no CDMX, ZM y MTY)55"},"NVFS4D0C0TC0","Mexico Region 2 (no CDMX, ZM y MTY)",55,41226]
[null,null,null,null,null,null,null,null,null,null,null,null,{"$f":"CONCATENATE(N757,O757,P757)","v":"NVFS4D0C0TC0Mexico Region 2 (no CDMX, ZM y MTY)56"},"NVFS4D0C0TC0","Mexico Region 2 (no CDMX, ZM y MTY)",56,44370]
[null,null,null,null,null,null,null,null,null,null,null,null,{"$f":"CONCATENATE(N758,O758,P758)","v":"NVFS4D0C0TC0Mexico Region 2 (no CDMX, ZM y MTY)57"},"NVFS4D0C0TC0","Mexico Region 2 (no CDMX, ZM y MTY)",57,47505]
[null,null,null,null,null,null,null,null,null,null,null,null,{"$f":"CONCATENATE(N759,O759,P759)","v":"NVFS4D0C0TC0Mexico Region 2 (no CDMX, ZM y MTY)58"},"NVFS4D0C0TC0","Mexico Region 2 (no CDMX, ZM y MTY)",58,51118]
[null,null,null,null,null,null,null,null,null,null,null,null,{"$f":"CONCATENATE(N760,O760,P760)","v":"NVFS4D0C0TC0Mexico Region 2 (no CDMX, ZM y MTY)59"},"NVFS4D0C0TC0","Mexico Region 2 (no CDMX, ZM y MTY)",59,54453]
[null,null,null,null,null,null,null,null,null,null,null,null,{"$f":"CONCATENATE(N761,O761,P761)","v":"NVFS4D0C0TC0Mexico Region 2 (no CDMX, ZM y MTY)60"},"NVFS4D0C0TC0","Mexico Region 2 (no CDMX, ZM y MTY)",60,59754]
[null,null,null,null,null,null,null,null,null,null,null,null,{"$f":"CONCATENATE(N762,O762,P762)","v":"NVFS4D0C0TC0Mexico Region 2 (no CDMX, ZM y MTY)61"},"NVFS4D0C0TC0","Mexico Region 2 (no CDMX, ZM y MTY)",61,63653]
[null,null,null,null,null,null,null,null,null,null,null,null,{"$f":"CONCATENATE(N763,O763,P763)","v":"NVFS4D0C0TC0Mexico Region 2 (no CDMX, ZM y MTY)62"},"NVFS4D0C0TC0","Mexico Region 2 (no CDMX, ZM y MTY)",62,67805]
[null,null,null,null,null,null,null,null,null,null,null,null,{"$f":"CONCATENATE(N764,O764,P764)","v":"NVFS4D0C0TC0Mexico Region 2 (no CDMX, ZM y MTY)63"},"NVFS4D0C0TC0","Mexico Region 2 (no CDMX, ZM y MTY)",63,71525]
[null,null,null,null,null,null,null,null,null,null,null,null,{"$f":"CONCATENATE(N765,O765,P765)","v":"NVFS4D0C0TC0Mexico Region 2 (no CDMX, ZM y MTY)64"},"NVFS4D0C0TC0","Mexico Region 2 (no CDMX, ZM y MTY)",64,76191]
[null,null,null,null,null,null,null,null,null,null,null,null,{"$f":"CONCATENATE(N766,O766,P766)","v":"NVFS4D0C0TC0Mexico Region 2 (no CDMX, ZM y MTY)65"},"NVFS4D0C0TC0","Mexico Region 2 (no CDMX, ZM y MTY)",65,81161]
[null,null,null,null,null,null,null,null,null,null,null,null,{"$f":"CONCATENATE(N767,O767,P767)","v":"NVFS4D0C0TC0Mexico Region 2 (no CDMX, ZM y MTY)66"},"NVFS4D0C0TC0","Mexico Region 2 (no CDMX, ZM y MTY)",66,86882]
[null,null,null,null,null,null,null,null,null,null,null,null,{"$f":"CONCATENATE(N768,O768,P768)","v":"NVFS4D0C0TC0Mexico Region 2 (no CDMX, ZM y MTY)67"},"NVFS4D0C0TC0","Mexico Region 2 (no CDMX, ZM y MTY)",67,93005]
[null,null,null,null,null,null,null,null,null,null,null,null,{"$f":"CONCATENATE(N769,O769,P769)","v":"NVFS4D0C0TC0Mexico Region 2 (no CDMX, ZM y MTY)68"},"NVFS4D0C0TC0","Mexico Region 2 (no CDMX, ZM y MTY)",68,99072]
[null,null,null,null,null,null,null,null,null,null,null,null,{"$f":"CONCATENATE(N770,O770,P770)","v":"NVFS4D0C0TC0Mexico Region 2 (no CDMX, ZM y MTY)69"},"NVFS4D0C0TC0","Mexico Region 2 (no CDMX, ZM y MTY)",69,105535]
[null,null,null,null,null,null,null,null,null,null,null,null,{"$f":"CONCATENATE(N771,O771,P771)","v":"NVFS4D0C0TC0Mexico Region 2 (no CDMX, ZM y MTY)70"},"NVFS4D0C0TC0","Mexico Region 2 (no CDMX, ZM y MTY)",70,112421]
[null,null,null,null,null,null,null,null,null,null,null,null,{"$f":"CONCATENATE(N772,O772,P772)","v":"NVFS4D0C0TC0Mexico Region 2 (no CDMX, ZM y MTY)71"},"NVFS4D0C0TC0","Mexico Region 2 (no CDMX, ZM y MTY)",71,119754]
[null,null,null,null,null,null,null,null,null,null,null,null,{"$f":"CONCATENATE(N773,O773,P773)","v":"NVFS4D0C0TC0Mexico Region 2 (no CDMX, ZM y MTY)72"},"NVFS4D0C0TC0","Mexico Region 2 (no CDMX, ZM y MTY)",72,127568]
[null,null,null,null,null,null,null,null,null,null,null,null,{"$f":"CONCATENATE(N774,O774,P774)","v":"NVFS4D0C0TC0Mexico Region 2 (no CDMX, ZM y MTY)73"},"NVFS4D0C0TC0","Mexico Region 2 (no CDMX, ZM y MTY)",73,135889]
[null,null,null,null,null,null,null,null,null,null,null,null,{"$f":"CONCATENATE(N775,O775,P775)","v":"NVFS4D0C0TC0Mexico Region 2 (no CDMX, ZM y MTY)74"},"NVFS4D0C0TC0","Mexico Region 2 (no CDMX, ZM y MTY)",74,144756]
[null,null,null,null,null,null,null,null,null,null,null,null,{"$f":"CONCATENATE(N776,O776,P776)","v":"NVFS4D0C0TC0Mexico Region 2 (no CDMX, ZM y MTY)75"},"NVFS4D0C0TC0","Mexico Region 2 (no CDMX, ZM y MTY)",75,154200]
[null,null,null,null,null,null,null,null,null,null,null,null,{"$f":"CONCATENATE(N777,O777,P777)","v":"NVFS4D0C0TC0Mexico Region 2 (no CDMX, ZM y MTY)76"},"NVFS4D0C0TC0","Mexico Region 2 (no CDMX, ZM y MTY)",76,164260]
[null,null,null,null,null,null,null,null,null,null,null,null,{"$f":"CONCATENATE(N778,O778,P778)","v":"NVFS4D0C0TC0Mexico Region 2 (no CDMX, ZM y MTY)77"},"NVFS4D0C0TC0","Mexico Region 2 (no CDMX, ZM y MTY)",77,174975]
[null,null,null,null,null,null,null,null,null,null,null,null,{"$f":"CONCATENATE(N779,O779,P779)","v":"NVFS4D0C0TC0Mexico Region 2 (no CDMX, ZM y MTY)78"},"NVFS4D0C0TC0","Mexico Region 2 (no CDMX, ZM y MTY)",78,186391]
[null,null,null,null,null,null,null,null,null,null,null,null,{"$f":"CONCATENATE(N780,O780,P780)","v":"NVFS4D0C0TC0Mexico Region 2 (no CDMX, ZM y MTY)79"},"NVFS4D0C0TC0","Mexico Region 2 (no CDMX, ZM y MTY)",79,198551]
[null,null,null,null,null,null,null,null,null,null,null,null,{"$f":"CONCATENATE(N781,O781,P781)","v":"NVFS4D0C0TC0Mexico Region 2 (no CDMX, ZM y MTY)80"},"NVFS4D0C0TC0","Mexico Region 2 (no CDMX, ZM y MTY)",80,211505]
[null,null,null,null,null,null,null,null,null,null,null,null,{"$f":"CONCATENATE(N782,O782,P782)","v":"NVFS4D0C0TC0Mexico Region 2 (no CDMX, ZM y MTY)81"},"NVFS4D0C0TC0","Mexico Region 2 (no CDMX, ZM y MTY)",81,225304]
[null,null,null,null,null,null,null,null,null,null,null,null,{"$f":"CONCATENATE(N783,O783,P783)","v":"NVFS4D0C0TC0Mexico Region 2 (no CDMX, ZM y MTY)82"},"NVFS4D0C0TC0","Mexico Region 2 (no CDMX, ZM y MTY)",82,240002]
[null,null,null,null,null,null,null,null,null,null,null,null,{"$f":"CONCATENATE(N784,O784,P784)","v":"NVFS4D0C0TC0Mexico Region 2 (no CDMX, ZM y MTY)83"},"NVFS4D0C0TC0","Mexico Region 2 (no CDMX, ZM y MTY)",83,255660]
[null,null,null,null,null,null,null,null,null,null,null,null,{"$f":"CONCATENATE(N785,O785,P785)","v":"NVFS4D0C0TC0Mexico Region 2 (no CDMX, ZM y MTY)84"},"NVFS4D0C0TC0","Mexico Region 2 (no CDMX, ZM y MTY)",84,272339]
[null,null,null,null,null,null,null,null,null,null,null,null,{"$f":"CONCATENATE(N786,O786,P786)","v":"NVFS5D0C0TC0Mexico Region 2 (no CDMX, ZM y MTY)18"},"NVFS5D0C0TC0","Mexico Region 2 (no CDMX, ZM y MTY)",18,10754]
[null,null,null,null,null,null,null,null,null,null,null,null,{"$f":"CONCATENATE(N787,O787,P787)","v":"NVFS5D0C0TC0Mexico Region 2 (no CDMX, ZM y MTY)19"},"NVFS5D0C0TC0","Mexico Region 2 (no CDMX, ZM y MTY)",19,11072]
[null,null,null,null,null,null,null,null,null,null,null,null,{"$f":"CONCATENATE(N788,O788,P788)","v":"NVFS5D0C0TC0Mexico Region 2 (no CDMX, ZM y MTY)20"},"NVFS5D0C0TC0","Mexico Region 2 (no CDMX, ZM y MTY)",20,11400]
[null,null,null,null,null,null,null,null,null,null,null,null,{"$f":"CONCATENATE(N789,O789,P789)","v":"NVFS5D0C0TC0Mexico Region 2 (no CDMX, ZM y MTY)21"},"NVFS5D0C0TC0","Mexico Region 2 (no CDMX, ZM y MTY)",21,11739]
[null,null,null,null,null,null,null,null,null,null,null,null,"NVFS5D0C0TC0Mexico Region 2 (no CDMX, ZM y MTY)22","NVFS5D0C0TC0","Mexico Region 2 (no CDMX, ZM y MTY)",22,12086]
[null,null,null,null,null,null,null,null,null,null,null,null,"NVFS5D0C0TC0Mexico Region 2 (no CDMX, ZM y MTY)23","NVFS5D0C0TC0","Mexico Region 2 (no CDMX, ZM y MTY)",23,12444]
[null,null,null,null,null,null,null,null,null,null,null,null,"NVFS5D0C0TC0Mexico Region 2 (no CDMX, ZM y MTY)24","NVFS5D0C0TC0","Mexico Region 2 (no CDMX, ZM y MTY)",24,12814]
[null,null,null,null,null,null,null,null,null,null,null,null,"NVFS5D0C0TC0Mexico Region 2 (no CDMX, ZM y MTY)25","NVFS5D0C0TC0","Mexico Region 2 (no CDMX, ZM y MTY)",25,13195]
[null,null,null,null,null,null,null,null,null,null,null,null,"NVFS5D0C0TC0Mexico Region 2 (no CDMX, ZM y MTY)26","NVFS5D0C0TC0","Mexico Region 2 (no CDMX, ZM y MTY)",26,13586]
[null,null,null,null,null,null,null,null,null,null,null,null,"NVFS5D0C0TC0Mexico Region 2 (no CDMX, ZM y MTY)27","NVFS5D0C0TC0","Mexico Region 2 (no CDMX, ZM y MTY)",27,13989]
[null,null,null,null,null,null,null,null,null,null,null,null,"NVFS5D0C0TC0Mexico Region 2 (no CDMX, ZM y MTY)28","NVFS5D0C0TC0","Mexico Region 2 (no CDMX, ZM y MTY)",28,14405]
[null,null,null,null,null,null,null,null,null,null,null,null,"NVFS5D0C0TC0Mexico Region 2 (no CDMX, ZM y MTY)29","NVFS5D0C0TC0","Mexico Region 2 (no CDMX, ZM y MTY)",29,14833]
[null,null,null,null,null,null,null,null,null,null,null,null,"NVFS5D0C0TC0Mexico Region 2 (no CDMX, ZM y MTY)30","NVFS5D0C0TC0","Mexico Region 2 (no CDMX, ZM y MTY)",30,16739]
[null,null,null,null,null,null,null,null,null,null,null,null,"NVFS5D0C0TC0Mexico Region 2 (no CDMX, ZM y MTY)31","NVFS5D0C0TC0","Mexico Region 2 (no CDMX, ZM y MTY)",31,17237]
[null,null,null,null,null,null,null,null,null,null,null,null,"NVFS5D0C0TC0Mexico Region 2 (no CDMX, ZM y MTY)32","NVFS5D0C0TC0","Mexico Region 2 (no CDMX, ZM y MTY)",32,17749]
[null,null,null,null,null,null,null,null,null,null,null,null,"NVFS5D0C0TC0Mexico Region 2 (no CDMX, ZM y MTY)33","NVFS5D0C0TC0","Mexico Region 2 (no CDMX, ZM y MTY)",33,18279]
[null,null,null,null,null,null,null,null,null,null,null,null,"NVFS5D0C0TC0Mexico Region 2 (no CDMX, ZM y MTY)34","NVFS5D0C0TC0","Mexico Region 2 (no CDMX, ZM y MTY)",34,18823]
[null,null,null,null,null,null,null,null,null,null,null,null,"NVFS5D0C0TC0Mexico Region 2 (no CDMX, ZM y MTY)35","NVFS5D0C0TC0","Mexico Region 2 (no CDMX, ZM y MTY)",35,19382]
[null,null,null,null,null,null,null,null,null,null,null,null,"NVFS5D0C0TC0Mexico Region 2 (no CDMX, ZM y MTY)36","NVFS5D0C0TC0","Mexico Region 2 (no CDMX, ZM y MTY)",36,19960]
[null,null,null,null,null,null,null,null,null,null,null,null,"NVFS5D0C0TC0Mexico Region 2 (no CDMX, ZM y MTY)37","NVFS5D0C0TC0","Mexico Region 2 (no CDMX, ZM y MTY)",37,20554]
[null,null,null,null,null,null,null,null,null,null,null,null,"NVFS5D0C0TC0Mexico Region 2 (no CDMX, ZM y MTY)38","NVFS5D0C0TC0","Mexico Region 2 (no CDMX, ZM y MTY)",38,21168]
[null,null,null,null,null,null,null,null,null,null,null,null,"NVFS5D0C0TC0Mexico Region 2 (no CDMX, ZM y MTY)39","NVFS5D0C0TC0","Mexico Region 2 (no CDMX, ZM y MTY)",39,21381]
[null,null,null,null,null,null,null,null,null,null,null,null,"NVFS5D0C0TC0Mexico Region 2 (no CDMX, ZM y MTY)40","NVFS5D0C0TC0","Mexico Region 2 (no CDMX, ZM y MTY)",40,21439]
[null,null,null,null,null,null,null,null,null,null,null,null,"NVFS5D0C0TC0Mexico Region 2 (no CDMX, ZM y MTY)41","NVFS5D0C0TC0","Mexico Region 2 (no CDMX, ZM y MTY)",41,21618]
[null,null,null,null,null,null,null,null,null,null,null,null,"NVFS5D0C0TC0Mexico Region 2 (no CDMX, ZM y MTY)42","NVFS5D0C0TC0","Mexico Region 2 (no CDMX, ZM y MTY)",42,22247]
[null,null,null,null,null,null,null,null,null,null,null,null,"NVFS5D0C0TC0Mexico Region 2 (no CDMX, ZM y MTY)43","NVFS5D0C0TC0","Mexico Region 2 (no CDMX, ZM y MTY)",43,23132]
[null,null,null,null,null,null,null,null,null,null,null,null,"NVFS5D0C0TC0Mexico Region 2 (no CDMX, ZM y MTY)44","NVFS5D0C0TC0","Mexico Region 2 (no CDMX, ZM y MTY)",44,24051]
[null,null,null,null,null,null,null,null,null,null,null,null,"NVFS5D0C0TC0Mexico Region 2 (no CDMX, ZM y MTY)45","NVFS5D0C0TC0","Mexico Region 2 (no CDMX, ZM y MTY)",45,25007]
[null,null,null,null,null,null,null,null,null,null,null,null,"NVFS5D0C0TC0Mexico Region 2 (no CDMX, ZM y MTY)46","NVFS5D0C0TC0","Mexico Region 2 (no CDMX, ZM y MTY)",46,26002]
[null,null,null,null,null,null,null,null,null,null,null,null,"NVFS5D0C0TC0Mexico Region 2 (no CDMX, ZM y MTY)47","NVFS5D0C0TC0","Mexico Region 2 (no CDMX, ZM y MTY)",47,27037]
[null,null,null,null,null,null,null,null,null,null,null,null,"NVFS5D0C0TC0Mexico Region 2 (no CDMX, ZM y MTY)48","NVFS5D0C0TC0","Mexico Region 2 (no CDMX, ZM y MTY)",48,28112]
[null,null,null,null,null,null,null,null,null,null,null,null,"NVFS5D0C0TC0Mexico Region 2 (no CDMX, ZM y MTY)49","NVFS5D0C0TC0","Mexico Region 2 (no CDMX, ZM y MTY)",49,29232]
[null,null,null,null,null,null,null,null,null,null,null,null,"NVFS5D0C0TC0Mexico Region 2 (no CDMX, ZM y MTY)50","NVFS5D0C0TC0","Mexico Region 2 (no CDMX, ZM y MTY)",50,30395]
[null,null,null,null,null,null,null,null,null,null,null,null,"NVFS5D0C0TC0Mexico Region 2 (no CDMX, ZM y MTY)51","NVFS5D0C0TC0","Mexico Region 2 (no CDMX, ZM y MTY)",51,31758]
[null,null,null,null,null,null,null,null,null,null,null,null,"NVFS5D0C0TC0Mexico Region 2 (no CDMX, ZM y MTY)52","NVFS5D0C0TC0","Mexico Region 2 (no CDMX, ZM y MTY)",52,33339]
[null,null,null,null,null,null,null,null,null,null,null,null,"NVFS5D0C0TC0Mexico Region 2 (no CDMX, ZM y MTY)53","NVFS5D0C0TC0","Mexico Region 2 (no CDMX, ZM y MTY)",53,35482]
[null,null,null,null,null,null,null,null,null,null,null,null,"NVFS5D0C0TC0Mexico Region 2 (no CDMX, ZM y MTY)54","NVFS5D0C0TC0","Mexico Region 2 (no CDMX, ZM y MTY)",54,39018]
[null,null,null,null,null,null,null,null,null,null,null,null,"NVFS5D0C0TC0Mexico Region 2 (no CDMX, ZM y MTY)55","NVFS5D0C0TC0","Mexico Region 2 (no CDMX, ZM y MTY)",55,41995]
[null,null,null,null,null,null,null,null,null,null,null,null,"NVFS5D0C0TC0Mexico Region 2 (no CDMX, ZM y MTY)56","NVFS5D0C0TC0","Mexico Region 2 (no CDMX, ZM y MTY)",56,45196]
[null,null,null,null,null,null,null,null,null,null,null,null,"NVFS5D0C0TC0Mexico Region 2 (no CDMX, ZM y MTY)57","NVFS5D0C0TC0","Mexico Region 2 (no CDMX, ZM y MTY)",57,48391]
[null,null,null,null,null,null,null,null,null,null,null,null,"NVFS5D0C0TC0Mexico Region 2 (no CDMX, ZM y MTY)58","NVFS5D0C0TC0","Mexico Region 2 (no CDMX, ZM y MTY)",58,52070]
[null,null,null,null,null,null,null,null,null,null,null,null,"NVFS5D0C0TC0Mexico Region 2 (no CDMX, ZM y MTY)59","NVFS5D0C0TC0","Mexico Region 2 (no CDMX, ZM y MTY)",59,55468]
[null,null,null,null,null,null,null,null,null,null,null,null,"NVFS5D0C0TC0Mexico Region 2 (no CDMX, ZM y MTY)60","NVFS5D0C0TC0","Mexico Region 2 (no CDMX, ZM y MTY)",60,60868]
[null,null,null,null,null,null,null,null,null,null,null,null,"NVFS5D0C0TC0Mexico Region 2 (no CDMX, ZM y MTY)61","NVFS5D0C0TC0","Mexico Region 2 (no CDMX, ZM y MTY)",61,64839]
[null,null,null,null,null,null,null,null,null,null,null,null,"NVFS5D0C0TC0Mexico Region 2 (no CDMX, ZM y MTY)62","NVFS5D0C0TC0","Mexico Region 2 (no CDMX, ZM y MTY)",62,69070]
[null,null,null,null,null,null,null,null,null,null,null,null,"NVFS5D0C0TC0Mexico Region 2 (no CDMX, ZM y MTY)63","NVFS5D0C0TC0","Mexico Region 2 (no CDMX, ZM y MTY)",63,72858]
[null,null,null,null,null,null,null,null,null,null,null,null,"NVFS5D0C0TC0Mexico Region 2 (no CDMX, ZM y MTY)64","NVFS5D0C0TC0","Mexico Region 2 (no CDMX, ZM y MTY)",64,77611]
[null,null,null,null,null,null,null,null,null,null,null,null,"NVFS5D0C0TC0Mexico Region 2 (no CDMX, ZM y MTY)65","NVFS5D0C0TC0","Mexico Region 2 (no CDMX, ZM y MTY)",65,82674]
[null,null,null,null,null,null,null,null,null,null,null,null,"NVFS5D0C0TC0Mexico Region 2 (no CDMX, ZM y MTY)66","NVFS5D0C0TC0","Mexico Region 2 (no CDMX, ZM y MTY)",66,88502]
[null,null,null,null,null,null,null,null,null,null,null,null,"NVFS5D0C0TC0Mexico Region 2 (no CDMX, ZM y MTY)67","NVFS5D0C0TC0","Mexico Region 2 (no CDMX, ZM y MTY)",67,94739]
[null,null,null,null,null,null,null,null,null,null,null,null,"NVFS5D0C0TC0Mexico Region 2 (no CDMX, ZM y MTY)68","NVFS5D0C0TC0","Mexico Region 2 (no CDMX, ZM y MTY)",68,100919]
[null,null,null,null,null,null,null,null,null,null,null,null,"NVFS5D0C0TC0Mexico Region 2 (no CDMX, ZM y MTY)69","NVFS5D0C0TC0","Mexico Region 2 (no CDMX, ZM y MTY)",69,107502]
[null,null,null,null,null,null,null,null,null,null,null,null,"NVFS5D0C0TC0Mexico Region 2 (no CDMX, ZM y MTY)70","NVFS5D0C0TC0","Mexico Region 2 (no CDMX, ZM y MTY)",70,114516]
[null,null,null,null,null,null,null,null,null,null,null,null,"NVFS5D0C0TC0Mexico Region 2 (no CDMX, ZM y MTY)71","NVFS5D0C0TC0","Mexico Region 2 (no CDMX, ZM y MTY)",71,121988]
[null,null,null,null,null,null,null,null,null,null,null,null,"NVFS5D0C0TC0Mexico Region 2 (no CDMX, ZM y MTY)72","NVFS5D0C0TC0","Mexico Region 2 (no CDMX, ZM y MTY)",72,129946]
[null,null,null,null,null,null,null,null,null,null,null,null,"NVFS5D0C0TC0Mexico Region 2 (no CDMX, ZM y MTY)73","NVFS5D0C0TC0","Mexico Region 2 (no CDMX, ZM y MTY)",73,138423]
[null,null,null,null,null,null,null,null,null,null,null,null,"NVFS5D0C0TC0Mexico Region 2 (no CDMX, ZM y MTY)74","NVFS5D0C0TC0","Mexico Region 2 (no CDMX, ZM y MTY)",74,147454]
[null,null,null,null,null,null,null,null,null,null,null,null,"NVFS5D0C0TC0Mexico Region 2 (no CDMX, ZM y MTY)75","NVFS5D0C0TC0","Mexico Region 2 (no CDMX, ZM y MTY)",75,157074]
[null,null,null,null,null,null,null,null,null,null,null,null,"NVFS5D0C0TC0Mexico Region 2 (no CDMX, ZM y MTY)76","NVFS5D0C0TC0","Mexico Region 2 (no CDMX, ZM y MTY)",76,167321]
[null,null,null,null,null,null,null,null,null,null,null,null,"NVFS5D0C0TC0Mexico Region 2 (no CDMX, ZM y MTY)77","NVFS5D0C0TC0","Mexico Region 2 (no CDMX, ZM y MTY)",77,178237]
[null,null,null,null,null,null,null,null,null,null,null,null,"NVFS5D0C0TC0Mexico Region 2 (no CDMX, ZM y MTY)78","NVFS5D0C0TC0","Mexico Region 2 (no CDMX, ZM y MTY)",78,189865]
[null,null,null,null,null,null,null,null,null,null,null,null,"NVFS5D0C0TC0Mexico Region 2 (no CDMX, ZM y MTY)79","NVFS5D0C0TC0","Mexico Region 2 (no CDMX, ZM y MTY)",79,202253]
[null,null,null,null,null,null,null,null,null,null,null,null,"NVFS5D0C0TC0Mexico Region 2 (no CDMX, ZM y MTY)80","NVFS5D0C0TC0","Mexico Region 2 (no CDMX, ZM y MTY)",80,215447]
[null,null,null,null,null,null,null,null,null,null,null,null,"NVFS5D0C0TC0Mexico Region 2 (no CDMX, ZM y MTY)81","NVFS5D0C0TC0","Mexico Region 2 (no CDMX, ZM y MTY)",81,229502]
[null,null,null,null,null,null,null,null,null,null,null,null,"NVFS5D0C0TC0Mexico Region 2 (no CDMX, ZM y MTY)82","NVFS5D0C0TC0","Mexico Region 2 (no CDMX, ZM y MTY)",82,244475]
[null,null,null,null,null,null,null,null,null,null,null,null,"NVFS5D0C0TC0Mexico Region 2 (no CDMX, ZM y MTY)83","NVFS5D0C0TC0","Mexico Region 2 (no CDMX, ZM y MTY)",83,260425]
[null,null,null,null,null,null,null,null,null,null,null,null,"NVFS5D0C0TC0Mexico Region 2 (no CDMX, ZM y MTY)84","NVFS5D0C0TC0","Mexico Region 2 (no CDMX, ZM y MTY)",84,277414]